{"text_format":"1","workbook":"xlsx","n_sheets":9,"sheets":["Notes","SuppInfoSheet","ProjectDetails","Specification","Abstract","AnalysisSpreadCosts","BuildingFunction","SpecificationCodes","Lookup"],"not_rendered":{"charts":0,"images":0,"macros":1,"external_links":0,"defined_names":436,"comments":0,"pivot_tables":0},"unopened":[],"bounds":{"document_bytes":16777216,"sheet_cells":100000,"rows_first":2000,"rows_last":500,"rows_between":2000,"halvings":0,"cell_chars":16384,"cell_head_chars":4096},"cells_cut":0,"cells_raw":0,"read":"whole","date_system":"1900"}

{"sheet":"Notes","index":0,"n_rows":43,"n_cols":5,"rows_kept":43,"cut":false,"hidden":false,"merged":[[17,3,17,11],[22,3,22,11],[23,3,23,11],[24,3,24,11],[25,3,25,11],[42,4,42,11],[28,3,28,11],[29,3,29,11],[30,3,30,11],[31,3,31,11],[32,3,32,11],[34,3,34,11],[35,3,35,11],[36,3,36,11],[37,3,37,11],[38,3,38,11],[41,4,41,11],[26,3,26,11],[39,3,39,11],[40,3,40,11],[10,3,10,11],[11,3,11,11],[12,3,12,11],[13,3,13,11],[15,3,15,11],[16,3,16,11],[18,3,18,11],[19,3,19,11],[33,3,33,11],[27,3,27,11],[21,3,21,11],[14,3,14,11],[20,3,20,11],[1,2,1,11],[8,3,8,11],[9,3,9,11],[3,3,3,11],[4,3,4,11],[5,3,5,11],[6,3,6,11],[7,3,7,11]]}
[]
[null,null,"Introduction - SFCA2012 Submission Template"]
[]
[null,null,null,"Use this spreadsheet to record elemental analyses for submission to BCIS"]
[null,null,null,"It can also be used to abstract costs and allocate final summary adjustments"]
[]
[null,null,null,"The Abstract worksheet can be used to abstract a BQ or schedule into elements"]
[null,null,null,"The AnalysisSpreadCosts worksheet can be used to enter a previously prepared analysis and/or spread adjustments"]
[]
[null,null,null,"Before you start:"]
[null,null,null,"Enter details of the project into the SuppInfoSheet and ProjectDetails worksheets"]
[null,null,null,"Enter elemental specification text in Specification worksheet"]
[null,null,null,"Enter any adjustments that may be appropriate:"]
[null,null,null,"OH&P on Measured work or Measured work and prelims"]
[null,null,null,"OH&P on Provisional sums"]
[null,null,null,"OH&P on PC sums"]
[null,null,null,"Any special 'Adjust late quotes'"]
[null,null,null,"You can insert comments to document assumptions etc but these will not be included in the xml output."]
[]
[null,null,null,"Abstract from BQ or schedule"]
[null,null,null,"Use Abstract sheet"]
[null,null,null,"Enter item reference in the appropriate Page column and the amount in the adjacent Amount column"]
[null,null,null,"The 'Contract sum' in cell CU5 will show the total of the amounts you have added already entered"]
[null,null,null,"The difference in cells CU6 and B3 show the difference between the contract sum you entered on the AnalysisSpreadCosts worksheet less all adjustments entered on that worksheet and the total entered so far"]
[]
[null,null,null,"Spread costs"]
[null,null,null,"Use this worksheet whether or not you used the abstract worksheet"]
[null,null,null,"Select from the pull-down list in cell F1 whether adjustments are to be spread across trades or trades plus prelims"]
[null,null,null,"The results from the Abstract will be written to the cells shaded blue in this worksheet"]
[null,null,null,"Enter any values you want from other sources into the yellow shaded cells"]
[null,null,null,"The difference between the contract sum you entered and the total of the analysis is shown in cell F86"]
[]
[null,null,null,"Write XML file"]
[null,null,null,"When you have completed and checked the calculations you can export the analysis as an XML file"]
[null,null,null,"The steps are:"]
[null,null,null,"Save the workbook (just to be safe) as an Excel Macro-Enabled Workbook (*.xlsm) (we suggest you use the Reference as a file name)"]
[null,null,null,"Click on the 'Export to XML' button at the top left of the AnalysisSpreadCosts worksheet"]
[null,null,null,"Select the folder and file name for the XML file (if you entered the reference it should do this for you - extension must be .xml)"]
[null,null,null,"A dialogue box will confirm the file has been written"]
[]
[]
[null,null,null,"Revised:","2022-10-20"]
[null,null,null,"Copyright:","BCIS 2022"]

{"sheet":"SuppInfoSheet","index":1,"n_rows":103,"n_cols":16,"rows_kept":103,"cut":false,"hidden":false,"merged":[[1,1,1,11],[85,2,85,11],[91,2,91,11],[94,2,94,3],[93,2,93,3],[7,2,7,3],[9,2,9,3],[11,2,11,3],[13,2,13,3],[3,3,3,7],[16,3,16,7],[20,3,20,7],[22,3,22,7],[50,3,50,7],[52,3,52,7],[103,3,103,4],[46,3,46,7],[89,2,89,3],[54,6,54,7],[89,4,89,5],[48,3,48,7],[95,2,95,3],[96,2,96,3],[97,2,97,3]]}
[]
[null,"Supplementary Information Sheet"]
[]
[null,1,"Job Title",null,null,null,null,null,null,"Building Function",1,null,{"$f":"INDEX(BuildingFunctionID,K4)","v":0},null,{"$f":"IFERROR(INDEX(BuildingFunctionCode,$K$4),\"\")","v":0},{"$f":"IFERROR(INDEX(BuildingFunctionDescription,$K$4),\"\")","v":0}]
[]
[null,2,"Reference"]
[]
[null,3,"Date for Receipt of Tenders",null,"2022-10-26",null,null,null,null,null,null,null,{"$f":"INDEX(DateFormatID,IF(N8,1,2))","v":1737},true]
[]
[null,4,"Base Date",null,null,null,null,null,null,null,null,null,{"$f":"INDEX(DateFormatID,IF(N10,1,2))","v":1737},true]
[]
[null,5,"Date of Acceptance ",null,null,null,null,null,null,null,null,null,{"$f":"INDEX(DateFormatID,IF(N12,1,2))","v":1737},true]
[]
[null,6,"Date of Possession:",null,null,null,null,null,null,null,null,null,{"$f":"INDEX(DateFormatID,IF(N14,1,2))","v":1737},true]
[]
[]
[null,7,"Location ",null,null,null,null,null,null,null,null,null,false,{"$f":"IF(M17,\"\",D17)","v":0}]
[]
[null,null,"Postcode",null,null,null,null,null,null,null,null,null,{"$f":"IF(M17,\"\",UPPER(E19))","v":""},{"$f":"IF(NOT(M17),\"\",D17&\" \"&UPPER(E19) )","v":""}]
[]
[null,8,"Local Authority District"]
[]
[null,9,"Client ",null,null,null,null,null,null,"Client type",1,null,{"$f":"INDEX(ClientID,K23)","v":0}]
[]
[null,10,"Nr of Storeys",null,"Primary:",null,"Secondary:"]
[]
[null,null,"Basement storeys included in above"]
[]
[null,11,"Type of Work:",null,null,null,null,null,null,null,null,null,{"$f":"INDEX(TypeOfWorkID,O29)","v":0},null,1]
[]
[null,12,"Gross Internal Floor Area",null,"m²"]
[]
[null,13,"Site Pitch:",1,null,null,null,null,null,null,null,null,{"$f":"INDEX(SitePitchID,D33)","v":0}]
[]
[null,14,"Ground Conditions:",1,null,null,null,null,null,null,null,null,{"$f":"INDEX(GroundConditionsID,D35)","v":0}]
[]
[null,15,"Water in excavation:",1,null,null,null,null,null,null,null,null,{"$f":"INDEX(SiteWaterID,D37)","v":0}]
[]
[null,16,"Existing State:",1,null,null,null,null,null,null,null,null,{"$f":"INDEX(SitePreviousUseID,D39)","v":0}]
[]
[null,17,"Working Space:",1,null,null,null,null,null,null,null,null,{"$f":"INDEX(SiteWorkingSpaceID,D41)","v":0}]
[]
[null,null,"Split over more than one sites",null,null,null,null,null,null,null,null,null,{"$f":"IF(N43,SiteDividedID,0)","v":0},false,{"$f":"IF(N43,2,0)","v":0}]
[]
[null,18,"Access:",1,null,null,null,null,null,null,null,null,{"$f":"INDEX(SiteAccessID,D45)","v":0}]
[]
[null,19,"Other Comments on Site "]
[]
[null,20,"Market Conditions  "]
[]
[null,21,"If Lowest Tender was not accepted, please explain why not "]
[]
[null,22,"If Accepted Tender was adjusted, please explain how ",null,null,null,null,null,null,"Tender amended",1,null,{"$f":"INDEX(Lookup!C148:C167,K53)","v":0}]
[]
[null,23,"Tender Sum",null,null,"Contract Sum"]
[]
[null,24,"Selection of Contractor:",1,null,null,null,null,null,null,null,null,{"$f":"INDEX(SelectionOfContractorID,D57)","v":0}]
[]
[null,25,"Number of Tenders","Issued: ",null,"Received: "]
[]
[null,26,"Form of Contract ",null,null,null,null,null,null,null,null,null,{"$f":"INDEX(ContractID,O61)","v":0},null,1]
[]
[null,27,"Contract Period in Bill ",null,null,"Weeks"]
[]
[null,null,"Offered by Contractor",null,null,"Weeks"]
[]
[null,null,"Agreed",null,null,"Weeks"]
[]
[null,28,"Please List Tenders Received by Value"]
[null,null,null,1]
[null,null,null,2]
[null,null,null,3]
[null,null,null,4]
[null,null,null,5]
[null,null,null,6]
[null,null,null,7]
[null,null,null,8]
[]
[null,29,"Functional Unit","Unit",null,null,"Quantity"]
[null,null,"i)",1,null,null,null,null,null,null,{"$f":"IF(AND(D80>1,G80=0),\"Unit set without quantity\",\"\")&IF(AND(D80=1,G80>0),\"Select functional unit\",\"\")","v":""}]
[null,null,"ii)",1,null,null,null,null,null,null,{"$f":"IF(AND(D81>1,G81=0),\"Unit set without quantity\",\"\")&IF(AND(D81=1,G81>0),\"Select functional unit\",\"\")","v":""}]
[null,null,"iii)",1,null,null,null,null,null,null,""]
[null,null,"iv)",1,null,null,null,null,null,null,""]
[]
[]
[null,30,"Does BCIS have your permission to publish",null,null,null,null,null,null,null,null,null,null,null,null,{"$f":"IFERROR(INDEX(PublicationSecurityDescription,$D88),\"\")","v":0}]
[]
[null,null,"Security",1]
[]
[null,31,"Have any details of the project been submitted to BCIS previously?"]
[]
[null,32,"Building Accreditation Scores:"]
[]
[null,null,"BREEAM Rating:",null,1,null,null,null,null,null,null,null,{"$f":"INDEX(BREEAMID,E94)","v":0}]
[null,null,"Code for Sustainable Homes Level:",null,1,null,null,null,null,null,null,null,{"$f":"INDEX(CSHID,E95)","v":0}]
[null,null,"SAP Rating:",null,1,null,null,null,null,null,null,null,{"$f":"INDEX(SAPID,E96)","v":0}]
[null,null,"Listed buildings:",null,1,null,null,null,null,null,null,null,{"$f":"INDEX(SAPID,E97)","v":0}]
[null,null,"BIM Compliant:",null,1,null,null,null,null,null,null,null,{"$f":"INDEX(SAPID,E98)","v":0}]
[]
[]
[null,33,"Carbon emissions","Basis",null,null,null,"Result"]
[null,null,null,1,null,null,null,null,null,null,{"$f":"IF(AND(Carbon1Index>1,Carbon1Text=0),\"Basis set without result\",\"\")&IF(AND(Carbon1Index=1,Carbon1Text>0),\"Select basis of result\",\"\")","v":""},null,{"$f":"INDEX(BasisOfCarbonID,D102)","v":0}]
[null,null,null,1,null,null,null,null,null,null,{"$f":"IF(AND(Carbon2Index>1,Carbon2Text=0),\"Basis set without result\",\"\")&IF(AND(Carbon2Index=1,Carbon2Text>0),\"Select basis of result\",\"\")","v":""},null,{"$f":"INDEX(BasisOfCarbonID,D103)","v":0}]

{"sheet":"ProjectDetails","index":2,"n_rows":27,"n_cols":9,"rows_kept":27,"cut":false,"hidden":false,"merged":[[30,3,30,4],[26,3,26,4],[27,3,27,4],[28,3,28,4],[29,3,29,4],[0,1,0,5],[23,3,23,4],[24,3,24,4],[25,3,25,4],[14,3,14,4],[16,3,16,4],[20,3,20,4],[21,3,21,4],[22,3,22,4]]}
[null,"PROJECT DETAILS"]
[]
[null,null,"BCIS Construction Code",1,null,null,null,null,{"$f":"IFERROR(INDEX(PublicationSecurityDescription,MATCH($N3,PublicationSecurityID,0)),\"\")","v":""}]
[]
[null,null,"Number of units"]
[]
[null,null,"Basis of Cost",1]
[]
[null,null,"Tender Documentation",1]
[]
[null,null,"Fluctuations",1]
[]
[null,null,"Complex Contract"]
[]
[null,null,"Project Description"]
[]
[null,null,"Accommodation and design"]
[]
[null,null,"CREDITS"]
[]
[null,null,"Submitted by"]
[null,null,"Client"]
[null,null,"Architect"]
[null,null,"Quantity Surveyor"]
[null,null,"Structural Engineer"]
[null,null,"Services Engineer"]
[null,null,"General Contractor"]

{"sheet":"Specification","index":3,"n_rows":579,"n_cols":11,"rows_kept":579,"cut":false,"hidden":false,"merged":[[569,3,578,3],[401,3,410,3],[413,3,422,3],[425,3,434,3],[437,3,446,3],[533,3,542,3],[557,3,566,3],[185,3,194,3],[197,3,206,3],[221,3,230,3],[209,3,218,3],[365,3,374,3],[233,3,242,3],[245,3,254,3],[257,3,266,3],[269,3,278,3],[281,3,290,3],[293,3,302,3],[305,3,314,3],[317,3,326,3],[329,3,338,3],[341,3,350,3],[377,3,386,3],[389,3,398,3],[521,3,530,3],[545,3,554,3],[353,3,362,3],[449,3,458,3],[461,3,470,3],[473,3,482,3],[485,3,494,3],[497,3,506,3],[509,3,518,3],[125,3,134,3],[137,3,146,3],[149,3,158,3],[161,3,170,3],[173,3,182,3],[113,3,122,3],[5,3,14,3],[17,3,26,3],[29,3,38,3],[41,3,50,3],[53,3,62,3],[0,1,0,6],[65,3,74,3],[77,3,86,3],[89,3,98,3],[101,3,110,3]]}
[null,"SPECIFICATION"]
[]
[null,null,null,"Description",null,"Codes",null,null,"Ptr/ElementID","SpecID","Ref as text"]
[]
[null,null,1,{"$f":"INDEX(SpecCodes,I5,4)","v":"Substructure"},null,null,null,null,{"$f":"MATCH(C5,SpecCodeReference,0)","v":1},null,{"$f":"IF(ISBLANK(C5),K4,TEXT(C5,\"00.##\"))","v":"01."}]
[null,null,null,null,null,1,null,null,{"$f":"INDEX(ElementID,I5)","v":187},{"$f":"INDEX(INDIRECT(\"SpecID_\"&K6),F6,1)","v":0},"01."]
[null,null,null,null,null,1,null,null,null,0,"01."]
[null,null,null,null,null,1,null,null,null,0,"01."]
[null,null,null,null,null,1,null,null,null,0,"01."]
[null,null,null,null,null,1,null,null,null,0,"01."]
[null,null,null,null,null,1,null,null,null,0,"01."]
[null,null,null,null,null,1,null,null,null,0,"01."]
[null,null,null,null,null,1,null,null,null,0,"01."]
[null,null,null,null,null,1,null,null,null,0,"01."]
[null,null,null,null,null,1,null,null,null,0,"01."]
[null,null,null,null,null,null,null,null,null,null,"01."]
[null,null,2.0099999999999998,{"$f":"INDEX(SpecCodes,I17,4)","v":"Frame"},null,null,null,null,{"$f":"MATCH(C17,SpecCodeReference,0)","v":47},null,"02.01"]
[null,null,null,null,null,1,null,null,{"$f":"INDEX(ElementID,I17)","v":188},{"$f":"INDEX(INDIRECT(\"SpecID_\"&K18),F18,1)","v":0},"02.01"]
[null,null,null,null,null,1,null,null,null,0,"02.01"]
[null,null,null,null,null,1,null,null,null,0,"02.01"]
[null,null,null,null,null,1,null,null,null,0,"02.01"]
[null,null,null,null,null,1,null,null,null,0,"02.01"]
[null,null,null,null,null,1,null,null,null,0,"02.01"]
[null,null,null,null,null,1,null,null,null,0,"02.01"]
[null,null,null,null,null,1,null,null,null,0,"02.01"]
[null,null,null,null,null,1,null,null,null,0,"02.01"]
[null,null,null,null,null,1,null,null,null,0,"02.01"]
[null,null,null,null,null,null,null,null,null,null,"02.01"]
[null,null,2.02,{"$f":"INDEX(SpecCodes,I29,4)","v":"Upper Floors"},null,null,null,null,{"$f":"MATCH(C29,SpecCodeReference,0)","v":73},null,"02.02"]
[null,null,null,null,null,1,null,null,{"$f":"INDEX(ElementID,I29)","v":192},{"$f":"INDEX(INDIRECT(\"SpecID_\"&K30),F30,1)","v":0},"02.02"]
[null,null,null,null,null,1,null,null,null,0,"02.02"]
[null,null,null,null,null,1,null,null,null,0,"02.02"]
[null,null,null,null,null,1,null,null,null,0,"02.02"]
[null,null,null,null,null,1,null,null,null,0,"02.02"]
[null,null,null,null,null,1,null,null,null,0,"02.02"]
[null,null,null,null,null,1,null,null,null,0,"02.02"]
[null,null,null,null,null,1,null,null,null,0,"02.02"]
[null,null,null,null,null,1,null,null,null,0,"02.02"]
[null,null,null,null,null,1,null,null,null,0,"02.02"]
[null,null,null,null,null,null,null,null,null,null,"02.02"]
[null,null,2.0299999999999998,{"$f":"INDEX(SpecCodes,I41,4)","v":"Roof"},null,null,null,null,{"$f":"MATCH(C41,SpecCodeReference,0)","v":84},null,"02.03"]
[null,null,null,null,null,1,null,null,{"$f":"INDEX(ElementID,I41)","v":199},{"$f":"INDEX(INDIRECT(\"SpecID_\"&K42),F42,1)","v":0},"02.03"]
[null,null,null,null,null,1,null,null,null,0,"02.03"]
[null,null,null,null,null,1,null,null,null,0,"02.03"]
[null,null,null,null,null,1,null,null,null,0,"02.03"]
[null,null,null,null,null,1,null,null,null,0,"02.03"]
[null,null,null,null,null,1,null,null,null,0,"02.03"]
[null,null,null,null,null,1,null,null,null,0,"02.03"]
[null,null,null,null,null,1,null,null,null,0,"02.03"]
[null,null,null,null,null,1,null,null,null,0,"02.03"]
[null,null,null,null,null,1,null,null,null,0,"02.03"]
[null,null,null,null,null,null,null,null,null,null,"02.03"]
[null,null,2.04,{"$f":"INDEX(SpecCodes,I53,4)","v":"Stairs"},null,null,null,null,{"$f":"MATCH(C53,SpecCodeReference,0)","v":157},null,"02.04"]
[null,null,null,null,null,1,null,null,{"$f":"INDEX(ElementID,I53)","v":204},{"$f":"INDEX(INDIRECT(\"SpecID_\"&K54),F54,1)","v":0},"02.04"]
[null,null,null,null,null,1,null,null,null,0,"02.04"]
[null,null,null,null,null,1,null,null,null,0,"02.04"]
[null,null,null,null,null,1,null,null,null,0,"02.04"]
[null,null,null,null,null,1,null,null,null,0,"02.04"]
[null,null,null,null,null,1,null,null,null,0,"02.04"]
[null,null,null,null,null,1,null,null,null,0,"02.04"]
[null,null,null,null,null,1,null,null,null,0,"02.04"]
[null,null,null,null,null,1,null,null,null,0,"02.04"]
[null,null,null,null,null,1,null,null,null,0,"02.04"]
[null,null,null,null,null,null,null,null,null,null,"02.04"]
[null,null,2.0499999999999998,{"$f":"INDEX(SpecCodes,I65,4)","v":"External Walls"},null,null,null,null,{"$f":"MATCH(C65,SpecCodeReference,0)","v":182},null,"02.05"]
[null,null,null,null,null,1,null,null,{"$f":"INDEX(ElementID,I65)","v":212},{"$f":"INDEX(INDIRECT(\"SpecID_\"&K66),F66,1)","v":0},"02.05"]
[null,null,null,null,null,1,null,null,null,0,"02.05"]
[null,null,null,null,null,1,null,null,null,0,"02.05"]
[null,null,null,null,null,1,null,null,null,0,{"$f":"IF(ISBLANK(C69),K68,TEXT(C69,\"00.##\"))","v":"02.05"}]
[null,null,null,null,null,1,null,null,null,0,"02.05"]
[null,null,null,null,null,1,null,null,null,0,"02.05"]
[null,null,null,null,null,1,null,null,null,0,"02.05"]
[null,null,null,null,null,1,null,null,null,0,"02.05"]
[null,null,null,null,null,1,null,null,null,0,"02.05"]
[null,null,null,null,null,1,null,null,null,0,"02.05"]
[null,null,null,null,null,null,null,null,null,null,"02.05"]
[null,null,2.06,{"$f":"INDEX(SpecCodes,I77,4)","v":"External Windows and Doors"},null,null,null,null,{"$f":"MATCH(C77,SpecCodeReference,0)","v":245},null,"02.06"]
[null,null,null,null,null,1,null,null,{"$f":"INDEX(ElementID,I77)","v":215},{"$f":"INDEX(INDIRECT(\"SpecID_\"&K78),F78,1)","v":0},"02.06"]
[null,null,null,null,null,1,null,null,null,0,"02.06"]
[null,null,null,null,null,1,null,null,null,0,"02.06"]
[null,null,null,null,null,1,null,null,null,0,"02.06"]
[null,null,null,null,null,1,null,null,null,0,"02.06"]
[null,null,null,null,null,1,null,null,null,0,"02.06"]
[null,null,null,null,null,1,null,null,null,0,"02.06"]
[null,null,null,null,null,1,null,null,null,0,"02.06"]
[null,null,null,null,null,1,null,null,null,0,"02.06"]
[null,null,null,null,null,1,null,null,null,0,"02.06"]
[null,null,null,null,null,null,null,null,null,null,"02.06"]
[null,null,2.0699999999999998,{"$f":"INDEX(SpecCodes,I89,4)","v":"Internal Walls and Partitions"},null,null,null,null,{"$f":"MATCH(C89,SpecCodeReference,0)","v":305},null,"02.07"]
[null,null,null,null,null,1,null,null,{"$f":"INDEX(ElementID,I89)","v":220},{"$f":"INDEX(INDIRECT(\"SpecID_\"&K90),F90,1)","v":0},"02.07"]
[null,null,null,null,null,1,null,null,null,0,"02.07"]
[null,null,null,null,null,1,null,null,null,0,"02.07"]
[null,null,null,null,null,1,null,null,null,0,"02.07"]
[null,null,null,null,null,1,null,null,null,0,"02.07"]
[null,null,null,null,null,1,null,null,null,0,"02.07"]
[null,null,null,null,null,1,null,null,null,0,"02.07"]
[null,null,null,null,null,1,null,null,null,0,"02.07"]
[null,null,null,null,null,1,null,null,null,0,"02.07"]
[null,null,null,null,null,1,null,null,null,0,"02.07"]
[null,null,null,null,null,null,null,null,null,null,"02.07"]
[null,null,2.08,{"$f":"INDEX(SpecCodes,I101,4)","v":"Internal Doors"},null,null,null,null,{"$f":"MATCH(C101,SpecCodeReference,0)","v":341},null,"02.08"]
[null,null,null,null,null,1,null,null,{"$f":"INDEX(ElementID,I101)","v":221},{"$f":"INDEX(INDIRECT(\"SpecID_\"&K102),F102,1)","v":0},"02.08"]
[null,null,null,null,null,1,null,null,null,0,"02.08"]
[null,null,null,null,null,1,null,null,null,0,"02.08"]
[null,null,null,null,null,1,null,null,null,0,"02.08"]
[null,null,null,null,null,1,null,null,null,0,"02.08"]
[null,null,null,null,null,1,null,null,null,0,"02.08"]
[null,null,null,null,null,1,null,null,null,0,"02.08"]
[null,null,null,null,null,1,null,null,null,0,"02.08"]
[null,null,null,null,null,1,null,null,null,0,"02.08"]
[null,null,null,null,null,1,null,null,null,0,"02.08"]
[null,null,null,null,null,null,null,null,null,null,"02.08"]
[null,null,3.01,{"$f":"INDEX(SpecCodes,I113,4)","v":"Wall Finishes"},null,null,null,null,{"$f":"MATCH(C113,SpecCodeReference,0)","v":357},null,"03.01"]
[null,null,null,null,null,1,null,null,{"$f":"INDEX(ElementID,I113)","v":223},{"$f":"INDEX(INDIRECT(\"SpecID_\"&K114),F114,1)","v":0},"03.01"]
[null,null,null,null,null,1,null,null,null,0,"03.01"]
[null,null,null,null,null,1,null,null,null,0,"03.01"]
[null,null,null,null,null,1,null,null,null,0,"03.01"]
[null,null,null,null,null,1,null,null,null,0,"03.01"]
[null,null,null,null,null,1,null,null,null,0,"03.01"]
[null,null,null,null,null,1,null,null,null,0,"03.01"]
[null,null,null,null,null,1,null,null,null,0,"03.01"]
[null,null,null,null,null,1,null,null,null,0,"03.01"]
[null,null,null,null,null,1,null,null,null,0,"03.01"]
[null,null,null,null,null,null,null,null,null,null,"03.01"]
[null,null,3.02,{"$f":"INDEX(SpecCodes,I125,4)","v":"Floor Finishes"},null,null,null,null,{"$f":"MATCH(C125,SpecCodeReference,0)","v":382},null,"03.02"]
[null,null,null,null,null,1,null,null,{"$f":"INDEX(ElementID,I125)","v":226},{"$f":"INDEX(INDIRECT(\"SpecID_\"&K126),F126,1)","v":0},"03.02"]
[null,null,null,null,null,1,null,null,null,0,"03.02"]
[null,null,null,null,null,1,null,null,null,0,"03.02"]
[null,null,null,null,null,1,null,null,null,0,"03.02"]
[null,null,null,null,null,1,null,null,null,0,"03.02"]
[null,null,null,null,null,1,null,null,null,0,"03.02"]
[null,null,null,null,null,1,null,null,null,0,"03.02"]
[null,null,null,null,null,1,null,null,null,0,{"$f":"IF(ISBLANK(C133),K132,TEXT(C133,\"00.##\"))","v":"03.02"}]
[null,null,null,null,null,1,null,null,null,0,"03.02"]
[null,null,null,null,null,1,null,null,null,0,"03.02"]
[null,null,null,null,null,null,null,null,null,null,"03.02"]
[null,null,3.03,{"$f":"INDEX(SpecCodes,I137,4)","v":"Ceiling Finishes"},null,null,null,null,{"$f":"MATCH(C137,SpecCodeReference,0)","v":412},null,"03.03"]
[null,null,null,null,null,1,null,null,{"$f":"INDEX(ElementID,I137)","v":230},{"$f":"INDEX(INDIRECT(\"SpecID_\"&K138),F138,1)","v":0},"03.03"]
[null,null,null,null,null,1,null,null,null,0,"03.03"]
[null,null,null,null,null,1,null,null,null,0,"03.03"]
[null,null,null,null,null,1,null,null,null,0,"03.03"]
[null,null,null,null,null,1,null,null,null,0,"03.03"]
[null,null,null,null,null,1,null,null,null,0,"03.03"]
[null,null,null,null,null,1,null,null,null,0,"03.03"]
[null,null,null,null,null,1,null,null,null,0,"03.03"]
[null,null,null,null,null,1,null,null,null,0,"03.03"]
[null,null,null,null,null,1,null,null,null,0,"03.03"]
[null,null,null,null,null,null,null,null,null,null,"03.03"]
[null,null,4,{"$f":"INDEX(SpecCodes,I149,4)","v":"Fittings, Furnishings and Equipment"},null,null,null,null,{"$f":"MATCH(C149,SpecCodeReference,0)","v":445},null,"04."]
[null,null,null,null,null,1,null,null,{"$f":"INDEX(ElementID,I149)","v":240},{"$f":"INDEX(INDIRECT(\"SpecID_\"&K150),F150,1)","v":0},"04."]
[null,null,null,null,null,1,null,null,null,0,"04."]
[null,null,null,null,null,1,null,null,null,0,"04."]
[null,null,null,null,null,1,null,null,null,0,"04."]
[null,null,null,null,null,1,null,null,null,0,"04."]
[null,null,null,null,null,1,null,null,null,0,"04."]
[null,null,null,null,null,1,null,null,null,0,"04."]
[null,null,null,null,null,1,null,null,null,0,"04."]
[null,null,null,null,null,1,null,null,null,0,"04."]
[null,null,null,null,null,1,null,null,null,0,"04."]
[null,null,null,null,null,null,null,null,null,null,"04."]
[null,null,5.01,{"$f":"INDEX(SpecCodes,I161,4)","v":"Sanitary Installations"},null,null,null,null,{"$f":"MATCH(C161,SpecCodeReference,0)","v":458},null,"05.01"]
[null,null,null,null,null,1,null,null,{"$f":"INDEX(ElementID,I161)","v":243},{"$f":"INDEX(INDIRECT(\"SpecID_\"&K162),F162,1)","v":0},"05.01"]
[null,null,null,null,null,1,null,null,null,0,"05.01"]
[null,null,null,null,null,1,null,null,null,0,"05.01"]
[null,null,null,null,null,1,null,null,null,0,"05.01"]
[null,null,null,null,null,1,null,null,null,0,"05.01"]
[null,null,null,null,null,1,null,null,null,0,"05.01"]
[null,null,null,null,null,1,null,null,null,0,"05.01"]
[null,null,null,null,null,1,null,null,null,0,"05.01"]
[null,null,null,null,null,1,null,null,null,0,"05.01"]
[null,null,null,null,null,1,null,null,null,0,"05.01"]
[null,null,null,null,null,null,null,null,null,null,"05.01"]
[null,null,5.0199999999999996,{"$f":"INDEX(SpecCodes,I173,4)","v":"Services Equipment"},null,null,null,null,{"$f":"MATCH(C173,SpecCodeReference,0)","v":465},null,"05.02"]
[null,null,null,null,null,1,null,null,{"$f":"INDEX(ElementID,I173)","v":244},{"$f":"INDEX(INDIRECT(\"SpecID_\"&K174),F174,1)","v":0},"05.02"]
[null,null,null,null,null,1,null,null,null,0,"05.02"]
[null,null,null,null,null,1,null,null,null,0,"05.02"]
[null,null,null,null,null,1,null,null,null,0,"05.02"]
[null,null,null,null,null,1,null,null,null,0,"05.02"]
[null,null,null,null,null,1,null,null,null,0,"05.02"]
[null,null,null,null,null,1,null,null,null,0,"05.02"]
[null,null,null,null,null,1,null,null,null,0,"05.02"]
[null,null,null,null,null,1,null,null,null,0,"05.02"]
[null,null,null,null,null,1,null,null,null,0,"05.02"]
[null,null,null,null,null,null,null,null,null,null,"05.02"]
[null,null,5.03,{"$f":"INDEX(SpecCodes,I185,4)","v":"Disposal Installations"},null,null,null,null,{"$f":"MATCH(C185,SpecCodeReference,0)","v":498},null,"05.03"]
[null,null,null,null,null,1,null,null,{"$f":"INDEX(ElementID,I185)","v":248},{"$f":"INDEX(INDIRECT(\"SpecID_\"&K186),F186,1)","v":0},"05.03"]
[null,null,null,null,null,1,null,null,null,0,"05.03"]
[null,null,null,null,null,1,null,null,null,0,"05.03"]
[null,null,null,null,null,1,null,null,null,0,"05.03"]
[null,null,null,null,null,1,null,null,null,0,"05.03"]
[null,null,null,null,null,1,null,null,null,0,"05.03"]
[null,null,null,null,null,1,null,null,null,0,"05.03"]
[null,null,null,null,null,1,null,null,null,0,"05.03"]
[null,null,null,null,null,1,null,null,null,0,"05.03"]
[null,null,null,null,null,1,null,null,null,0,"05.03"]
[null,null,null,null,null,null,null,null,null,null,"05.03"]
[null,null,5.04,{"$f":"INDEX(SpecCodes,I197,4)","v":"Water Installations"},null,null,null,null,{"$f":"MATCH(C197,SpecCodeReference,0)","v":503},null,{"$f":"IF(ISBLANK(C197),K196,TEXT(C197,\"00.##\"))","v":"05.04"}]
[null,null,null,null,null,null,null,null,{"$f":"INDEX(ElementID,I197)","v":254},null,"05.04"]
[null,null,null,null,null,null,null,null,null,null,"05.04"]
[null,null,null,null,null,null,null,null,null,null,"05.04"]
[null,null,null,null,null,null,null,null,null,null,"05.04"]
[null,null,null,null,null,null,null,null,null,null,"05.04"]
[null,null,null,null,null,null,null,null,null,null,"05.04"]
[null,null,null,null,null,null,null,null,null,null,"05.04"]
[null,null,null,null,null,null,null,null,null,null,"05.04"]
[null,null,null,null,null,null,null,null,null,null,"05.04"]
[null,null,null,null,null,null,null,null,null,null,"05.04"]
[null,null,null,null,null,null,null,null,null,null,"05.04"]
[null,null,5.05,{"$f":"INDEX(SpecCodes,I209,4)","v":"Heat Source"},null,null,null,null,{"$f":"MATCH(C209,SpecCodeReference,0)","v":504},null,"05.05"]
[null,null,null,null,null,null,null,null,{"$f":"INDEX(ElementID,I209)","v":255},null,"05.05"]
[null,null,null,null,null,null,null,null,null,null,"05.05"]
[null,null,null,null,null,null,null,null,null,null,"05.05"]
[null,null,null,null,null,null,null,null,null,null,"05.05"]
[null,null,null,null,null,null,null,null,null,null,"05.05"]
[null,null,null,null,null,null,null,null,null,null,"05.05"]
[null,null,null,null,null,null,null,null,null,null,"05.05"]
[null,null,null,null,null,null,null,null,null,null,"05.05"]
[null,null,null,null,null,null,null,null,null,null,"05.05"]
[null,null,null,null,null,null,null,null,null,null,"05.05"]
[null,null,null,null,null,null,null,null,null,null,"05.05"]
[null,null,5.0599999999999996,{"$f":"INDEX(SpecCodes,I221,4)","v":"Space Heating and Air Conditioning"},null,null,null,null,{"$f":"MATCH(C221,SpecCodeReference,0)","v":505},null,"05.06"]
[null,null,null,null,null,1,null,null,{"$f":"INDEX(ElementID,I221)","v":264},{"$f":"INDEX(INDIRECT(\"SpecID_\"&K222),F222,1)","v":0},"05.06"]
[null,null,null,null,null,1,null,null,null,0,"05.06"]
[null,null,null,null,null,1,null,null,null,0,"05.06"]
[null,null,null,null,null,1,null,null,null,0,"05.06"]
[null,null,null,null,null,1,null,null,null,0,"05.06"]
[null,null,null,null,null,1,null,null,null,0,"05.06"]
[null,null,null,null,null,1,null,null,null,0,"05.06"]
[null,null,null,null,null,1,null,null,null,0,"05.06"]
[null,null,null,null,null,1,null,null,null,0,"05.06"]
[null,null,null,null,null,1,null,null,null,0,"05.06"]
[null,null,null,null,null,null,null,null,null,null,"05.06"]
[null,null,5.07,{"$f":"INDEX(SpecCodes,I233,4)","v":"Ventilating Systems"},null,null,null,null,{"$f":"MATCH(C233,SpecCodeReference,0)","v":574},null,"05.07"]
[null,null,null,null,null,1,null,null,{"$f":"INDEX(ElementID,I233)","v":268},{"$f":"INDEX(INDIRECT(\"SpecID_\"&K234),F234,1)","v":0},"05.07"]
[null,null,null,null,null,1,null,null,null,0,"05.07"]
[null,null,null,null,null,1,null,null,null,0,"05.07"]
[null,null,null,null,null,1,null,null,null,0,"05.07"]
[null,null,null,null,null,1,null,null,null,0,"05.07"]
[null,null,null,null,null,1,null,null,null,0,"05.07"]
[null,null,null,null,null,1,null,null,null,0,"05.07"]
[null,null,null,null,null,1,null,null,null,0,"05.07"]
[null,null,null,null,null,1,null,null,null,0,"05.07"]
[null,null,null,null,null,1,null,null,null,0,"05.07"]
[null,null,null,null,null,null,null,null,null,null,"05.07"]
[null,null,5.08,{"$f":"INDEX(SpecCodes,I245,4)","v":"Electrical Installations"},null,null,null,null,{"$f":"MATCH(C245,SpecCodeReference,0)","v":580},null,"05.08"]
[null,null,null,null,null,1,null,null,{"$f":"INDEX(ElementID,I245)","v":275},{"$f":"INDEX(INDIRECT(\"SpecID_\"&K246),F246,1)","v":0},"05.08"]
[null,null,null,null,null,1,null,null,null,0,"05.08"]
[null,null,null,null,null,1,null,null,null,0,"05.08"]
[null,null,null,null,null,1,null,null,null,0,"05.08"]
[null,null,null,null,null,1,null,null,null,0,"05.08"]
[null,null,null,null,null,1,null,null,null,0,"05.08"]
[null,null,null,null,null,1,null,null,null,0,"05.08"]
[null,null,null,null,null,1,null,null,null,0,"05.08"]
[null,null,null,null,null,1,null,null,null,0,"05.08"]
[null,null,null,null,null,1,null,null,null,0,"05.08"]
[null,null,null,null,null,null,null,null,null,null,"05.08"]
[null,null,5.09,{"$f":"INDEX(SpecCodes,I257,4)","v":"Fuel Installations"},null,null,null,null,{"$f":"MATCH(C257,SpecCodeReference,0)","v":594},null,"05.09"]
[null,null,null,null,null,null,null,null,{"$f":"INDEX(ElementID,I257)","v":278},null,"05.09"]
[null,null,null,null,null,null,null,null,null,null,"05.09"]
[null,null,null,null,null,null,null,null,null,null,"05.09"]
[null,null,null,null,null,null,null,null,null,null,{"$f":"IF(ISBLANK(C261),K260,TEXT(C261,\"00.##\"))","v":"05.09"}]
[null,null,null,null,null,null,null,null,null,null,"05.09"]
[null,null,null,null,null,null,null,null,null,null,"05.09"]
[null,null,null,null,null,null,null,null,null,null,"05.09"]
[null,null,null,null,null,null,null,null,null,null,"05.09"]
[null,null,null,null,null,null,null,null,null,null,"05.09"]
[null,null,null,null,null,null,null,null,null,null,"05.09"]
[null,null,null,null,null,null,null,null,null,null,"05.09"]
[null,null,5.0999999999999996,{"$f":"INDEX(SpecCodes,I269,4)","v":"Lift and Conveyor Installations"},null,null,null,null,{"$f":"MATCH(C269,SpecCodeReference,0)","v":595},null,"05.1"]
[null,null,null,null,null,1,null,null,{"$f":"INDEX(ElementID,I269)","v":289},{"$f":"INDEX(INDIRECT(\"SpecID_\"&K270),F270,1)","v":0},"05.1"]
[null,null,null,null,null,1,null,null,null,0,"05.1"]
[null,null,null,null,null,1,null,null,null,0,"05.1"]
[null,null,null,null,null,1,null,null,null,0,"05.1"]
[null,null,null,null,null,1,null,null,null,0,"05.1"]
[null,null,null,null,null,1,null,null,null,0,"05.1"]
[null,null,null,null,null,1,null,null,null,0,"05.1"]
[null,null,null,null,null,1,null,null,null,0,"05.1"]
[null,null,null,null,null,1,null,null,null,0,"05.1"]
[null,null,null,null,null,1,null,null,null,0,"05.1"]
[null,null,null,null,null,null,null,null,null,null,"05.1"]
[null,null,5.1100000000000003,{"$f":"INDEX(SpecCodes,I281,4)","v":"Fire and Lightning Protection"},null,null,null,null,{"$f":"MATCH(C281,SpecCodeReference,0)","v":607},null,"05.11"]
[null,null,null,null,null,1,null,null,{"$f":"INDEX(ElementID,I281)","v":293},{"$f":"INDEX(INDIRECT(\"SpecID_\"&K282),F282,1)","v":0},"05.11"]
[null,null,null,null,null,1,null,null,null,0,"05.11"]
[null,null,null,null,null,1,null,null,null,0,"05.11"]
[null,null,null,null,null,1,null,null,null,0,"05.11"]
[null,null,null,null,null,1,null,null,null,0,"05.11"]
[null,null,null,null,null,1,null,null,null,0,"05.11"]
[null,null,null,null,null,1,null,null,null,0,"05.11"]
[null,null,null,null,null,1,null,null,null,0,"05.11"]
[null,null,null,null,null,1,null,null,null,0,"05.11"]
[null,null,null,null,null,1,null,null,null,0,"05.11"]
[null,null,null,null,null,null,null,null,null,null,"05.11"]
[null,null,5.12,{"$f":"INDEX(SpecCodes,I293,4)","v":"Communications and Security Installations"},null,null,null,null,{"$f":"MATCH(C293,SpecCodeReference,0)","v":613},null,"05.12"]
[null,null,null,null,null,1,null,null,{"$f":"INDEX(ElementID,I293)","v":297},{"$f":"INDEX(INDIRECT(\"SpecID_\"&K294),F294,1)","v":0},"05.12"]
[null,null,null,null,null,1,null,null,null,0,"05.12"]
[null,null,null,null,null,1,null,null,null,0,"05.12"]
[null,null,null,null,null,1,null,null,null,0,"05.12"]
[null,null,null,null,null,1,null,null,null,0,"05.12"]
[null,null,null,null,null,1,null,null,null,0,"05.12"]
[null,null,null,null,null,1,null,null,null,0,"05.12"]
[null,null,null,null,null,1,null,null,null,0,"05.12"]
[null,null,null,null,null,1,null,null,null,0,"05.12"]
[null,null,null,null,null,1,null,null,null,0,"05.12"]
[null,null,null,null,null,null,null,null,null,null,"05.12"]
[null,null,5.13,{"$f":"INDEX(SpecCodes,I305,4)","v":"Special Installations"},null,null,null,null,{"$f":"MATCH(C305,SpecCodeReference,0)","v":623},null,"05.13"]
[null,null,null,null,null,1,null,null,{"$f":"INDEX(ElementID,I305)","v":303},{"$f":"INDEX(INDIRECT(\"SpecID_\"&K306),F306,1)","v":0},"05.13"]
[null,null,null,null,null,1,null,null,null,0,"05.13"]
[null,null,null,null,null,1,null,null,null,0,"05.13"]
[null,null,null,null,null,1,null,null,null,0,"05.13"]
[null,null,null,null,null,1,null,null,null,0,"05.13"]
[null,null,null,null,null,1,null,null,null,0,"05.13"]
[null,null,null,null,null,1,null,null,null,0,"05.13"]
[null,null,null,null,null,1,null,null,null,0,"05.13"]
[null,null,null,null,null,1,null,null,null,0,"05.13"]
[null,null,null,null,null,1,null,null,null,0,"05.13"]
[null,null,null,null,null,null,null,null,null,null,"05.13"]
[null,null,5.14,{"$f":"INDEX(SpecCodes,I317,4)","v":"Builder's Work in Connection with Services (BWIC)"},null,null,null,null,{"$f":"MATCH(C317,SpecCodeReference,0)","v":628},null,"05.14"]
[null,null,null,null,null,null,null,null,{"$f":"INDEX(ElementID,I317)","v":304},null,"05.14"]
[null,null,null,null,null,null,null,null,null,null,"05.14"]
[null,null,null,null,null,null,null,null,null,null,"05.14"]
[null,null,null,null,null,null,null,null,null,null,"05.14"]
[null,null,null,null,null,null,null,null,null,null,"05.14"]
[null,null,null,null,null,null,null,null,null,null,"05.14"]
[null,null,null,null,null,null,null,null,null,null,"05.14"]
[null,null,null,null,null,null,null,null,null,null,{"$f":"IF(ISBLANK(C325),K324,TEXT(C325,\"00.##\"))","v":"05.14"}]
[null,null,null,null,null,null,null,null,null,null,"05.14"]
[null,null,null,null,null,null,null,null,null,null,"05.14"]
[null,null,null,null,null,null,null,null,null,null,"05.14"]
[null,null,6,{"$f":"INDEX(SpecCodes,I329,4)","v":"Prefabricated Buildings and Building Units"},null,null,null,null,{"$f":"MATCH(C329,SpecCodeReference,0)","v":629},null,"06."]
[null,null,null,null,null,null,null,null,{"$f":"INDEX(ElementID,I329)","v":309},null,"06."]
[null,null,null,null,null,null,null,null,null,null,"06."]
[null,null,null,null,null,null,null,null,null,null,"06."]
[null,null,null,null,null,null,null,null,null,null,"06."]
[null,null,null,null,null,null,null,null,null,null,"06."]
[null,null,null,null,null,null,null,null,null,null,"06."]
[null,null,null,null,null,null,null,null,null,null,"06."]
[null,null,null,null,null,null,null,null,null,null,"06."]
[null,null,null,null,null,null,null,null,null,null,"06."]
[null,null,null,null,null,null,null,null,null,null,"06."]
[null,null,null,null,null,null,null,null,null,null,"06."]
[null,null,7,{"$f":"INDEX(SpecCodes,I341,4)","v":"Work to Existing Building"},null,null,null,null,{"$f":"MATCH(C341,SpecCodeReference,0)","v":630},null,"07."]
[null,null,null,null,null,1,null,null,{"$f":"INDEX(ElementID,I341)","v":311},{"$f":"INDEX(INDIRECT(\"SpecID_\"&K342),F342,1)","v":0},"07."]
[null,null,null,null,null,1,null,null,null,0,"07."]
[null,null,null,null,null,1,null,null,null,0,"07."]
[null,null,null,null,null,1,null,null,null,0,"07."]
[null,null,null,null,null,1,null,null,null,0,"07."]
[null,null,null,null,null,1,null,null,null,0,"07."]
[null,null,null,null,null,1,null,null,null,0,"07."]
[null,null,null,null,null,1,null,null,null,0,"07."]
[null,null,null,null,null,1,null,null,null,0,"07."]
[null,null,null,null,null,1,null,null,null,0,"07."]
[null,null,null,null,null,null,null,null,null,null,"07."]
[null,null,8.01,{"$f":"INDEX(SpecCodes,I353,4)","v":"Site Preparation Works"},null,null,null,null,{"$f":"MATCH(C353,SpecCodeReference,0)","v":633},null,"08.01"]
[null,null,null,null,null,1,null,null,{"$f":"INDEX(ElementID,I353)","v":315},{"$f":"INDEX(INDIRECT(\"SpecID_\"&K354),F354,1)","v":0},"08.01"]
[null,null,null,null,null,1,null,null,null,0,"08.01"]
[null,null,null,null,null,1,null,null,null,0,"08.01"]
[null,null,null,null,null,1,null,null,null,0,"08.01"]
[null,null,null,null,null,1,null,null,null,0,"08.01"]
[null,null,null,null,null,1,null,null,null,0,"08.01"]
[null,null,null,null,null,1,null,null,null,0,"08.01"]
[null,null,null,null,null,1,null,null,null,0,"08.01"]
[null,null,null,null,null,1,null,null,null,0,"08.01"]
[null,null,null,null,null,1,null,null,null,0,"08.01"]
[null,null,null,null,null,null,null,null,null,null,"08.01"]
[null,null,8.02,{"$f":"INDEX(SpecCodes,I365,4)","v":"Roads, Paths, Pavings and Surfacings"},null,null,null,null,{"$f":"MATCH(C365,SpecCodeReference,0)","v":636},null,"08.02"]
[null,null,null,null,null,1,null,null,{"$f":"INDEX(ElementID,I365)","v":318},{"$f":"INDEX(INDIRECT(\"SpecID_\"&K366),F366,1)","v":0},"08.02"]
[null,null,null,null,null,1,null,null,null,0,"08.02"]
[null,null,null,null,null,1,null,null,null,0,"08.02"]
[null,null,null,null,null,1,null,null,null,0,"08.02"]
[null,null,null,null,null,1,null,null,null,0,"08.02"]
[null,null,null,null,null,1,null,null,null,0,"08.02"]
[null,null,null,null,null,1,null,null,null,0,"08.02"]
[null,null,null,null,null,1,null,null,null,0,"08.02"]
[null,null,null,null,null,1,null,null,null,0,"08.02"]
[null,null,null,null,null,1,null,null,null,0,"08.02"]
[null,null,null,null,null,null,null,null,null,null,"08.02"]
[null,null,8.0299999999999994,{"$f":"INDEX(SpecCodes,I377,4)","v":"Soft Landscaping, Planting and Irrigation Systems"},null,null,null,null,{"$f":"MATCH(C377,SpecCodeReference,0)","v":647},null,"08.03"]
[null,null,null,null,null,1,null,null,{"$f":"INDEX(ElementID,I377)","v":322},{"$f":"INDEX(INDIRECT(\"SpecID_\"&K378),F378,1)","v":0},"08.03"]
[null,null,null,null,null,1,null,null,null,0,"08.03"]
[null,null,null,null,null,1,null,null,null,0,"08.03"]
[null,null,null,null,null,1,null,null,null,0,"08.03"]
[null,null,null,null,null,1,null,null,null,0,"08.03"]
[null,null,null,null,null,1,null,null,null,0,"08.03"]
[null,null,null,null,null,1,null,null,null,0,"08.03"]
[null,null,null,null,null,1,null,null,null,0,"08.03"]
[null,null,null,null,null,1,null,null,null,0,"08.03"]
[null,null,null,null,null,1,null,null,null,0,"08.03"]
[null,null,null,null,null,null,null,null,null,null,"08.03"]
[null,null,8.0399999999999991,{"$f":"INDEX(SpecCodes,I389,4)","v":"Fencing, Railings and Walls"},null,null,null,null,{"$f":"MATCH(C389,SpecCodeReference,0)","v":649},null,{"$f":"IF(ISBLANK(C389),K388,TEXT(C389,\"00.##\"))","v":"08.04"}]
[null,null,null,null,null,1,null,null,{"$f":"INDEX(ElementID,I389)","v":327},{"$f":"INDEX(INDIRECT(\"SpecID_\"&K390),F390,1)","v":0},"08.04"]
[null,null,null,null,null,1,null,null,null,0,"08.04"]
[null,null,null,null,null,1,null,null,null,0,"08.04"]
[null,null,null,null,null,1,null,null,null,0,"08.04"]
[null,null,null,null,null,1,null,null,null,0,"08.04"]
[null,null,null,null,null,1,null,null,null,0,"08.04"]
[null,null,null,null,null,1,null,null,null,0,"08.04"]
[null,null,null,null,null,1,null,null,null,0,"08.04"]
[null,null,null,null,null,1,null,null,null,0,"08.04"]
[null,null,null,null,null,1,null,null,null,0,"08.04"]
[null,null,null,null,null,null,null,null,null,null,"08.04"]
[null,null,8.0500000000000007,{"$f":"INDEX(SpecCodes,I401,4)","v":"External Fixtures"},null,null,null,null,{"$f":"MATCH(C401,SpecCodeReference,0)","v":661},null,"08.05"]
[null,null,null,null,null,null,null,null,{"$f":"INDEX(ElementID,I401)","v":330},null,"08.05"]
[null,null,null,null,null,null,null,null,null,null,"08.05"]
[null,null,null,null,null,null,null,null,null,null,"08.05"]
[null,null,null,null,null,null,null,null,null,null,"08.05"]
[null,null,null,null,null,null,null,null,null,null,"08.05"]
[null,null,null,null,null,null,null,null,null,null,"08.05"]
[null,null,null,null,null,null,null,null,null,null,"08.05"]
[null,null,null,null,null,null,null,null,null,null,"08.05"]
[null,null,null,null,null,null,null,null,null,null,"08.05"]
[null,null,null,null,null,null,null,null,null,null,"08.05"]
[null,null,null,null,null,null,null,null,null,null,"08.05"]
[null,null,8.06,{"$f":"INDEX(SpecCodes,I413,4)","v":"External Drainage"},null,null,null,null,{"$f":"MATCH(C413,SpecCodeReference,0)","v":662},null,"08.06"]
[null,null,null,null,null,1,null,null,{"$f":"INDEX(ElementID,I413)","v":335},{"$f":"INDEX(INDIRECT(\"SpecID_\"&K414),F414,1)","v":0},"08.06"]
[null,null,null,null,null,null,null,null,null,null,"08.06"]
[null,null,null,null,null,null,null,null,null,null,"08.06"]
[null,null,null,null,null,null,null,null,null,null,"08.06"]
[null,null,null,null,null,null,null,null,null,null,"08.06"]
[null,null,null,null,null,null,null,null,null,null,"08.06"]
[null,null,null,null,null,null,null,null,null,null,"08.06"]
[null,null,null,null,null,null,null,null,null,null,"08.06"]
[null,null,null,null,null,null,null,null,null,null,"08.06"]
[null,null,null,null,null,null,null,null,null,null,"08.06"]
[null,null,null,null,null,null,null,null,null,null,"08.06"]
[null,null,8.07,{"$f":"INDEX(SpecCodes,I425,4)","v":"External Services"},null,null,null,null,{"$f":"MATCH(C425,SpecCodeReference,0)","v":664},null,"08.07"]
[null,null,null,null,null,1,null,null,{"$f":"INDEX(ElementID,I425)","v":347},{"$f":"INDEX(INDIRECT(\"SpecID_\"&K426),F426,1)","v":0},"08.07"]
[null,null,null,null,null,1,null,null,null,{"$f":"INDEX(INDIRECT(\"SpecID_\"&K427),F427,1)","v":0},"08.07"]
[null,null,null,null,null,null,null,null,null,null,"08.07"]
[null,null,null,null,null,null,null,null,null,null,"08.07"]
[null,null,null,null,null,null,null,null,null,null,"08.07"]
[null,null,null,null,null,null,null,null,null,null,"08.07"]
[null,null,null,null,null,null,null,null,null,null,"08.07"]
[null,null,null,null,null,null,null,null,null,null,"08.07"]
[null,null,null,null,null,null,null,null,null,null,"08.07"]
[null,null,null,null,null,null,null,null,null,null,"08.07"]
[null,null,null,null,null,null,null,null,null,null,"08.07"]
[null,null,8.08,{"$f":"INDEX(SpecCodes,I437,4)","v":"Minor Building Works and Ancillary Buildings"},null,null,null,null,{"$f":"MATCH(C437,SpecCodeReference,0)","v":667},null,"08.08"]
[null,null,null,null,null,1,null,null,{"$f":"INDEX(ElementID,I437)","v":351},{"$f":"INDEX(INDIRECT(\"SpecID_\"&K438),F438,1)","v":0},"08.08"]
[null,null,null,null,null,1,null,null,null,0,"08.08"]
[null,null,null,null,null,1,null,null,null,0,"08.08"]
[null,null,null,null,null,1,null,null,null,0,"08.08"]
[null,null,null,null,null,1,null,null,null,0,"08.08"]
[null,null,null,null,null,1,null,null,null,0,"08.08"]
[null,null,null,null,null,1,null,null,null,0,"08.08"]
[null,null,null,null,null,1,null,null,null,0,"08.08"]
[null,null,null,null,null,1,null,null,null,0,"08.08"]
[null,null,null,null,null,1,null,null,null,0,"08.08"]
[null,null,null,null,null,null,null,null,null,null,"08.08"]
[null,null,0.01,{"$f":"INDEX(SpecCodes,I449,4)","v":"Toxic/Hazardous/Contaminated Material Treatment"},null,null,null,null,{"$f":"MATCH(C449,SpecCodeReference,0)","v":673},null,{"$f":"IF(ISBLANK(C449),K532,TEXT(C449,\"00.##\"))","v":"00.01"}]
[null,null,null,null,null,null,null,null,{"$f":"INDEX(ElementID,I449)","v":356},null,{"$f":"IF(ISBLANK(C450),K449,TEXT(C450,\"00.##\"))","v":"00.01"}]
[null,null,null,null,null,null,null,null,null,null,"00.01"]
[null,null,null,null,null,null,null,null,null,null,"00.01"]
[null,null,null,null,null,null,null,null,null,null,"00.01"]
[null,null,null,null,null,null,null,null,null,null,"00.01"]
[null,null,null,null,null,null,null,null,null,null,"00.01"]
[null,null,null,null,null,null,null,null,null,null,"00.01"]
[null,null,null,null,null,null,null,null,null,null,"00.01"]
[null,null,null,null,null,null,null,null,null,null,"00.01"]
[null,null,null,null,null,null,null,null,null,null,"00.01"]
[null,null,null,null,null,null,null,null,null,null,"00.01"]
[null,null,0.02,{"$f":"INDEX(SpecCodes,I461,4)","v":"Major Demolition Works"},null,null,null,null,{"$f":"MATCH(C461,SpecCodeReference,0)","v":674},null,{"$f":"IF(ISBLANK(C461),K460,TEXT(C461,\"00.##\"))","v":"00.02"}]
[null,null,null,null,null,null,null,null,{"$f":"INDEX(ElementID,I461)","v":359},null,"00.02"]
[null,null,null,null,null,null,null,null,null,null,"00.02"]
[null,null,null,null,null,null,null,null,null,null,"00.02"]
[null,null,null,null,null,null,null,null,null,null,"00.02"]
[null,null,null,null,null,null,null,null,null,null,"00.02"]
[null,null,null,null,null,null,null,null,null,null,"00.02"]
[null,null,null,null,null,null,null,null,null,null,"00.02"]
[null,null,null,null,null,null,null,null,null,null,"00.02"]
[null,null,null,null,null,null,null,null,null,null,"00.02"]
[null,null,null,null,null,null,null,null,null,null,"00.02"]
[null,null,null,null,null,null,null,null,null,null,"00.02"]
[null,null,0.03,{"$f":"INDEX(SpecCodes,I473,4)","v":"Temporary Support to Adjacent Structures"},null,null,null,null,{"$f":"MATCH(C473,SpecCodeReference,0)","v":675},null,{"$f":"IF(ISBLANK(C473),K472,TEXT(C473,\"00.##\"))","v":"00.03"}]
[null,null,null,null,null,null,null,null,{"$f":"INDEX(ElementID,I473)","v":360},null,"00.03"]
[null,null,null,null,null,null,null,null,null,null,"00.03"]
[null,null,null,null,null,null,null,null,null,null,"00.03"]
[null,null,null,null,null,null,null,null,null,null,"00.03"]
[null,null,null,null,null,null,null,null,null,null,"00.03"]
[null,null,null,null,null,null,null,null,null,null,"00.03"]
[null,null,null,null,null,null,null,null,null,null,"00.03"]
[null,null,null,null,null,null,null,null,null,null,"00.03"]
[null,null,null,null,null,null,null,null,null,null,"00.03"]
[null,null,null,null,null,null,null,null,null,null,"00.03"]
[null,null,null,null,null,null,null,null,null,null,"00.03"]
[null,null,0.04,{"$f":"INDEX(SpecCodes,I485,4)","v":"Specialist Groundworks"},null,null,null,null,{"$f":"MATCH(C485,SpecCodeReference,0)","v":676},null,{"$f":"IF(ISBLANK(C485),K484,TEXT(C485,\"00.##\"))","v":"00.04"}]
[null,null,null,null,null,null,null,null,{"$f":"INDEX(ElementID,I485)","v":364},null,"00.04"]
[null,null,null,null,null,null,null,null,null,null,"00.04"]
[null,null,null,null,null,null,null,null,null,null,"00.04"]
[null,null,null,null,null,null,null,null,null,null,"00.04"]
[null,null,null,null,null,null,null,null,null,null,"00.04"]
[null,null,null,null,null,null,null,null,null,null,"00.04"]
[null,null,null,null,null,null,null,null,null,null,"00.04"]
[null,null,null,null,null,null,null,null,null,null,"00.04"]
[null,null,null,null,null,null,null,null,null,null,"00.04"]
[null,null,null,null,null,null,null,null,null,null,"00.04"]
[null,null,null,null,null,null,null,null,null,null,"00.04"]
[null,null,0.05,{"$f":"INDEX(SpecCodes,I497,4)","v":"Temporary Diversion Works"},null,null,null,null,{"$f":"MATCH(C497,SpecCodeReference,0)","v":677},null,{"$f":"IF(ISBLANK(C497),K496,TEXT(C497,\"00.##\"))","v":"00.05"}]
[null,null,null,null,null,null,null,null,{"$f":"INDEX(ElementID,I497)","v":365},null,"00.05"]
[null,null,null,null,null,null,null,null,null,null,"00.05"]
[null,null,null,null,null,null,null,null,null,null,"00.05"]
[null,null,null,null,null,null,null,null,null,null,"00.05"]
[null,null,null,null,null,null,null,null,null,null,"00.05"]
[null,null,null,null,null,null,null,null,null,null,"00.05"]
[null,null,null,null,null,null,null,null,null,null,"00.05"]
[null,null,null,null,null,null,null,null,null,null,"00.05"]
[null,null,null,null,null,null,null,null,null,null,"00.05"]
[null,null,null,null,null,null,null,null,null,null,"00.05"]
[null,null,null,null,null,null,null,null,null,null,"00.05"]
[null,null,0.06,{"$f":"INDEX(SpecCodes,I509,4)","v":"Extraordinary Site Investigation"},null,null,null,null,{"$f":"MATCH(C509,SpecCodeReference,0)","v":678},null,{"$f":"IF(ISBLANK(C509),K508,TEXT(C509,\"00.##\"))","v":"00.06"}]
[null,null,null,null,null,null,null,null,{"$f":"INDEX(ElementID,I509)","v":369},null,"00.06"]
[null,null,null,null,null,null,null,null,null,null,"00.06"]
[null,null,null,null,null,null,null,null,null,null,"00.06"]
[null,null,null,null,null,null,null,null,null,null,"00.06"]
[null,null,null,null,null,null,null,null,null,null,"00.06"]
[null,null,null,null,null,null,null,null,null,null,"00.06"]
[null,null,null,null,null,null,null,null,null,null,"00.06"]
[null,null,null,null,null,null,null,null,null,null,"00.06"]
[null,null,null,null,null,null,null,null,null,null,"00.06"]
[null,null,null,null,null,null,null,null,null,null,"00.06"]
[null,null,null,null,null,null,null,null,null,null,"00.06"]
[null,null,9,{"$f":"INDEX(SpecCodes,I521,4)","v":"Preliminaries"},{"$f":"IF(CBContractSum-(CBPreliminaries+CBRisk+CBOHP+CBFees)>0,CBPreliminaries/(CBContractSum-(CBPreliminaries+CBOHP+CBRisk+CBFees)),0)","v":0},null,null,null,{"$f":"MATCH(C521,SpecCodeReference,0)","v":679},null,{"$f":"IF(ISBLANK(C521),K448,TEXT(C521,\"00.##\"))","v":"09."}]
[null,null,null,{"$f":"IF(E521>0,TEXT(E521,\"#0.00%\")&\" of remainder of Contract Sum (excluding\"&IF(CBOHP>0,\" Overheads and profit\",\"\")&IF(CBRisk>0,\", Risk (client contingencies)\",\"\")&IF(CBFees>0,\", Contractor design fees\",\"\")&\").\",\"\")","v":""},null,null,null,null,{"$f":"INDEX(ElementID,I521)","v":373},null,{"$f":"IF(ISBLANK(C522),K521,TEXT(C522,\"00.##\"))","v":"09."}]
[null,null,null,null,null,null,null,null,null,null,"09."]
[null,null,null,null,null,null,null,null,null,null,"09."]
[null,null,null,null,null,null,null,null,null,null,"09."]
[null,null,null,null,null,null,null,null,null,null,"09."]
[null,null,null,null,null,null,null,null,null,null,"09."]
[null,null,null,null,null,null,null,null,null,null,"09."]
[null,null,null,null,null,null,null,null,null,null,"09."]
[null,null,null,null,null,null,null,null,null,null,"09."]
[null,null,null,null,null,null,null,null,null,null,"09."]
[null,null,null,null,null,null,null,null,null,null,"09."]
[null,null,10,{"$f":"INDEX(SpecCodes,I533,4)","v":"Main Contractor's Overheads and Profit"},{"$f":"IF(CBContractSum-(CBPreliminaries+CBOHP+CBRisk+CBFees)>0,CBOHP/(CBContractSum-(CBPreliminaries+CBOHP+CBRisk+CBFees)),0)","v":0},null,null,null,{"$f":"MATCH(C533,SpecCodeReference,0)","v":680},null,"10."]
[null,null,null,{"$f":"IF(E533>0,TEXT(E533,\"#0.00%\")&\" of remainder of Contract Sum (excluding\"&IF(CBRisk>0,\" Risk (client contingencies)\",\"\")&IF(CBFees>0,\", Contractor design fees\",\"\")&\").\",\"\")","v":""},null,null,null,null,{"$f":"INDEX(ElementID,I533)","v":376},null,"10."]
[null,null,null,null,null,null,null,null,null,null,"10."]
[null,null,null,null,null,null,null,null,null,null,"10."]
[null,null,null,null,null,null,null,null,null,null,"10."]
[null,null,null,null,null,null,null,null,null,null,"10."]
[null,null,null,null,null,null,null,null,null,null,"10."]
[null,null,null,null,null,null,null,null,null,null,"10."]
[null,null,null,null,null,null,null,null,null,null,"10."]
[null,null,null,null,null,null,null,null,null,null,"10."]
[null,null,null,null,null,null,null,null,null,null,"10."]
[null,null,null,null,null,null,null,null,null,null,"10."]
[null,null,11,{"$f":"INDEX(SpecCodes,I545,4)","v":"Project/Design Team Fees"},{"$f":"IF(CBContractSum-(CBRisk+CBFees)>0,CBFees/(CBContractSum-(CBRisk+CBFees)),0)","v":0},null,null,null,{"$f":"MATCH(C545,SpecCodeReference,0)","v":681},null,"11."]
[null,null,null,{"$f":"IF(E545>0,TEXT(E545,\"#0.00%\")&\" of remainder of Contract Sum (excluding Preliminaries).\",\"\")","v":""},null,null,null,null,{"$f":"INDEX(ElementID,I545)","v":381},null,"11."]
[null,null,null,null,null,null,null,null,null,null,"11."]
[null,null,null,null,null,null,null,null,null,null,"11."]
[null,null,null,null,null,null,null,null,null,null,"11."]
[null,null,null,null,null,null,null,null,null,null,"11."]
[null,null,null,null,null,null,null,null,null,null,"11."]
[null,null,null,null,null,null,null,null,null,null,"11."]
[null,null,null,null,null,null,null,null,null,null,"11."]
[null,null,null,null,null,null,null,null,null,null,"11."]
[null,null,null,null,null,null,null,null,null,null,"11."]
[null,null,null,null,null,null,null,null,null,null,"11."]
[null,null,12,{"$f":"INDEX(SpecCodes,I557,4)","v":"Other Development/Project Costs"},null,null,null,null,{"$f":"MATCH(C557,SpecCodeReference,0)","v":682},null,"12."]
[null,null,null,null,null,null,null,null,{"$f":"INDEX(ElementID,I557)","v":382},null,"12."]
[null,null,null,null,null,null,null,null,null,null,"12."]
[null,null,null,null,null,null,null,null,null,null,"12."]
[null,null,null,null,null,null,null,null,null,null,"12."]
[null,null,null,null,null,null,null,null,null,null,"12."]
[null,null,null,null,null,null,null,null,null,null,"12."]
[null,null,null,null,null,null,null,null,null,null,"12."]
[null,null,null,null,null,null,null,null,null,null,"12."]
[null,null,null,null,null,null,null,null,null,null,"12."]
[null,null,null,null,null,null,null,null,null,null,"12."]
[null,null,null,null,null,null,null,null,null,null,"12."]
[null,null,13,{"$f":"INDEX(SpecCodes,I569,4)","v":"Risk (Clients Contingencies)"},{"$f":"IF(CBContractSum-(CBRisk)>0,CBRisk/(CBContractSum-(CBRisk)),0)","v":0},null,null,null,{"$f":"MATCH(C569,SpecCodeReference,0)","v":683},null,"13."]
[null,null,null,{"$f":"IF(E569>0,TEXT(E569,\"#0.00%\")&\" of remainder of Contract Sum.\",\"\")","v":""},null,null,null,null,{"$f":"INDEX(ElementID,I569)","v":387},null,"13."]
[null,null,null,null,null,null,null,null,null,null,"13."]
[null,null,null,null,null,null,null,null,null,null,"13."]
[null,null,null,null,null,null,null,null,null,null,"13."]
[null,null,null,null,null,null,null,null,null,null,"13."]
[null,null,null,null,null,null,null,null,null,null,"13."]
[null,null,null,null,null,null,null,null,null,null,"13."]
[null,null,null,null,null,null,null,null,null,null,"13."]
[null,null,null,null,null,null,null,null,null,null,"13."]
[null,null,null,null,null,null,null,null,null,null,"13."]

{"sheet":"Abstract","index":4,"n_rows":6,"n_cols":99,"rows_kept":6,"cut":false,"hidden":false,"merged":[[3,59,3,60],[3,61,3,62],[3,63,3,64],[3,65,3,66],[3,67,3,68],[3,97,3,98],[3,69,3,70],[3,71,3,72],[3,73,3,74],[3,75,3,76],[3,89,3,90],[3,91,3,92],[3,93,3,94],[3,95,3,96],[3,77,3,78],[3,79,3,80],[3,81,3,82],[3,83,3,84],[3,85,3,86],[3,87,3,88],[3,57,3,58],[3,35,3,36],[3,37,3,38],[3,39,3,40],[3,41,3,42],[3,43,3,44],[3,45,3,46],[3,47,3,48],[3,49,3,50],[3,51,3,52],[3,53,3,54],[3,55,3,56],[3,33,3,34],[3,11,3,12],[3,13,3,14],[3,15,3,16],[3,17,3,18],[3,19,3,20],[3,21,3,22],[3,23,3,24],[3,25,3,26],[3,27,3,28],[3,29,3,30],[3,31,3,32],[0,1,0,9],[3,1,3,2],[3,3,3,4],[3,5,3,6],[3,7,3,8],[3,9,3,10],[1,1,1,2],[2,1,2,2]]}
["Title:",{"$f":"JobTitle","v":0}]
["Reference:",{"$f":"AnalysisReference","v":0}]
["Difference:",{"$f":"CU6","v":0}]
["Element","1 Substructure",null,"2.01 Frame",null,"2.02 Upper Floors",null,"2.03 Roof",null,"2.04 Stairs",null,"2.05 External Walls",null,"2.06 External Windows and Doors",null,"2.07 Internal Walls and Partitions",null,"2.08 Internal Doors",null,"3.01 Wall Finishes",null,"3.02 Floor Finishes",null,"3.03 Ceiling Finishes",null,"4 Fittings, Furnishings and Equipment",null,"5.01 Sanitary Installations",null,"5.02 Services Equipment",null,"5.03 Disposal Installations",null,"5.04 Water Installations",null,"5.05 Heat Source",null,"5.06 Space Heating and Air Conditioning",null,"5.07 Ventilating Systems",null,"5.08 Electrical Installations",null,"5.09 Fuel Installations",null,"5.1 Lift and Conveyor Installations",null,"5.11 Fire and Lightning Protection",null,"5.12 Communications and Security Installations",null,"5.13 Special Installations",null,"5.14 Builder's Work in Connection with Services (BWIC)",null,"6 Prefabricated Buildings and Building Units",null,"7 Work to Existing Building",null,"8.01 Site Preparation Works",null,"8.02 Roads, Paths, Pavings and Surfacings",null,"8.03 Soft Landscaping, Planting and Irrigation Systems",null,"8.04 Fencing, Railings and Walls",null,"8.05 External Fixtures",null,"8.06 External Drainage",null,"8.07 External Services",null,"8.08 Minor Building Works and Ancillary Buildings",null,"0.01 Toxic/Hazardous/Contaminated Material Treatment",null,"0.02 Major Demolition Works",null,"0.03 Temporary Support to Adjacent Structures",null,"0.04 Specialist Groundworks",null,"0.05 Temporary Diversion Works",null,"0.06 Extraordinary Site Investigation",null,"9 Preliminaries",null,"10 Main Contractor's Overheads and Profit",null,"11 Project/Design Team Fees",null,"12 Other Development/Project Costs",null,"13 Risk (Clients Contingencies)",null,"Contract Sum"]
["Total",null,{"$f":"SUM(C7:C101)","v":0},null,{"$f":"SUM(E7:E101)","v":0},null,{"$f":"SUM(G7:G101)","v":0},null,{"$f":"SUM(I7:I101)","v":0},null,{"$f":"SUM(K7:K101)","v":0},null,{"$f":"SUM(M7:M101)","v":0},null,{"$f":"SUM(O7:O101)","v":0},null,{"$f":"SUM(Q7:Q101)","v":0},null,{"$f":"SUM(S7:S101)","v":0},null,{"$f":"SUM(U7:U101)","v":0},null,{"$f":"SUM(W7:W101)","v":0},null,{"$f":"SUM(Y7:Y101)","v":0},null,{"$f":"SUM(AA7:AA101)","v":0},null,{"$f":"SUM(AC7:AC101)","v":0},null,{"$f":"SUM(AE7:AE101)","v":0},null,{"$f":"SUM(AG7:AG101)","v":0},null,{"$f":"SUM(AI7:AI101)","v":0},null,{"$f":"SUM(AK7:AK101)","v":0},null,{"$f":"SUM(AM7:AM101)","v":0},null,{"$f":"SUM(AO7:AO101)","v":0},null,{"$f":"SUM(AQ7:AQ101)","v":0},null,{"$f":"SUM(AS7:AS101)","v":0},null,{"$f":"SUM(AU7:AU101)","v":0},null,{"$f":"SUM(AW7:AW101)","v":0},null,{"$f":"SUM(AY7:AY101)","v":0},null,{"$f":"SUM(BA7:BA101)","v":0},null,{"$f":"SUM(BC7:BC101)","v":0},null,{"$f":"SUM(BE7:BE101)","v":0},null,{"$f":"SUM(BG7:BG101)","v":0},null,{"$f":"SUM(BI7:BI101)","v":0},null,{"$f":"SUM(BK7:BK101)","v":0},null,{"$f":"SUM(BM7:BM101)","v":0},null,{"$f":"SUM(BO7:BO101)","v":0},null,{"$f":"SUM(BQ7:BQ101)","v":0},null,{"$f":"SUM(BS7:BS101)","v":0},null,{"$f":"SUM(BU7:BU101)","v":0},null,{"$f":"SUM(BW7:BW101)","v":0},null,{"$f":"SUM(BY7:BY101)","v":0},null,{"$f":"SUM(CA7:CA101)","v":0},null,{"$f":"SUM(CC7:CC101)","v":0},null,{"$f":"SUM(CE7:CE101)","v":0},null,{"$f":"SUM(CG7:CG101)","v":0},null,{"$f":"SUM(CI7:CI101)","v":0},null,{"$f":"SUM(CK7:CK101)","v":0},null,{"$f":"SUM(CM7:CM101)","v":0},null,{"$f":"SUM(CO7:CO101)","v":0},null,{"$f":"SUM(CQ7:CQ101)","v":0},null,{"$f":"SUM(CS7:CS101)","v":0},null,{"$f":"SUM(B5:CS5)","v":0}]
[null,"Page","Amount","Page","Amount","Page","Amount","Page","Amount","Page","Amount","Page","Amount","Page","Amount","Page","Amount","Page","Amount","Page ","Amount","Page","Amount","Page","Amount","Page","Amount","Page","Amount","Page","Amount","Page","Amount","Page","Amount","Page","Amount","Page","Amount","Page","Amount","Page","Amount","Page","Amount","Page","Amount","Page","Amount","Page","Amount","Page","Amount","Page","Amount","Page","Amount","Page","Amount","Page","Amount","Page","Amount","Page","Amount","Page","Amount","Page","Amount","Page","Amount","Page","Amount","Page","Amount","Page","Amount","Page","Amount","Page","Amount","Page","Amount","Page","Amount","Page","Amount","Page","Amount","Page","Amount","Page","Amount","Page","Amount","Page","Amount","Difference",{"$f":"CU5+OHPAddition+PCSumsTotal+PCSumsOHP+ProvSumsTotal+ProvSumsOHP+AdjustLateQuoteAddition-ContractSum","v":0}]

{"sheet":"AnalysisSpreadCosts","index":5,"n_rows":93,"n_cols":27,"rows_kept":93,"cut":false,"hidden":false,"merged":[[0,14,0,18],[1,14,1,18],[1,22,1,23],[6,21,6,22],[0,6,0,10]]}
[null,null,"Spread over:",null,null,null,"measured work only",null,null,null,null,null,null,"ANALYSIS REF:",{"$f":"AnalysisReference","v":0},null,null,null,null,null,null,null,null,null,null,null,{"$f":"MATCH(G1,$AA$9:$AA$11,0)","v":1}]
[null,null,null,null,null,"FLOOR AREA:",{"$f":"GIFAText","v":0},"m2",null,null,null,null,null,"CONTRACT SUM:",{"$f":"ContractSumText","v":0}]
[]
[null,null,"BILL/ELEMENT","Legacy key","Input element","Costs included in","Cost Analysis",null,"From Abstract","Measured  Work","Measured  Work","Measured  Work","Measured  Work","Adjustments","Prov Sums","Prov Sums OHP","PC Sums","PC Sums OHP","Adjust","Adjust Late Quote"]
[]
[null,null,null,null,null,null,null,null,null,null,null,null,null,{"$f":"CHOOSE(SpreadOption,SUM($I$71:$M$71),SUM($I$71:$M$73))","v":0},null,null,null,null,null,{"$f":"CHOOSE(SpreadOption,SUM($I$71:$S$71),SUM($I$71:$S$73))","v":0}]
[null,1,"SUBSTRUCTURE",310,1,null,{"$f":"SUM(I7:T7)","v":0},null,{"$f":"Abstract!$C$5","v":0},null,null,null,null,{"$f":"IF(OHPAcross>0,(SUM(I7:M7)/OHPAcross*OHPAddition),\"\")","v":""},null,{"$f":"IF(ISERROR(O7/O$71*P$5),\"\",O7/O$71*P$5)","v":""},null,{"$f":"IF(ISERROR(Q7/Q$71*R$5),\"\",Q7/Q$71*R$5)","v":""},null,{"$f":"IF(AdjustLateQuoteAcross>0,SUM(I7:S7)/AdjustLateQuoteAcross*AdjustLateQuoteAddition,\"\")","v":""},null,"Contract Breakdown"]
[null,null,null,null,0]
[null,2,"SUPERSTRUCTURE",400,0,null,null,null,null,null,null,null,null,null,null,null,null,null,null,null,null,"Measured work",{"$f":"W16-SUM(W10:W15)","v":0},null,null,null,"measured work only"]
[null,2.0099999999999998,"Frame",320,1,null,{"$f":"SUM(I10:T10)","v":0},null,{"$f":"Abstract!$E$5","v":0},null,null,null,null,{"$f":"IF(OHPAcross>0,(SUM(I10:M10)/OHPAcross*OHPAddition),\"\")","v":""},null,{"$f":"IF(ISERROR(O10/O$71*P$5),\"\",O10/O$71*P$5)","v":""},null,{"$f":"IF(ISERROR(Q10/Q$71*R$5),\"\",Q10/Q$71*R$5)","v":""},null,{"$f":"IF(AdjustLateQuoteAcross>0,SUM(I10:S10)/AdjustLateQuoteAcross*AdjustLateQuoteAddition,\"\")","v":""},null,"Provisional sums",{"$f":"O71","v":0},null,null,null,"measured work and prelims"]
[null,2.02,"Upper Floors",330,1,null,0,null,{"$f":"Abstract!$G$5","v":0},null,null,null,null,"",null,"",null,"",null,"",null,"Prime cost sums",{"$f":"Q71","v":0}]
[null,2.0299999999999998,"Roof",340,1,null,0,null,{"$f":"Abstract!$I$5","v":0},null,null,null,null,"",null,"",null,"",null,"",null,"Preliminaries",{"$f":"G73","v":0}]
[null,2.04,"Stairs",350,1,null,0,null,{"$f":"Abstract!$K$5","v":0},null,null,null,null,"",null,"",null,"",null,"",null,"Overheads and profit",{"$f":"G75","v":0}]
[null,2.0499999999999998,"External Walls",360,1,null,0,null,{"$f":"Abstract!$M$5","v":0},null,null,null,null,"",null,"",null,"",null,"",null,"Contingencies",{"$f":"G84","v":0}]
[null,2.06,"External Windows and Doors",370,1,null,0,null,{"$f":"Abstract!$O$5","v":0},null,null,null,null,"",null,"",null,"",null,"",null,"Contractor design fees",{"$f":"G80","v":0}]
[null,2.0699999999999998,"Internal Walls and Partitions",380,1,null,0,null,{"$f":"Abstract!$Q$5","v":0},null,null,null,null,"",null,"",null,"",null,"",null,"Contract sum",{"$f":"G87-G82","v":0}]
[null,2.08,"Internal Doors",390,1,null,0,null,{"$f":"Abstract!$S$5","v":0},null,null,null,null,"",null,"",null,"",null,"",null,"Contract sum excludes other development costs (12.)"]
[null,null,"Total Superstructure",null,0,null,{"$f":"SUM(I18:T18)","v":0},null,{"$f":"SUM(I10:I17)","v":0},{"$f":"SUM(J10:J17)","v":0},0,0,0,0,0,{"$f":"SUM(P10:P17)","v":0},0,{"$f":"SUM(R10:R17)","v":0},0,0]
[null,null,null,null,0]
[null,3,"FINISHES",440,0,null,null,null,null,null,null,null,null,null,null,null,null,null,null,{"$f":"IF(ISERROR((I20:S20)/AdjustLateQuoteAcross*AdjustLateQuoteAddition),\"\",(I20:S20)/AdjustLateQuoteAcross*AdjustLateQuoteAddition)","v":""}]
[null,3.01,"Wall Finishes",410,1,null,{"$f":"SUM(I21:T21)","v":0},null,{"$f":"Abstract!$U$5","v":0},null,null,null,null,{"$f":"IF(OHPAcross>0,(SUM(I21:M21)/OHPAcross*OHPAddition),\"\")","v":""},null,{"$f":"IF(ISERROR(O21/O$71*P$5),\"\",O21/O$71*P$5)","v":""},null,{"$f":"IF(ISERROR(Q21/Q$71*R$5),\"\",Q21/Q$71*R$5)","v":""},null,{"$f":"IF(AdjustLateQuoteAcross>0,SUM(I21:S21)/AdjustLateQuoteAcross*AdjustLateQuoteAddition,\"\")","v":""}]
[null,3.02,"Floor Finishes",420,1,null,{"$f":"SUM(I22:T22)","v":0},null,{"$f":"Abstract!$W$5","v":0},null,null,null,null,{"$f":"IF(OHPAcross>0,(SUM(I22:M22)/OHPAcross*OHPAddition),\"\")","v":""},null,{"$f":"IF(ISERROR(O22/O$71*P$5),\"\",O22/O$71*P$5)","v":""},null,{"$f":"IF(ISERROR(Q22/Q$71*R$5),\"\",Q22/Q$71*R$5)","v":""},null,{"$f":"IF(AdjustLateQuoteAcross>0,SUM(I22:S22)/AdjustLateQuoteAcross*AdjustLateQuoteAddition,\"\")","v":""}]
[null,3.03,"Ceiling Finishes",430,1,null,{"$f":"SUM(I23:T23)","v":0},null,{"$f":"Abstract!$Y$5","v":0},null,null,null,null,{"$f":"IF(OHPAcross>0,(SUM(I23:M23)/OHPAcross*OHPAddition),\"\")","v":""},null,{"$f":"IF(ISERROR(O23/O$71*P$5),\"\",O23/O$71*P$5)","v":""},null,{"$f":"IF(ISERROR(Q23/Q$71*R$5),\"\",Q23/Q$71*R$5)","v":""},null,{"$f":"IF(AdjustLateQuoteAcross>0,SUM(I23:S23)/AdjustLateQuoteAcross*AdjustLateQuoteAddition,\"\")","v":""}]
[null,null,"Total Finishes",null,0,null,{"$f":"SUM(I24:T24)","v":0},null,{"$f":"SUM(I21:I23)","v":0},{"$f":"SUM(J21:J23)","v":0},0,0,0,0,0,{"$f":"SUM(P21:P23)","v":0},0,{"$f":"SUM(R21:R23)","v":0},0,0]
[null,null,null,null,0]
[null,4,"FITTINGS, FURNISHINGS AND EQUIPMENT",450,1,null,{"$f":"SUM(I26:T26)","v":0},null,{"$f":"Abstract!$AA$5","v":0},null,null,null,null,{"$f":"IF(OHPAcross>0,(SUM(I26:M26)/OHPAcross*OHPAddition),\"\")","v":""},null,{"$f":"IF(ISERROR(O26/O$71*P$5),\"\",O26/O$71*P$5)","v":""},null,{"$f":"IF(ISERROR(Q26/Q$71*R$5),\"\",Q26/Q$71*R$5)","v":""},null,{"$f":"IF(AdjustLateQuoteAcross>0,SUM(I26:S26)/AdjustLateQuoteAcross*AdjustLateQuoteAddition,\"\")","v":""}]
[null,null,null,null,0]
[null,5,"SERVICES",610,0,null,null,null,null,null,null,null,null,null,null,null,null,null,null,{"$f":"IF(ISERROR((I28:S28)/AdjustLateQuoteAcross*AdjustLateQuoteAddition),\"\",(I28:S28)/AdjustLateQuoteAcross*AdjustLateQuoteAddition)","v":""}]
[null,5.01,"Sanitary Installations",460,1,null,{"$f":"SUM(I29:T29)","v":0},null,{"$f":"Abstract!$AC$5","v":0},null,null,null,null,{"$f":"IF(OHPAcross>0,(SUM(I29:M29)/OHPAcross*OHPAddition),\"\")","v":""},null,{"$f":"IF(ISERROR(O29/O$71*P$5),\"\",O29/O$71*P$5)","v":""},null,{"$f":"IF(ISERROR(Q29/Q$71*R$5),\"\",Q29/Q$71*R$5)","v":""},null,{"$f":"IF(AdjustLateQuoteAcross>0,SUM(I29:S29)/AdjustLateQuoteAcross*AdjustLateQuoteAddition,\"\")","v":""}]
[null,5.0199999999999996,"Services Equipment",470,1,null,0,null,{"$f":"Abstract!$AE$5","v":0},null,null,null,null,"",null,"",null,"",null,""]
[null,5.03,"Disposal Installations",480,1,null,0,null,{"$f":"Abstract!$AG$5","v":0},null,null,null,null,"",null,"",null,"",null,""]
[null,5.04,"Water Installations",490,1,null,0,null,{"$f":"Abstract!$AI$5","v":0},null,null,null,null,"",null,"",null,"",null,""]
[null,5.05,"Heat Source",500,1,null,0,null,{"$f":"Abstract!$AK$5","v":0},null,null,null,null,"",null,"",null,"",null,""]
[null,5.0599999999999996,"Space Heating and Air Conditioning",510,1,null,0,null,{"$f":"Abstract!$AM$5","v":0},null,null,null,null,"",null,"",null,"",null,""]
[null,5.07,"Ventilating Systems",520,1,null,0,null,{"$f":"Abstract!$AO$5","v":0},null,null,null,null,"",null,"",null,"",null,""]
[null,5.08,"Electrical Installations",530,1,null,0,null,{"$f":"Abstract!$AQ$5","v":0},null,null,null,null,"",null,"",null,"",null,""]
[null,5.09,"Fuel Installations",540,1,null,0,null,{"$f":"Abstract!$AS$5","v":0},null,null,null,null,"",null,"",null,"",null,""]
[null,"5.10","Lift and Conveyor Installations",560,1,null,0,null,{"$f":"Abstract!$AU$5","v":0},null,null,null,null,"",null,"",null,"",null,""]
[null,5.1100000000000003,"Fire and Lightning Protection",570,1,null,0,null,{"$f":"Abstract!$AW$5","v":0},null,null,null,null,"",null,"",null,"",null,""]
[null,5.12,"Communications and Security Installations",580,1,null,0,null,{"$f":"Abstract!$AY$5","v":0},null,null,null,null,"",null,"",null,"",null,""]
[null,5.13,"Special Installations",590,1,null,0,null,{"$f":"Abstract!$BA$5","v":0},null,null,null,null,"",null,"",null,"",null,""]
[null,5.14,"Builder's Work in Connection with Services (BWIC)",600,1,null,0,null,{"$f":"Abstract!$BC$5","v":0},null,null,null,null,"",null,"",null,"",null,""]
[null,null,"Total Services",null,0,null,0,null,{"$f":"SUM(I29:I42)","v":0},{"$f":"SUM(J29:J42)","v":0},0,0,0,0,0,0,0,{"$f":"SUM(R29:R42)","v":0},0,0]
[null,null,null,null,0]
[null,6,"PREFABRICATED BUILDINGS AND BUILDING UNITS",620,1,null,{"$f":"SUM(I45:T45)","v":0},null,{"$f":"Abstract!$BE$5","v":0},null,null,null,null,{"$f":"IF(OHPAcross>0,(SUM(I45:M45)/OHPAcross*OHPAddition),\"\")","v":""},null,{"$f":"IF(ISERROR(O45/O$71*P$5),\"\",O45/O$71*P$5)","v":""},null,{"$f":"IF(ISERROR(Q45/Q$71*R$5),\"\",Q45/Q$71*R$5)","v":""},null,{"$f":"IF(AdjustLateQuoteAcross>0,SUM(I45:S45)/AdjustLateQuoteAcross*AdjustLateQuoteAddition,\"\")","v":""}]
[null,null,null,null,0]
[null,7,"WORK TO EXISTING BUILDING",630,1,null,{"$f":"SUM(I47:T47)","v":0},null,{"$f":"Abstract!$BG$5","v":0},null,null,null,null,{"$f":"IF(OHPAcross>0,(SUM(I47:M47)/OHPAcross*OHPAddition),\"\")","v":""},null,{"$f":"IF(ISERROR(O47/O$71*P$5),\"\",O47/O$71*P$5)","v":""},null,{"$f":"IF(ISERROR(Q47/Q$71*R$5),\"\",Q47/Q$71*R$5)","v":""},null,{"$f":"IF(AdjustLateQuoteAcross>0,SUM(I47:S47)/AdjustLateQuoteAcross*AdjustLateQuoteAddition,\"\")","v":""}]
[null,null,null,null,0]
[null,null,"Total Building",null,0,null,{"$f":"SUM(G7,G18,G24,G26,G43,G45,G47)","v":0},null,{"$f":"SUM(I7,I18,I24,I26,I43,I45,I47)","v":0},{"$f":"SUM(J7,J18,J24,J26,J43,J45,J47)","v":0},0,0,0,0,0,0,0,{"$f":"SUM(R7,R18,R24,R26,R43,R45,R47)","v":0},0,0]
[null,null,null,null,0]
[null,8,"EXTERNAL WORKS",740,0,null,null,null,null,null,null,null,null,null,null,null,null,null,null,{"$f":"IF(ISERROR((I51:S51)/AdjustLateQuoteAcross*AdjustLateQuoteAddition),\"\",(I51:S51)/AdjustLateQuoteAcross*AdjustLateQuoteAddition)","v":""}]
[null,8.01,"Site Preparation Works",650,1,null,{"$f":"SUM(I52:T52)","v":0},null,{"$f":"Abstract!$BI$5","v":0},null,null,null,null,{"$f":"IF(OHPAcross>0,(SUM(I52:M52)/OHPAcross*OHPAddition),\"\")","v":""},null,{"$f":"IF(ISERROR(O52/O$71*P$5),\"\",O52/O$71*P$5)","v":""},null,{"$f":"IF(ISERROR(Q52/Q$71*R$5),\"\",Q52/Q$71*R$5)","v":""},null,{"$f":"IF(AdjustLateQuoteAcross>0,SUM(I52:S52)/AdjustLateQuoteAcross*AdjustLateQuoteAddition,\"\")","v":""}]
[null,8.02,"Roads, Paths, Pavings and Surfacings",660,1,null,{"$f":"SUM(I53:T53)","v":0},null,{"$f":"Abstract!$BK$5","v":0},null,null,null,null,"",null,"",null,"",null,""]
[null,8.0299999999999994,"Soft Landscaping, Planting and Irrigation Systems",670,1,null,0,null,{"$f":"Abstract!$BM$5","v":0},null,null,null,null,"",null,"",null,"",null,""]
[null,8.0399999999999991,"Fencing, Railings and Walls",680,1,null,0,null,{"$f":"Abstract!$BO$5","v":0},null,null,null,null,"",null,"",null,"",null,""]
[null,8.0500000000000007,"External Fixtures",690,1,null,{"$f":"SUM(I56:T56)","v":0},null,{"$f":"Abstract!$BQ$5","v":0},null,null,null,null,"",null,"",null,"",null,""]
[null,8.06,"External Drainage",700,1,null,{"$f":"SUM(I57:T57)","v":0},null,{"$f":"Abstract!$BS$5","v":0},null,null,null,null,"",null,"",null,"",null,""]
[null,8.07,"External Services",720,1,null,{"$f":"SUM(I58:T58)","v":0},null,{"$f":"Abstract!$BU$5","v":0},null,null,null,null,"",null,"",null,"",null,""]
[null,8.08,"Minor Building Works and Ancillary Buildings",730,1,null,{"$f":"SUM(I59:T59)","v":0},null,{"$f":"Abstract!$BW$5","v":0},null,null,null,null,"",null,"",null,"",null,""]
[null,null,"Total External Works",null,0,null,{"$f":"SUM(I60:T60)","v":0},null,{"$f":"SUM(I52:I59)","v":0},{"$f":"SUM(J52:J59)","v":0},0,0,0,{"$f":"SUM(N52:N59)","v":0},0,0,0,{"$f":"SUM(R52:R59)","v":0},0,0]
[null,null,null,null,0]
[null,0,"FACILITATING WORKS",810,0,null,null,null,null,null,null,null,null,null,null,null,null,null,null,{"$f":"IF(ISERROR((I62:S62)/AdjustLateQuoteAcross*AdjustLateQuoteAddition),\"\",(I62:S62)/AdjustLateQuoteAcross*AdjustLateQuoteAddition)","v":""}]
[null,0.01,"Toxic/Hazardous/Contaminated Material Treatment",750,1,null,{"$f":"SUM(I63:T63)","v":0},null,{"$f":"Abstract!$BY$5","v":0},null,null,null,null,{"$f":"IF(OHPAcross>0,(SUM(I63:M63)/OHPAcross*OHPAddition),\"\")","v":""},null,{"$f":"IF(ISERROR(O63/O$71*P$5),\"\",O63/O$71*P$5)","v":""},null,{"$f":"IF(ISERROR(Q63/Q$71*R$5),\"\",Q63/Q$71*R$5)","v":""},null,{"$f":"IF(AdjustLateQuoteAcross>0,SUM(I63:S63)/AdjustLateQuoteAcross*AdjustLateQuoteAddition,\"\")","v":""}]
[null,0.02,"Major Demolition Works",760,1,null,{"$f":"SUM(I64:T64)","v":0},null,{"$f":"Abstract!$CA$5","v":0},null,null,null,null,"",null,"",null,"",null,""]
[null,0.03,"Temporary Support to Adjacent Structures",770,1,null,0,null,{"$f":"Abstract!$CC$5","v":0},null,null,null,null,"",null,"",null,"",null,""]
[null,0.04,"Specialist Groundworks",780,1,null,0,null,{"$f":"Abstract!$CE$5","v":0},null,null,null,null,"",null,"",null,"",null,""]
[null,0.05,"Temporary Diversion Works",790,1,null,{"$f":"SUM(I67:T67)","v":0},null,{"$f":"Abstract!$CG$5","v":0},null,null,null,null,"",null,"",null,"",null,""]
[null,0.06,"Extraordinary Site Investigation",800,1,null,{"$f":"SUM(I68:T68)","v":0},null,{"$f":"Abstract!$CI$5","v":0},null,null,null,null,"",null,"",null,"",null,""]
[null,null,"Total Facilitating works",null,0,null,{"$f":"SUM(I69:T69)","v":0},null,{"$f":"SUM(I63:I68)","v":0},{"$f":"SUM(J63:J68)","v":0},0,0,0,0,0,0,0,0,0,0]
[null,null,null,null,0]
[null,null,"Total (excl. Prelims and Contingencies)",null,0,null,{"$f":"SUM(G49,G60,G69)","v":0},null,{"$f":"SUM(I49,I60,I69)","v":0},{"$f":"SUM(J49,J60,J69)","v":0},0,0,0,0,0,0,0,{"$f":"SUM(R49,R60,R69)","v":0},0,0]
[null,null,null,null,0]
[null,9,"PRELIMINARIES",820,1,null,{"$f":"SUM(I73:T73)","v":0},null,{"$f":"Abstract!$CK$5","v":0},null,null,null,null,{"$f":"IF(AND(SpreadOption=2,OHPAcross>0),(SUM(I73:M73)/OHPAcross*OHPAddition),\"\")","v":""},null,{"$f":"IF(ISERROR(O73/O$71*P$5),\"\",O73/O$71*P$5)","v":""},null,{"$f":"IF(ISERROR(Q73/Q$71*R$5),\"\",Q73/Q$71*R$5)","v":""},null,{"$f":"IF(AND(SpreadOption=2,AdjustLateQuoteAcross>0),SUM(I73:S73)/AdjustLateQuoteAcross*AdjustLateQuoteAddition,\"\")","v":""}]
[null,null,null,null,0]
[null,10,"MAIN CONTRACTOR'S OVERHEADS AND PROFIT",830,1,null,{"$f":"SUM(I75:T75)","v":0},null,{"$f":"Abstract!$CM$5","v":0},null,null,null,null,null,null,{"$f":"IF(ISERROR(O75/O$71*P$5),\"\",O75/O$71*P$5)","v":""},null,{"$f":"IF(ISERROR(Q75/Q$71*R$5),\"\",Q75/Q$71*R$5)","v":""},null,{"$f":"IF(AdjustLateQuoteAcross>0,SUM(I75:S75)/AdjustLateQuoteAcross*AdjustLateQuoteAddition,\"\")","v":""}]
[null,null,"% excl. Contingencies",null,0,null,{"$f":"IFERROR((G73+G75)/G71,\"?\")","v":"?"},null,null,null,null,null,null,null,null,null,null,null,null,{"$f":"IF(ISERROR((I76:S76)/AdjustLateQuoteAcross*AdjustLateQuoteAddition),\"\",(I76:S76)/AdjustLateQuoteAcross*AdjustLateQuoteAddition)","v":""}]
[null,null,null,null,0,null,null,null,null,null,null,null,null,null,null,null,null,null,null,{"$f":"IF(ISERROR((I77:S77)/AdjustLateQuoteAcross*AdjustLateQuoteAddition),\"\",(I77:S77)/AdjustLateQuoteAcross*AdjustLateQuoteAddition)","v":""}]
[null,null,"Total (less Design Fees)",840,0,null,{"$f":"SUM(G71,G73,G75)","v":0},null,{"$f":"SUM(I71,I73,I75)","v":0},{"$f":"SUM(J71,J73,J75)","v":0},{"$f":"SUM(K71,K73,K75)","v":0},0,0,0,0,0,0,{"$f":"SUM(R71,R73,R75)","v":0},0,0]
[null,null,null,null,0]
[null,11,"PROJECT/DESIGN TEAM FEES",850,1,null,{"$f":"SUM(I80:T80)","v":0},null,{"$f":"Abstract!$CO$5","v":0},null,null,null,null,null,null,{"$f":"IF(ISERROR(O80/O$71*P$5),\"\",O80/O$71*P$5)","v":""},null,{"$f":"IF(ISERROR(Q80/Q$71*R$5),\"\",Q80/Q$71*R$5)","v":""},null,{"$f":"IF(AdjustLateQuoteAcross>0,SUM(I80:S80)/AdjustLateQuoteAcross*AdjustLateQuoteAddition,\"\")","v":""}]
[null,null,null,null,0]
[null,12,"OTHER DEVELOPMENT/PROJECT COSTS",860,1,null,{"$f":"SUM(I82:T82)","v":0},null,{"$f":"Abstract!$CQ$5","v":0},null,null,null,null,null,null,{"$f":"IF(ISERROR(O82/O$71*P$5),\"\",O82/O$71*P$5)","v":""},null,{"$f":"IF(ISERROR(Q82/Q$71*R$5),\"\",Q82/Q$71*R$5)","v":""},null,{"$f":"IF(AdjustLateQuoteAcross>0,SUM(I82:S82)/AdjustLateQuoteAcross*AdjustLateQuoteAddition,\"\")","v":""}]
[null,null,null,null,0]
[null,13,"RISK (CLIENTS CONTINGENCIES)",870,1,null,{"$f":"SUM(I84:T84)","v":0},null,{"$f":"Abstract!$CS$5","v":0},null,null,null,null,null,null,{"$f":"IF(ISERROR(O84/O$71*P$5),\"\",O84/O$71*P$5)","v":""},null,{"$f":"IF(ISERROR(Q84/Q$71*R$5),\"\",Q84/Q$71*R$5)","v":""},null,{"$f":"IF(AdjustLateQuoteAcross>0,SUM(I84:S84)/AdjustLateQuoteAcross*AdjustLateQuoteAddition,\"\")","v":""}]
[null,null,"% excl. Preliminaries",null,0,null,{"$f":"IFERROR((G84/G71),\"?\")","v":"?"},null,null,null,null,null,null,null,null,null,null,null,null,{"$f":"IF(ISERROR((I85:S85)/AdjustLateQuoteAcross*AdjustLateQuoteAddition),\"\",(I85:S85)/AdjustLateQuoteAcross*AdjustLateQuoteAddition)","v":""}]
[null,null,null,null,0]
[null,null,"Total Contract Sum",null,0,null,{"$f":"SUM(G78,G80,G82,G84)","v":0},null,{"$f":"SUM(I78,I80,I82,I84)","v":0},{"$f":"SUM(J78,J80,J82,J84)","v":0},{"$f":"SUM(K78,K80,K82,K84)","v":0},0,0,0,0,0,0,{"$f":"SUM(R78,R80,R82,R84)","v":0},0,0]
[]
[null,null,"Cost per m2: - Building",null,null,null,{"$f":"IF(GIFA>0,((1+G76)*G49)/GIFA,\"\")","v":""}]
[]
[null,null,"Contract Sum (BoQ)",null,null,null,{"$f":"O2","v":0}]
[null,null,"Calculated Contract Sum",null,null,null,{"$f":"G87","v":0}]
[null,null,"Error",null,null,null,{"$f":"(G91-G92)","v":0}]

{"sheet":"BuildingFunction","index":6,"n_rows":373,"n_cols":5,"rows_kept":373,"cut":false,"hidden":true,"merged":[]}
[null,"select","id, Code, Description"]
[null,"from","BuildingFunctionCode"]
[null,"where","Code not like '[1-9]00.'"]
[null,"order by Code"]
[]
[null,"Building Function"]
["Building Function","id","Code","Description","FormattedCode"]
[]
[{"$f":"TEXT(C9,\"000.####\")&\" \"&D9","v":"114. Railway station buildings"},2,114,"Railway station buildings",{"$f":"TEXT(C9,\"000.###\")","v":"114."}]
["114.1 Station halls/concourses",359,114.1,"Station halls/concourses",{"$f":"TEXT(C10,\"000.###\")","v":"114.1"}]
["114.2 Ticket office with waiting rooms, retail units and the like",360,114.2,"Ticket office with waiting rooms, retail units and the like","114.2"]
["114.3 Ticket offices",361,114.3,"Ticket offices","114.3"]
["114.4 Station waiting rooms",362,114.4,"Station waiting rooms","114.4"]
["116. Railway lineside buildings",3,116,"Railway lineside buildings","116."]
["116.1 Railway signal boxes",4,116.1,"Railway signal boxes","116.1"]
["116.2 Railway relay buildings/substations",5,116.2,"Railway relay buildings/substations","116.2"]
["116.3 Railway lineside staff accommodation",6,116.3,"Railway lineside staff accommodation","116.3"]
["117. Rail vehicle storage/repair buildings",7,117,"Rail vehicle storage/repair buildings","117."]
["122. Roads",8,122,"Roads","122."]
["124. Coach and bus stations",9,124,"Coach and bus stations","124."]
["125. Car parks (Multi-storey)",10,125,"Car parks (Multi-storey)","125."]
["125.4 Car parks (Underground)",11,125.4,"Car parks (Underground)","125.4"]
["125.7 Car parks (Surface)",12,125.7,"Car parks (Surface)","125.7"]
["126. Petrol stations",13,126,"Petrol stations","126."]
["126.5 Traffic control buildings",14,126.5,"Traffic control buildings","126.5"]
["127. Road vehicle storage/repair buildings (incl car showrooms)",15,127,"Road vehicle storage/repair buildings (incl car showrooms)","127."]
["127.1 Garages",16,127.1,"Garages","127.1"]
["127.11 Domestic scale garages",17,127.11,"Domestic scale garages","127.11"]
["127.12 Vehicle storage buildings",18,127.12,"Vehicle storage buildings","127.12"]
["127.13 Coach and bus depots",337,127.13,"Coach and bus depots","127.13"]
["127.3 Vehicle showrooms",19,127.3,"Vehicle showrooms","127.3"]
["127.31 Vehicle showrooms with workshops, garages, etc",20,127.31,"Vehicle showrooms with workshops, garages, etc","127.31"]
["127.32 Vehicle showrooms without workshops, garages, etc",21,127.32,"Vehicle showrooms without workshops, garages, etc","127.32"]
["127.4 Vehicle repair and maintenance buildings",22,127.4,"Vehicle repair and maintenance buildings","127.4"]
["127.6 Car wash buildings",23,127.6,"Car wash buildings","127.6"]
["134. Port and harbour buildings",24,134,"Port and harbour buildings","134."]
["136. Boat control buildings",25,136,"Boat control buildings","136."]
["137. Boat storage/repair buildings",26,137,"Boat storage/repair buildings","137."]
["144. Air transport terminal buildings",27,144,"Air transport terminal buildings","144."]
["144.1 Airport terminals including piers and satellites",363,144.1,"Airport terminals including piers and satellites","144.1"]
["144.2 Specialist parts of air terminal buildings",364,144.19999999999999,"Specialist parts of air terminal buildings","144.2"]
["144.3 Satellites, piers, link bridges and the like",365,144.30000000000001,"Satellites, piers, link bridges and the like","144.3"]
["144.4 Baggage handling facilities",366,144.4,"Baggage handling facilities","144.4"]
["144.5 Heliport buildings",367,144.5,"Heliport buildings","144.5"]
["144.6 Cargo terminal buildings",368,144.6,"Cargo terminal buildings","144.6"]
["146. Air traffic control buildings",28,146,"Air traffic control buildings","146."]
["147. Aircraft storage/repair buildings",29,147,"Aircraft storage/repair buildings","147."]
["152. Radio buildings",30,152,"Radio buildings","152."]
["152.5 Recording studios",31,152.5,"Recording studios","152.5"]
["153. Television buildings",32,153,"Television buildings","153."]
["153.1 Television studios",33,153.1,"Television studios","153.1"]
["153.2 Close circuit television control buildings",34,153.19999999999999,"Close circuit television control buildings","153.2"]
["154.1 Telephone exchanges",35,154.1,"Telephone exchanges","154.1"]
["154.2 Telegraph facilities",36,154.19999999999999,"Telegraph facilities","154.2"]
["154.3 Telephone engineering centres, TSCVs",37,154.30000000000001,"Telephone engineering centres, TSCVs","154.3"]
["156. Transmitting/receiving stations",38,156,"Transmitting/receiving stations","156."]
["157. Post offices, sorting offices",39,157,"Post offices, sorting offices","157."]
["157.1 Post Offices",40,157.1,"Post Offices","157.1"]
["157.2 Sorting Offices",41,157.19999999999999,"Sorting Offices","157.2"]
["162.1 Generator houses, power stations, etc",42,162.1,"Generator houses, power stations, etc","162.1"]
["162.2 Sub-stations (electricity transmission)",43,162.19999999999999,"Sub-stations (electricity transmission)","162.2"]
["162.3 Battery buildings (electricity storage)",44,162.30000000000001,"Battery buildings (electricity storage)","162.3"]
["165.6 Gas supply control building",45,165.6,"Gas supply control building","165.6"]
["171. Water supply, treatment, storage and distribution buildings",46,171,"Water supply, treatment, storage and distribution buildings","171."]
["175.1 Refuse depots",47,175.1,"Refuse depots","175.1"]
["175.5 Incinerators",48,175.5,"Incinerators","175.5"]
["177. Mortuaries, morgues",49,177,"Mortuaries, morgues","177."]
["184. Bulk goods storage facilities",50,184,"Bulk goods storage facilities","184."]
["262. Fish farms, fisheries",52,262,"Fish farms, fisheries","262."]
["264. Nurseries (horticulture), greenhouses, etc",53,264,"Nurseries (horticulture), greenhouses, etc","264."]
["265. Livestock buildings - farms (pig pens, milking parlours, etc)",54,265,"Livestock buildings - farms (pig pens, milking parlours, etc)","265."]
["265.5 Stud farms, stables and the like",55,265.5,"Stud farms, stables and the like","265.5"]
[{"$f":"TEXT(C73,\"000.####\")&\" \"&D73","v":"268. Agricultural storage buildings"},56,268,"Agricultural storage buildings","268."]
["268.1 Agricultural silos, bins, hoppers, tanks",57,268.10000000000002,"Agricultural silos, bins, hoppers, tanks",{"$f":"TEXT(C74,\"000.###\")","v":"268.1"}]
["268.2 Agricultural storage with thrust resistant walls",58,268.2,"Agricultural storage with thrust resistant walls","268.2"]
["268.3 Agricultural storage with non thrust resistant walls",59,268.3,"Agricultural storage with non thrust resistant walls","268.3"]
["268.4 Agricultural storage with little or no walls",60,268.39999999999998,"Agricultural storage with little or no walls","268.4"]
["273. Food/drink/tobacco factories",61,273,"Food/drink/tobacco factories","273."]
["273.5 Breweries",62,273.5,"Breweries","273.5"]
["274. Factories for chemical and allied industries",63,274,"Factories for chemical and allied industries","274."]
["275.1 Factories for metals",64,275.10000000000002,"Factories for metals","275.1"]
["275.2 Factories for mechanical engineering",65,275.2,"Factories for mechanical engineering","275.2"]
["275.3 Factories for instrument engineering",66,275.3,"Factories for instrument engineering","275.3"]
["275.4 Factories for electrical engineering",67,275.39999999999998,"Factories for electrical engineering","275.4"]
["275.5 Factories for electronics, computers, or the like",68,275.5,"Factories for electronics, computers, or the like","275.5"]
["275.6 Factories for vehicles",69,275.60000000000002,"Factories for vehicles","275.6"]
["276.1 Factories for textiles",70,276.10000000000002,"Factories for textiles","276.1"]
["276.2 Factories for leather, leather goods and fur",71,276.2,"Factories for leather, leather goods and fur","276.2"]
["276.3 Factories for clothes, footwear",72,276.3,"Factories for clothes, footwear","276.3"]
["277.1 Factories for bricks, pottery, glass, cement",73,277.10000000000002,"Factories for bricks, pottery, glass, cement","277.1"]
["277.2 Factories for timber, furniture",74,277.2,"Factories for timber, furniture","277.2"]
["277.3 Factories for paper, printing and publishing",75,277.3,"Factories for paper, printing and publishing","277.3"]
["278. Builders yards, Local Authority maintenance depots",76,278,"Builders yards, Local Authority maintenance depots","278."]
["282. Factories",77,282,"Factories","282."]
["282.1 Advance factories",78,282.10000000000002,"Advance factories","282.1"]
["282.12 Advance factories/offices - mixed facilities (class B1)",79,282.12,"Advance factories/offices - mixed facilities (class B1)","282.12"]
["282.2 Purpose built factories",80,282.2,"Purpose built factories","282.2"]
["282.22 Purpose built factories/Offices - mixed facilities",81,282.22000000000003,"Purpose built factories/Offices - mixed facilities","282.22"]
["284. Warehouses/stores",82,284,"Warehouses/stores","284."]
["284.1 Advance warehouses/stores",83,284.10000000000002,"Advance warehouses/stores","284.1"]
["284.2 Purpose built warehouses/stores",84,284.2,"Purpose built warehouses/stores","284.2"]
["284.5 Cold stores/refrigerated stores",85,284.5,"Cold stores/refrigerated stores","284.5"]
["311. International legislative and admin buildings",87,311,"International legislative and admin buildings","311."]
["312. National legislative and admin buildings",88,312,"National legislative and admin buildings","312."]
["314.1 County, City, Town halls",89,314.10000000000002,"County, City, Town halls","314.1"]
["315. Local admin buildings",90,315,"Local admin buildings","315."]
["316. Official representation facilities eg palaces, embassies",91,316,"Official representation facilities eg palaces, embassies","316."]
["317. Law courts",92,317,"Law courts","317."]
["320. Offices",93,320,"Offices","320."]
["320.1 Offices with shops, banks, flats, etc",94,320.10000000000002,"Offices with shops, banks, flats, etc","320.1"]
["321. Artist's studios",95,321,"Artist's studios","321."]
["323. Call centres",341,323,"Call centres","323."]
["338. Banks/Building Society branches",96,338,"Banks/Building Society branches","338."]
["340. Mixed commercial developments",97,340,"Mixed commercial developments","340."]
["341. Wholesale trading building/auction rooms",98,341,"Wholesale trading building/auction rooms","341."]
["341.1 Retail warehouses",99,341.1,"Retail warehouses","341.1"]
["341.5 Market building providing accommodation for pens stalls etc",100,341.5,"Market building providing accommodation for pens stalls etc","341.5"]
["342. Shopping centres",101,342,"Shopping centres","342."]
["343. Department stores",102,343,"Department stores","343."]
["344. Hypermarkets, supermarkets",103,344,"Hypermarkets, supermarkets","344."]
["345. Shops",104,345,"Shops","345."]
["345.1 Shops with domestic, office accommodation",105,345.1,"Shops with domestic, office accommodation","345.1"]
["346. Service shops",106,346,"Service shops","346."]
["346.5 Undertakers",107,346.5,"Undertakers","346.5"]
["348. Dealers, merchants",108,348,"Dealers, merchants","348."]
["371. Mountain and cave rescue stations",109,371,"Mountain and cave rescue stations","371."]
["372. Fire stations",110,372,"Fire stations","372."]
["372.1 Fire service admin/control buildings",111,372.1,"Fire service admin/control buildings","372.1"]
["372.3 Fire stations with rescue and other emergency services",351,372.3,"Fire stations with rescue and other emergency services","372.3"]
["372.5 Fire training towers",112,372.5,"Fire training towers","372.5"]
["372.6 Fire training buildings",113,372.6,"Fire training buildings","372.6"]
["373. Ambulance stations",114,373,"Ambulance stations","373."]
["373.1 Ambulance admin/control buildings",115,373.1,"Ambulance admin/control buildings","373.1"]
["374. Police stations",116,374,"Police stations","374."]
["374.1 Police admin/control buildings",117,374.1,"Police admin/control buildings","374.1"]
["374.2 Police patrol bases with vehicle bays",345,374.2,"Police patrol bases with vehicle bays","374.2"]
[{"$f":"TEXT(C137,\"000.####\")&\" \"&D137","v":"374.3 Police patrol bases without vehicle bays"},346,374.3,"Police patrol bases without vehicle bays","374.3"]
["374.4 Police stations with social and welfare services",352,374.4,"Police stations with social and welfare services",{"$f":"TEXT(C138,\"000.###\")","v":"374.4"}]
["375. Military buildings",118,375,"Military buildings","375."]
["375.1 Air Force facilities, operations building",119,375.1,"Air Force facilities, operations building","375.1"]
["375.2 Navy facilities, operations buildings",120,375.2,"Navy facilities, operations buildings","375.2"]
["375.3 Army facilities, operations buildings",121,375.3,"Army facilities, operations buildings","375.3"]
["375.35 Territorial Army Centres",122,375.35,"Territorial Army Centres","375.35"]
["375.4 Civil defence facilities",123,375.4,"Civil defence facilities","375.4"]
["375.5 Camps, depots, bases, ranges",124,375.5,"Camps, depots, bases, ranges","375.5"]
["375.6 Blockhouses, city walls",125,375.6,"Blockhouses, city walls","375.6"]
["375.7 Air raid shelters, fall-out (radiation) shelters",126,375.7,"Air raid shelters, fall-out (radiation) shelters","375.7"]
["376.1 Open prisons",127,376.1,"Open prisons","376.1"]
["376.2 Closed prisons",128,376.2,"Closed prisons","376.2"]
["376.5 Reformatories, borstals, secure residential units for children",129,376.5,"Reformatories, borstals, secure residential units for children","376.5"]
["376.6 Cells and custody blocks",339,376.6,"Cells and custody blocks","376.6"]
["376.8 Specialist facilities within prison complex",338,376.8,"Specialist facilities within prison complex","376.8"]
["411. Teaching hospitals",131,411,"Teaching hospitals","411."]
["411.1 Hospital teaching centres",132,411.1,"Hospital teaching centres","411.1"]
["412. General hospitals, GP hospitals, cottage hospitals",133,412,"General hospitals, GP hospitals, cottage hospitals","412."]
["412.8 Hospital - mixed specialist facilities",134,412.8,"Hospital - mixed specialist facilities","412.8"]
["413. Mental health, psychiatric hospital facilities",135,413,"Mental health, psychiatric hospital facilities","413."]
["413.1 Psychiatric units",136,413.1,"Psychiatric units","413.1"]
["413.12 Psychiatric units for the elderly",137,413.12,"Psychiatric units for the elderly","413.12"]
["413.13 Low secure psychiatric units",355,413.13,"Low secure psychiatric units","413.13"]
["413.14 Medium secure psychiatric units",356,413.14,"Medium secure psychiatric units","413.14"]
["413.15 High secure psychiatric units",357,413.15,"High secure psychiatric units","413.15"]
["413.16 Psychiatric intensive care units",358,413.16,"Psychiatric intensive care units","413.16"]
["413.2 Learning disability units",138,413.2,"Learning disability units","413.2"]
["413.22 Combined mental health and learning disability units",371,413.22,"Combined mental health and learning disability units","413.22"]
["413.4 Addiction treatment units",340,413.4,"Addiction treatment units","413.4"]
["414. Hospital facilities by part of body",139,414,"Hospital facilities by part of body","414."]
["414.1 Ear, nose and throat units",140,414.1,"Ear, nose and throat units","414.1"]
["414.2 Eye hospitals",141,414.2,"Eye hospitals","414.2"]
["414.3 Dental units (hospital facilities)",142,414.3,"Dental units (hospital facilities)","414.3"]
["414.4 Cardiac units",143,414.4,"Cardiac units","414.4"]
["414.5 Spinal injuries units",144,414.5,"Spinal injuries units","414.5"]
["414.6 Chiropody units",145,414.6,"Chiropody units","414.6"]
["414.7 Dermatology units",146,414.7,"Dermatology units","414.7"]
["414.8 Hospital facilities for treatment of parts of the body",147,414.8,"Hospital facilities for treatment of parts of the body","414.8"]
["415. Maternity, gynaecological hospital facilities",148,415,"Maternity, gynaecological hospital facilities","415."]
["415.7 Genito-urinary facilities",149,415.7,"Genito-urinary facilities","415.7"]
["416. Paediatric, geriatric hospital facilities",150,416,"Paediatric, geriatric hospital facilities","416."]
["416.1 Paediatric units, children's hospitals",151,416.1,"Paediatric units, children's hospitals","416.1"]
["416.2 Geriatric units",152,416.2,"Geriatric units","416.2"]
["417.1 Diagnosis excluding radiography (x-ray)",153,417.1,"Diagnosis excluding radiography (x-ray)","417.1"]
["417.11 Radiography (x-ray) units",154,417.11,"Radiography (x-ray) units","417.11"]
["417.2 Surgery including operating theatres",155,417.2,"Surgery including operating theatres","417.2"]
["417.4 Hospital laboratories",156,417.4,"Hospital laboratories","417.4"]
["417.41 Pathology laboratories",157,417.41,"Pathology laboratories","417.41"]
["417.5 Occupational therapy, physiotherapy, hydrotherapy",158,417.5,"Occupational therapy, physiotherapy, hydrotherapy","417.5"]
["417.6 Palliative units",336,417.6,"Palliative units","417.6"]
["417.7 Chemotherapy including pharmacies, dispensaries",159,417.7,"Chemotherapy including pharmacies, dispensaries","417.7"]
["417.71 Pharmacies",160,417.71,"Pharmacies","417.71"]
["417.72 Dispensaries",161,417.72,"Dispensaries","417.72"]
["417.73 Chemotherapy units",162,417.73,"Chemotherapy units","417.73"]
["417.81 Radiotherapy units (incl linear accelerators)",163,417.81,"Radiotherapy units (incl linear accelerators)","417.81"]
["417.88 Specialised facilities",164,417.88,"Specialised facilities","417.88"]
["418.1 Ward blocks",165,418.1,"Ward blocks","418.1"]
["418.2 Outpatients/casualty units",166,418.2,"Outpatients/casualty units","418.2"]
["418.25 Day hospitals",167,418.25,"Day hospitals","418.25"]
["418.3 Intensive care/Acute wards",168,418.3,"Intensive care/Acute wards","418.3"]
["418.8 Sterile stores, sterilisation units",169,418.8,"Sterile stores, sterilisation units","418.8"]
["421. Health Centres, clinics, group practice surgeries",170,421,"Health Centres, clinics, group practice surgeries","421."]
["424. Dentists surgeries",171,424,"Dentists surgeries","424."]
[{"$f":"TEXT(C201,\"000.####\")&\" \"&D201","v":"425. Welfare consultation centres"},172,425,"Welfare consultation centres","425."]
["426. First aid posts",173,426,"First aid posts",{"$f":"TEXT(C202,\"000.###\")","v":"426."}]
["427. Medical research facilities",174,427,"Medical research facilities","427."]
["428.1 Blood transfusion facilities",175,428.1,"Blood transfusion facilities","428.1"]
["441. Observation and assessment centres",176,441,"Observation and assessment centres","441."]
["442. Nursing homes",177,442,"Nursing homes","442."]
["442.1 Nursing homes short stay",372,442.1,"Nursing homes short stay","442.1"]
["442.2 Nursing homes long stay (residential homes)",373,442.2,"Nursing homes long stay (residential homes)","442.2"]
["443. Hospices",178,443,"Hospices","443."]
["444. Homes for those with mental health conditions and/or learning disabilities",179,444,"Homes for those with mental health conditions and/or learning disabilities","444."]
["444.1 Homes for those with mental health conditions",374,444.1,"Homes for those with mental health conditions","444.1"]
["444.2 Homes for those with learning disabilities",375,444.2,"Homes for those with learning disabilities","444.2"]
["445.1 Homes for the physically disabled",180,445.1,"Homes for the physically disabled","445.1"]
["446. Childrens homes",181,446,"Childrens homes","446."]
["446.1 Homes for children with special needs",353,446.1,"Homes for children with special needs","446.1"]
["447. Care homes for the elderly",182,447,"Care homes for the elderly","447."]
["448. Day centres",183,448,"Day centres","448."]
["461. Veterinary hospitals",184,461,"Veterinary hospitals","461."]
["462. Animal clinics",185,462,"Animal clinics","462."]
["464. Animal rearing and living facilities: research, domestic etc",186,464,"Animal rearing and living facilities: research, domestic etc","464."]
["464.1 Kennels and catteries",187,464.1,"Kennels and catteries","464.1"]
["511. Canteens, refectories",189,511,"Canteens, refectories","511."]
["512. Restaurants",190,512,"Restaurants","512."]
["515. Cafes, snack bars, coffee bars, milk bars",191,515,"Cafes, snack bars, coffee bars, milk bars","515."]
["516. Motorway services buildings - mixed facilities",192,516,"Motorway services buildings - mixed facilities","516."]
["517. Public houses, licensed premises",193,517,"Public houses, licensed premises","517."]
["518. Function rooms, banqueting rooms, meeting rooms, etc",194,518,"Function rooms, banqueting rooms, meeting rooms, etc","518."]
["521. Dance halls, ballrooms, discotheques",195,521,"Dance halls, ballrooms, discotheques","521."]
["522.1 Concert halls",196,522.1,"Concert halls","522.1"]
["522.2 Bandstands",197,522.20000000000005,"Bandstands","522.2"]
["522.5 Music rehearsal and practise buildings",349,522.5,"Music rehearsal and practise buildings","522.5"]
["523. Opera houses",198,523,"Opera houses","523."]
["524. Theatres",199,524,"Theatres","524."]
["524.5 Drama ancillary buildings",200,524.5,"Drama ancillary buildings","524.5"]
["525. Cinemas",201,525,"Cinemas","525."]
["526. Circuses",202,526,"Circuses","526."]
["532. Community Centres",203,532,"Community Centres","532."]
["532.1 General purpose halls",204,532.1,"General purpose halls","532.1"]
["532.2 Visitors' centres",205,532.20000000000005,"Visitors' centres","532.2"]
["534. Clubs, youth clubs, students unions, etc",206,534,"Clubs, youth clubs, students unions, etc","534."]
["536. Residential clubs",207,536,"Residential clubs","536."]
["537. Commercial clubs",208,537,"Commercial clubs","537."]
["538. Mixed recreation buildings, holiday camps, caravan sites,etc",209,538,"Mixed recreation buildings, holiday camps, caravan sites,etc","538."]
["541. Covered swimming pools",210,541,"Covered swimming pools","541."]
["541.1 Small swimming pools",211,541.1,"Small swimming pools","541.1"]
["541.2 25 metre swimming pools",212,541.20000000000005,"25 metre swimming pools","541.2"]
["541.3 50 metre swimming pools",213,541.29999999999995,"50 metre swimming pools","541.3"]
["541.4 Leisure pools",214,541.4,"Leisure pools","541.4"]
["541.5 Diving pools, special pools",215,541.5,"Diving pools, special pools","541.5"]
["543. Open air swimming pools, lidos",216,543,"Open air swimming pools, lidos","543."]
["546.1 Boat houses (private and recreational)",217,546.1,"Boat houses (private and recreational)","546.1"]
["562.1 Sports centres/recreational centres",218,562.1,"Sports centres/recreational centres","562.1"]
["562.11 Sports centre/recreation centres inc swimming pools",219,562.11,"Sports centre/recreation centres inc swimming pools","562.11"]
["562.12 Gymnasia/sports halls",220,562.12,"Gymnasia/sports halls","562.12"]
["562.13 Indoor athletics training centres",221,562.13,"Indoor athletics training centres","562.13"]
["562.2 Gymnasia, fitness centres, etc",222,562.20000000000005,"Gymnasia, fitness centres, etc","562.2"]
["562.21 Gymnasia, fitness centres including swimming pools",344,562.21,"Gymnasia, fitness centres including swimming pools","562.21"]
["562.31 Squash courts",223,562.30999999999995,"Squash courts","562.31"]
["562.32 Tennis courts (indoor)",224,562.32000000000005,"Tennis courts (indoor)","562.32"]
["562.33 Table tennis centres",225,562.33000000000004,"Table tennis centres","562.33"]
["562.41 Indoor cricket centres",226,562.41,"Indoor cricket centres","562.41"]
["562.51 Indoor football training centres",342,562.51,"Indoor football training centres","562.51"]
["563.1 Bowling alleys (tenpin bowling alleys)",227,563.1,"Bowling alleys (tenpin bowling alleys)","563.1"]
["563.2 Indoor bowling greens",228,563.20000000000005,"Indoor bowling greens","563.2"]
[{"$f":"TEXT(C265,\"000.####\")&\" \"&D265","v":"564.1 Stadia, sports grounds"},229,564.1,"Stadia, sports grounds","564.1"]
["564.2 Indoor sports arenas",230,564.20000000000005,"Indoor sports arenas",{"$f":"TEXT(C266,\"000.###\")","v":"564.2"}]
["564.3 Indoor motor sports centres",343,564.29999999999995,"Indoor motor sports centres","564.3"]
["565.1 Riding schools",231,565.1,"Riding schools","565.1"]
["565.2 Rifle ranges",232,565.20000000000005,"Rifle ranges","565.2"]
["566.2 Golf driving ranges",233,566.20000000000005,"Golf driving ranges","566.2"]
["567.1 Covered ice rinks",234,567.1,"Covered ice rinks","567.1"]
["568.1 Sports pavilions, club houses and changing rooms",235,568.1,"Sports pavilions, club houses and changing rooms","568.1"]
["568.11 Sports changing rooms",236,568.11,"Sports changing rooms","568.11"]
["568.12 Sports pavilions and club houses",237,568.12,"Sports pavilions and club houses","568.12"]
["568.13 Golf club houses",238,568.13,"Golf club houses","568.13"]
["581. Casinos",239,581,"Casinos","581."]
["630. Churches, chapels",241,630,"Churches, chapels","630."]
["640. Mission halls, meeting houses",242,640,"Mission halls, meeting houses","640."]
["650. Temples, mosques, synagogues",243,650,"Temples, mosques, synagogues","650."]
["660. Residential religious facilities",244,660,"Residential religious facilities","660."]
["670.1 Crematoria",245,670.1,"Crematoria","670.1"]
["670.2 Cemeteries",246,670.2,"Cemeteries","670.2"]
["670.5 Feretory spaces (flower display, remembrance pavilions, etc)",247,670.5,"Feretory spaces (flower display, remembrance pavilions, etc)","670.5"]
["710. Schools",249,710,"Schools","710."]
["711. Nursery schools/creches",250,711,"Nursery schools/creches","711."]
["712. Primary schools",251,712,"Primary schools","712."]
["712.1 Middle schools",252,712.1,"Middle schools","712.1"]
["712.12 Primary/middle schools - specialised teaching blocks",253,712.12,"Primary/middle schools - specialised teaching blocks","712.12"]
["712.8 Primary Schools - mixed facilities",254,712.8,"Primary Schools - mixed facilities","712.8"]
["713. Secondary schools (high schools)",255,713,"Secondary schools (high schools)","713."]
["713.1 Secondary schools - specialised teaching blocks",256,713.1,"Secondary schools - specialised teaching blocks","713.1"]
["713.8 Secondary Schools - mixed facilities",257,713.8,"Secondary Schools - mixed facilities","713.8"]
["714. Sixth form/tertiary colleges",258,714,"Sixth form/tertiary colleges","714."]
["714.1 Sixth form specialised teaching blocks",259,714.1,"Sixth form specialised teaching blocks","714.1"]
["714.8 Sixth form - mixed facilities",260,714.8,"Sixth form - mixed facilities","714.8"]
["715. All Through Schools",369,715,"All Through Schools","715."]
["715.8 All Through Schools - mixed facilities",370,715.8,"All Through Schools - mixed facilities","715.8"]
["717. Special schools",261,717,"Special schools","717."]
["717.2 Schools for those with learning disabilities",262,717.2,"Schools for those with learning disabilities","717.2"]
["717.3 Schools for the physically disabled",263,717.3,"Schools for the physically disabled","717.3"]
["717.5 Approved schools",264,717.5,"Approved schools","717.5"]
["717.8 Boarding schools - mixed teaching/residential buildings only",265,717.8,"Boarding schools - mixed teaching/residential buildings only","717.8"]
["719.1 Playcare centres, out of school clubs",348,719.1,"Playcare centres, out of school clubs","719.1"]
["721. Universities",266,721,"Universities","721."]
["721.2 University - specialised teaching blocks",267,721.2,"University - specialised teaching blocks","721.2"]
["721.8 University - mixed facilities",268,721.8,"University - mixed facilities","721.8"]
["722. Colleges",269,722,"Colleges","722."]
["722.2 Colleges - specialised teaching blocks",270,722.2,"Colleges - specialised teaching blocks","722.2"]
["722.8 Colleges - mixed facilities",271,722.8,"Colleges - mixed facilities","722.8"]
["727. Adult education facilities",272,727,"Adult education facilities","727."]
["727.1 Adult education facilities for those with learning disabilities",273,727.1,"Adult education facilities for those with learning disabilities","727.1"]
["727.2 Adult education facilities for the physically disabled",274,727.2,"Adult education facilities for the physically disabled","727.2"]
["729.1 Lecture theatres",275,729.1,"Lecture theatres","729.1"]
["729.2 Simulator training facilities",354,729.2,"Simulator training facilities","729.2"]
["731.1 Research facilities",276,731.1,"Research facilities","731.1"]
["732. Laboratories",277,732,"Laboratories","732."]
["737. Observatories, recording stations",278,737,"Observatories, recording stations","737."]
["751. Botanical gardens, herbaria, zoos",279,751,"Botanical gardens, herbaria, zoos","751."]
["753. Aviaries",280,753,"Aviaries","753."]
["755. Aquaria",281,755,"Aquaria","755."]
["756. Museums, planetaria",282,756,"Museums, planetaria","756."]
["757. Art galleries, facilities for special displays",283,757,"Art galleries, facilities for special displays","757."]
["758. Exhibition buildings",284,758,"Exhibition buildings","758."]
["760. Libraries",285,760,"Libraries","760."]
["761. National libraries",286,761,"National libraries","761."]
["762. Public Libraries",287,762,"Public Libraries","762."]
["763. School/College/University Libraries",288,763,"School/College/University Libraries","763."]
["764. Special libraries",289,764,"Special libraries","764."]
[{"$f":"TEXT(C329,\"000.####\")&\" \"&D329","v":"766. Data centres"},290,766,"Data centres","766."]
["767. Record offices, archives, patent offices",291,767,"Record offices, archives, patent offices",{"$f":"TEXT(C330,\"000.###\")","v":"767."}]
["810. Housing, mixed developments",293,810,"Housing, mixed developments","810."]
["810.1 Estate housing",294,810.1,"Estate housing","810.1"]
["810.11 Estate housing detached",295,810.11,"Estate housing detached","810.11"]
["810.12 Estate housing semi detached",296,810.12,"Estate housing semi detached","810.12"]
["810.13 Estate housing terraced",297,810.13,"Estate housing terraced","810.13"]
["816. Flats (apartments)",298,816,"Flats (apartments)","816."]
["818. Housing with shops, offices, workshops or the like",299,818,"Housing with shops, offices, workshops or the like","818."]
["820.1 'One-off' housing detached (3 units or less)",300,820.1,"'One-off' housing detached (3 units or less)","820.1"]
["820.2 'One-off' housing semi-detached (3 units or less)",301,820.2,"'One-off' housing semi-detached (3 units or less)","820.2"]
["820.3 'One-off' housing terraced (3 units or less)",302,820.3,"'One-off' housing terraced (3 units or less)","820.3"]
["841. Housing provided in connection with other facilities",303,841,"Housing provided in connection with other facilities","841."]
["843. Supported housing",304,843,"Supported housing","843."]
["843.1 Supported housing with shops, restaurants or the like",350,843.1,"Supported housing with shops, restaurants or the like","843.1"]
["852. Hotels",305,852,"Hotels","852."]
["853. Motels",306,853,"Motels","853."]
["854. Guesthouses",307,854,"Guesthouses","854."]
["856.1 Dormitories",308,856.1,"Dormitories","856.1"]
["856.2 Students' residences, halls of residence, etc",309,856.2,"Students' residences, halls of residence, etc","856.2"]
["856.3 Nurses' residences",310,856.3,"Nurses' residences","856.3"]
["856.4 Staff residential accommodation",311,856.4,"Staff residential accommodation","856.4"]
["856.5 Barracks, mess accommodation, section houses, etc",312,856.5,"Barracks, mess accommodation, section houses, etc","856.5"]
["856.7 Youth hostels",313,856.7,"Youth hostels","856.7"]
["856.8 Short stay hostels for homeless etc",314,856.8,"Short stay hostels for homeless etc","856.8"]
["913.1 Gate houses etc",316,913.1,"Gate houses etc","913.1"]
["913.2 Waiting rooms",317,913.2,"Waiting rooms","913.2"]
["913.3 Reception areas",347,913.3,"Reception areas","913.3"]
["914.1 Links, corridors, etc",318,914.1,"Links, corridors, etc","914.1"]
["914.2 Stair towers, lift towers, etc",319,914.2,"Stair towers, lift towers, etc","914.2"]
["916. Conference centres",320,916,"Conference centres","916."]
["922. Staff rooms, common rooms, rest rooms, etc",321,922,"Staff rooms, common rooms, rest rooms, etc","922."]
["931. Kitchens",322,931,"Kitchens","931."]
["931.1 Kitchens with dining facilities",323,931.1,"Kitchens with dining facilities","931.1"]
["941.1 Public conveniences",324,941.1,"Public conveniences","941.1"]
["941.2 Toilet blocks - private facilities",325,941.2,"Toilet blocks - private facilities","941.2"]
["942. Bathrooms, sauna baths, turkish baths",326,942,"Bathrooms, sauna baths, turkish baths","942."]
["943. Utility blocks (washing and toilet facilities)",327,943,"Utility blocks (washing and toilet facilities)","943."]
["947. Dressing, changing rooms",328,947,"Dressing, changing rooms","947."]
["952. Laundries",329,952,"Laundries","952."]
["971.2 Boiler houses",330,971.2,"Boiler houses","971.2"]
["971.21 Boiler houses, including boiler plant",331,971.21,"Boiler houses, including boiler plant","971.21"]
["971.22 Boiler houses, excluding boiler plant",332,971.22,"Boiler houses, excluding boiler plant","971.22"]
["988.1 Pier buildings",333,988.1,"Pier buildings","988.1"]
["998. External works including enabling work",334,998,"External works including enabling work","998."]

{"sheet":"SpecificationCodes","index":7,"n_rows":723,"n_cols":12,"rows_kept":723,"cut":false,"hidden":true,"merged":[]}
[null,null,null,null,null,"select","Specification.id as SpecCodeID,"]
[null,null,null,null,null,null,"Reference as SpecElement,"]
[null,null,null,null,null,null,"StandardDescription as ElementDescription,"]
[null,null,null,null,null,null,"str( isnull( LegacyType.LegacyTableNumber, 0 ), 2, 0 ) + '/' + Specification.Code as Code,"]
[null,null,null,null,null,null,"case when UseLegacyCodeType = 3 then isnull( LegacyType.Description + ': ' , '' ) else '' end + Specification.Description as Description,"]
[null,null,null,null,null,null,"ElementID,"]
[null,null,null,null,null,null,"LegacyKey"]
[null,null,null,null,null,"from","GeneralCode as Specification"]
[null,null,null,null,null,"inner join GeneralCodeType as CodeType on CodeType.id = Specification.CodeTypeID"]
[null,null,null,null,null,"inner join GeneralCodeControl on GeneralCodeControl.CodeTypeID = CodeType.id"]
[null,null,null,null,null,"left outer join GeneralCodeType as LegacyType on LegacyType.id = LegacyCodeTypeID"]
[null,null,null,null,null,"inner join ElementSpecificationCodeLink on Specification.id = SpecificationCodeID"]
[null,null,null,null,null,"inner join Element on Element.id = ElementID"]
[null,null,null,null,null,"inner join GeneralCode as ElementLibrary on ElementLibrary.id = ElementLibraryID"]
[null,null,null,null,null,"where","ElementLibrary.Code = 'BCIS2012' and"]
[null,null,null,null,null,null,"InputFlagElemental = 1"]
[null,null,null,null,null,"union all"]
[null,null,null,null,null,"select","0 as SpecCodeID,"]
[null,null,null,null,null,null,"Reference as SpecElement,"]
[null,null,null,null,null,null,"StandardDescription as ElementDescription,"]
[null,null,null,null,null,null,"'' as Code,"]
[null,null,null,null,null,null," '' as Description,"]
[null,null,null,null,null,null,"Element.id as ElementID,"]
[null,null,null,null,null,null,"LegacyKey"]
[null,null,null,null,null,"from","Element"]
[null,null,null,null,null,"inner join GeneralCode as ElementLibrary on ElementLibrary.id = ElementLibraryID"]
[null,null,null,null,null,"where","ElementLibrary.Code = 'BCIS2012' and"]
[null,null,null,null,null,null,"InputFlagElemental = 1"]
[null,null,null,null,null,"order by LegacyKey, Code"]
[]
[]
[]
[]
[]
[]
[null,null,null,null,"NB Range names updated using VBA procedure: run DefineSpecCodeRanges"]
[null,null,null,null,"From I:\\DATA\\TPI\\IndexingSpreadsheetTemplates\\CandidateNewVersion\\SpecCodesModule.bas"]
[]
[null,null,null,null,"Lookup","id","Reference","ElementDescription","Code","Description","ElementID","LegacyKey"]
[]
[null,null,null,null,{"$f":"I41&\" \" &J41","v":" "},0,1,"Substructure",null,null,187,310]
[null,null,null,null,"17/0   Lowest floor slab: Undefined lowest floor slab",1044,1,"Substructure","17/0  ","Lowest floor slab: Undefined lowest floor slab",187,310]
[null,null,null,null,"17/1   Lowest floor slab: Bed",1045,1,"Substructure","17/1  ","Lowest floor slab: Bed",187,310]
[null,null,null,null,"17/1F2 Lowest floor slab: Bed, precast concrete",1046,1,"Substructure","17/1F2","Lowest floor slab: Bed, precast concrete",187,310]
[null,null,null,null,"17/1G2 Lowest floor slab: Clay/concrete brick paviors direct on ground",1047,1,"Substructure","17/1G2","Lowest floor slab: Clay/concrete brick paviors direct on ground",187,310]
[null,null,null,null,"17/1Q4 Lowest floor slab: Bed, insitu concrete",1048,1,"Substructure","17/1Q4","Lowest floor slab: Bed, insitu concrete",187,310]
[null,null,null,null,"17/2   Lowest floor slab: Suspended",2568,1,"Substructure","17/2  ","Lowest floor slab: Suspended",187,310]
[null,null,null,null,"17/2F2 Lowest floor slab: Suspended, precast concrete",1049,1,"Substructure","17/2F2","Lowest floor slab: Suspended, precast concrete",187,310]
[null,null,null,null,"17/2I1 Lowest floor slab: Suspended, timber",1050,1,"Substructure","17/2I1","Lowest floor slab: Suspended, timber",187,310]
[null,null,null,null,"17/2Q4 Lowest floor slab: Suspended, insitu concrete",1051,1,"Substructure","17/2Q4","Lowest floor slab: Suspended, insitu concrete",187,310]
[null,null,null,null,"17/4   Lowest floor slab: Basement",1052,1,"Substructure","17/4  ","Lowest floor slab: Basement",187,310]
[null,null,null,null,"17/4F2 Lowest floor slab: Basement, precast concrete",1053,1,"Substructure","17/4F2","Lowest floor slab: Basement, precast concrete",187,310]
[null,null,null,null,"17/4Q4 Lowest floor slab: Basement, insitu concrete",1054,1,"Substructure","17/4Q4","Lowest floor slab: Basement, insitu concrete",187,310]
[null,null,null,null,"17/8   Lowest floor slab: Other lowest floor slab",1055,1,"Substructure","17/8  ","Lowest floor slab: Other lowest floor slab",187,310]
[null,null,null,null,"17/8F2 Lowest floor slab: Other, precast concrete",1056,1,"Substructure","17/8F2","Lowest floor slab: Other, precast concrete",187,310]
[null,null,null,null,"17/8I1 Lowest floor slab: Other, timber",1057,1,"Substructure","17/8I1","Lowest floor slab: Other, timber",187,310]
[null,null,null,null,"17/8Q4 Lowest floor slab: Other, insitu concrete",1058,1,"Substructure","17/8Q4","Lowest floor slab: Other, insitu concrete",187,310]
[null,null,null,null,"17/9   Lowest floor slab: Work to existing floor",3530,1,"Substructure","17/9  ","Lowest floor slab: Work to existing floor",187,310]
[null,null,null,null,"18/ D6 Foundations: Vibro compaction/soil stabilisation",1059,1,"Substructure","18/ D6","Foundations: Vibro compaction/soil stabilisation",187,310]
[null,null,null,null,"18/0   Foundations: Undefined",1060,1,"Substructure","18/0  ","Foundations: Undefined",187,310]
[null,null,null,null,"18/4   Foundations: Pad foundation",1061,1,"Substructure","18/4  ","Foundations: Pad foundation",187,310]
[null,null,null,null,"18/4Q4 Foundations: Pad foundation, insitu concrete",1062,1,"Substructure","18/4Q4","Foundations: Pad foundation, insitu concrete",187,310]
[null,null,null,null,"18/6   Foundations: Strip foundation",1063,1,"Substructure","18/6  ","Foundations: Strip foundation",187,310]
[null,null,null,null,"18/6F2 Foundations: Strip/ground beam, precast concrete",1064,1,"Substructure","18/6F2","Foundations: Strip/ground beam, precast concrete",187,310]
[null,null,null,null,"18/6H2 Foundations: Concrete encased steel ground beams",1065,1,"Substructure","18/6H2","Foundations: Concrete encased steel ground beams",187,310]
[null,null,null,null,"18/6Q4 Foundations: Strip/ground beam, insitu concrete",1066,1,"Substructure","18/6Q4","Foundations: Strip/ground beam, insitu concrete",187,310]
[null,null,null,null,"18/7   Foundations: Raft foundation",1067,1,"Substructure","18/7  ","Foundations: Raft foundation",187,310]
[null,null,null,null,"18/7Q4 Foundations: Raft, insitu concrete",1068,1,"Substructure","18/7Q4","Foundations: Raft, insitu concrete",187,310]
[null,null,null,null,"18/8   Foundations: Other foundations",1069,1,"Substructure","18/8  ","Foundations: Other foundations",187,310]
[null,null,null,null,"18/8Q4 Foundations: Other foundation, insitu concrete",1070,1,"Substructure","18/8Q4","Foundations: Other foundation, insitu concrete",187,310]
[null,null,null,null,"18/9   Foundations: Built off existing foundations/piles",1071,1,"Substructure","18/9  ","Foundations: Built off existing foundations/piles",187,310]
[null,null,null,null,"18/9B  Foundations: Underpinning to existing structure",1072,1,"Substructure","18/9B ","Foundations: Underpinning to existing structure",187,310]
[null,null,null,null,"19/0   Piling: Undefined piling",1073,1,"Substructure","19/0  ","Piling: Undefined piling",187,310]
[null,null,null,null,"19/0 9 Piling: Undefined piling, PC Provisional sum",1074,1,"Substructure","19/0 9","Piling: Undefined piling, PC Provisional sum",187,310]
[null,null,null,null,"19/1   Piling: Sheet piling",1075,1,"Substructure","19/1  ","Piling: Sheet piling",187,310]
[null,null,null,null,"19/1H2 Piling: Sheet, steel piling",1076,1,"Substructure","19/1H2","Piling: Sheet, steel piling",187,310]
[null,null,null,null,"19/2   Piling: Replacement piling",1077,1,"Substructure","19/2  ","Piling: Replacement piling",187,310]
[null,null,null,null,"19/2H2 Piling: Replacement (bored), steel",1078,1,"Substructure","19/2H2","Piling: Replacement (bored), steel",187,310]
[null,null,null,null,"19/2Q4 Piling: Replacement (bored), insitu concrete",1079,1,"Substructure","19/2Q4","Piling: Replacement (bored), insitu concrete",187,310]
[null,null,null,null,"19/3   Piling: Displacement piling",1080,1,"Substructure","19/3  ","Piling: Displacement piling",187,310]
[null,null,null,null,"19/3F2 Piling: Displacement (driven), precast concrete",1081,1,"Substructure","19/3F2","Piling: Displacement (driven), precast concrete",187,310]
[null,null,null,null,"19/3H2 Piling: Displacement (driven), steel",1082,1,"Substructure","19/3H2","Piling: Displacement (driven), steel",187,310]
[null,null,null,null,"19/3Q4 Piling: Displacement (driven) insitu concrete",1083,1,"Substructure","19/3Q4","Piling: Displacement (driven) insitu concrete",187,310]
[null,null,null,null,"19/8   Piling: Other piling",1084,1,"Substructure","19/8  ","Piling: Other piling",187,310]
[null,null,null,null,"19/8H2 Piling: Other, steel",1085,1,"Substructure","19/8H2","Piling: Other, steel",187,310]
[null,null,null,null,"19/8Q4 Piling: Other, insitu concrete",1086,1,"Substructure","19/8Q4","Piling: Other, insitu concrete",187,310]
[null,null,null,null," ",0,2.0099999999999998,"Frame",null,null,188,320]
[null,null,null,null,"28/ A  Mixed construction",1215,2.0099999999999998,"Frame","28/ A ","Mixed construction",188,320]
[null,null,null,null,"28/ F2 Precast concrete",1216,2.0099999999999998,"Frame","28/ F2","Precast concrete",188,320]
[null,null,null,null,"28/ H2 Steel",1217,2.0099999999999998,"Frame","28/ H2","Steel",188,320]
[null,null,null,null,"28/ I1 Timber",1218,2.0099999999999998,"Frame","28/ I1","Timber",188,320]
[null,null,null,null,"28/ I4 Laminated timber",1219,2.0099999999999998,"Frame","28/ I4","Laminated timber",188,320]
[null,null,null,null,"28/ Q4 Insitu concrete",1220,2.0099999999999998,"Frame","28/ Q4","Insitu concrete",188,320]
[null,null,null,null,"28/1   Undefined",1221,2.0099999999999998,"Frame","28/1  ","Undefined",188,320]
[null,null,null,null,"28/2A  Column and beam, mixed construction",1222,2.0099999999999998,"Frame","28/2A ","Column and beam, mixed construction",188,320]
[null,null,null,null,"28/2F2 Column and beam, precast concrete",1223,2.0099999999999998,"Frame","28/2F2","Column and beam, precast concrete",188,320]
[null,null,null,null,"28/2H2 Column and beam, steel",1224,2.0099999999999998,"Frame","28/2H2","Column and beam, steel",188,320]
[null,null,null,null,"28/2I1 Column and beam, timber",1225,2.0099999999999998,"Frame","28/2I1","Column and beam, timber",188,320]
[null,null,null,null,"28/2Q4 Column and beam, insitu concrete",1226,2.0099999999999998,"Frame","28/2Q4","Column and beam, insitu concrete",188,320]
[null,null,null,null,"28/3F2 Column and slab, precast concrete",1227,2.0099999999999998,"Frame","28/3F2","Column and slab, precast concrete",188,320]
[null,null,null,null,"28/3Q4 Column and slab, insitu concrete",1228,2.0099999999999998,"Frame","28/3Q4","Column and slab, insitu concrete",188,320]
[null,null,null,null,"28/4F2 Portal frame, precast concrete",1229,2.0099999999999998,"Frame","28/4F2","Portal frame, precast concrete",188,320]
[null,null,null,null,"28/4H2 Portal frame, steel",1230,2.0099999999999998,"Frame","28/4H2","Portal frame, steel",188,320]
[null,null,null,null,"28/4I1 Portal frame, timber",1231,2.0099999999999998,"Frame","28/4I1","Portal frame, timber",188,320]
[null,null,null,null,{"$f":"I105&\" \" &J105","v":"28/4I4 Portal frame, laminated timber"},1232,2.0099999999999998,"Frame","28/4I4","Portal frame, laminated timber",188,320]
[null,null,null,null,"28/5F2 Column and cable, precast concrete",1233,2.0099999999999998,"Frame","28/5F2","Column and cable, precast concrete",188,320]
[null,null,null,null,"28/6H2 Space frame, steel",1234,2.0099999999999998,"Frame","28/6H2","Space frame, steel",188,320]
[null,null,null,null,"28/7F2 'A' frame, precast concrete",1235,2.0099999999999998,"Frame","28/7F2","'A' frame, precast concrete",188,320]
[null,null,null,null,"28/7H2 'A' frame, steel",1236,2.0099999999999998,"Frame","28/7H2","'A' frame, steel",188,320]
[null,null,null,null,"28/7I1 'A' frame, timber",1237,2.0099999999999998,"Frame","28/7I1","'A' frame, timber",188,320]
[null,null,null,null,"28/7I4 'A' frame, wood laminates",1238,2.0099999999999998,"Frame","28/7I4","'A' frame, wood laminates",188,320]
[null,null,null,null,"28/9   Work to existing",1908,2.0099999999999998,"Frame","28/9  ","Work to existing",188,320]
[null,null,null,null," ",0,2.02,"Upper Floors",null,null,192,330]
[null,null,null,null,"23/ A  Mixed construction",1160,2.02,"Upper Floors","23/ A ","Mixed construction",192,330]
[null,null,null,null,"23/ F2 Precast concrete",1161,2.02,"Upper Floors","23/ F2","Precast concrete",192,330]
[null,null,null,null,"23/ H  Metal",1162,2.02,"Upper Floors","23/ H ","Metal",192,330]
[null,null,null,null,"23/ H2 Steel",1163,2.02,"Upper Floors","23/ H2","Steel",192,330]
[null,null,null,null,"23/ Q4 Insitu concrete",1164,2.02,"Upper Floors","23/ Q4","Insitu concrete",192,330]
[null,null,null,null,"23/0   Undefined",1165,2.02,"Upper Floors","23/0  ","Undefined",192,330]
[null,null,null,null,"23/2Q4 Monolithic slab, insitu concrete",1166,2.02,"Upper Floors","23/2Q4","Monolithic slab, insitu concrete",192,330]
[null,null,null,null,"23/3A  Assembled, composite, mixed construction",1167,2.02,"Upper Floors","23/3A ","Assembled, composite, mixed construction",192,330]
[null,null,null,null,"23/3F2 Assembled, composite, precast concrete",1168,2.02,"Upper Floors","23/3F2","Assembled, composite, precast concrete",192,330]
[null,null,null,null,"23/3I1 Assembled, composite, timber",1169,2.02,"Upper Floors","23/3I1","Assembled, composite, timber",192,330]
[null,null,null,null," ",0,2.0299999999999998,"Roof",null,null,199,340]
[null,null,null,null,"27/ H2 Roof structure: Steel",1190,2.0299999999999998,"Roof","27/ H2","Roof structure: Steel",199,340]
[null,null,null,null,"27/0   Roof structure: Undefined",1191,2.0299999999999998,"Roof","27/0  ","Roof structure: Undefined",199,340]
[null,null,null,null,"27/1   Roof structure: Flat",1192,2.0299999999999998,"Roof","27/1  ","Roof structure: Flat",199,340]
[null,null,null,null,"27/1A  Roof structure: Flat, mixed construction",1193,2.0299999999999998,"Roof","27/1A ","Roof structure: Flat, mixed construction",199,340]
[null,null,null,null,"27/1F2 Roof structure: Flat, precast concrete",1194,2.0299999999999998,"Roof","27/1F2","Roof structure: Flat, precast concrete",199,340]
[null,null,null,null,"27/1H2 Roof structure: Flat, steel",1195,2.0299999999999998,"Roof","27/1H2","Roof structure: Flat, steel",199,340]
[null,null,null,null,"27/1I1 Roof structure: Flat, timber",1196,2.0299999999999998,"Roof","27/1I1","Roof structure: Flat, timber",199,340]
[null,null,null,null,"27/1I2 Roof structure: Flat, softwood",1197,2.0299999999999998,"Roof","27/1I2","Roof structure: Flat, softwood",199,340]
[null,null,null,null,"27/1I4 Roof structure: Flat, laminated timber",1198,2.0299999999999998,"Roof","27/1I4","Roof structure: Flat, laminated timber",199,340]
[null,null,null,null,"27/1Q4 Roof structure: Flat, insitu concrete",1199,2.0299999999999998,"Roof","27/1Q4","Roof structure: Flat, insitu concrete",199,340]
[null,null,null,null,"27/2   Roof structure: Pitched",1200,2.0299999999999998,"Roof","27/2  ","Roof structure: Pitched",199,340]
[null,null,null,null,"27/2A  Roof structure: Pitched, mixed construction",1201,2.0299999999999998,"Roof","27/2A ","Roof structure: Pitched, mixed construction",199,340]
[null,null,null,null,"27/2F2 Roof structure: Pitched, precast concrete",1202,2.0299999999999998,"Roof","27/2F2","Roof structure: Pitched, precast concrete",199,340]
[null,null,null,null,"27/2H2 Roof structure: Pitched, steel",1203,2.0299999999999998,"Roof","27/2H2","Roof structure: Pitched, steel",199,340]
[null,null,null,null,"27/2I1 Roof structure: Pitched, timber",1204,2.0299999999999998,"Roof","27/2I1","Roof structure: Pitched, timber",199,340]
[null,null,null,null,"27/2I2 Roof structure: Pitched, softwood",1205,2.0299999999999998,"Roof","27/2I2","Roof structure: Pitched, softwood",199,340]
[null,null,null,null,"27/2I4 Roof structure: Pitched, laminated timber",1206,2.0299999999999998,"Roof","27/2I4","Roof structure: Pitched, laminated timber",199,340]
[null,null,null,null,"27/3   Roof structure: Space frame",1207,2.0299999999999998,"Roof","27/3  ","Roof structure: Space frame",199,340]
[null,null,null,null,"27/3H2 Roof structure: Space frame, steel",1208,2.0299999999999998,"Roof","27/3H2","Roof structure: Space frame, steel",199,340]
[null,null,null,null,"27/4   Roof structure: Folded plate",1209,2.0299999999999998,"Roof","27/4  ","Roof structure: Folded plate",199,340]
[null,null,null,null,"27/4H2 Roof structure: Folded plate, steel",1210,2.0299999999999998,"Roof","27/4H2","Roof structure: Folded plate, steel",199,340]
[null,null,null,null,"27/6   Roof structure: Barrel vaulted/monocoque",2541,2.0299999999999998,"Roof","27/6  ","Roof structure: Barrel vaulted/monocoque",199,340]
[null,null,null,null,"27/6F2 Roof structure: Barrel vaulted/monocoque, precast concrete",1211,2.0299999999999998,"Roof","27/6F2","Roof structure: Barrel vaulted/monocoque, precast concrete",199,340]
[null,null,null,null,"27/6H2 Roof structure: Barrel vaulted/monocoque, steel",1212,2.0299999999999998,"Roof","27/6H2","Roof structure: Barrel vaulted/monocoque, steel",199,340]
[null,null,null,null,"27/6I1 Roof structure: Barrel vaulted/monocoque, timber",2083,2.0299999999999998,"Roof","27/6I1","Roof structure: Barrel vaulted/monocoque, timber",199,340]
[null,null,null,null,"27/6Q4 Roof structure: Barrel vaulted/monocoque, insitu concrete",1213,2.0299999999999998,"Roof","27/6Q4","Roof structure: Barrel vaulted/monocoque, insitu concrete",199,340]
[null,null,null,null,"27/8   Roof structure: Other",1214,2.0299999999999998,"Roof","27/8  ","Roof structure: Other",199,340]
[null,null,null,null,"47/0   Roof finishes: Undefined",1421,2.0299999999999998,"Roof","47/0  ","Roof finishes: Undefined",199,340]
[null,null,null,null,"47/1H  Roof finishes: Metal faced bitumen felt",1422,2.0299999999999998,"Roof","47/1H ","Roof finishes: Metal faced bitumen felt",199,340]
[null,null,null,null,"47/1H4 Roof finishes: Aluminium",1423,2.0299999999999998,"Roof","47/1H4","Roof finishes: Aluminium",199,340]
[null,null,null,null,"47/1H5 Roof finishes: Copper",1424,2.0299999999999998,"Roof","47/1H5","Roof finishes: Copper",199,340]
[null,null,null,null,"47/1H7 Roof finishes: Zinc",1425,2.0299999999999998,"Roof","47/1H7","Roof finishes: Zinc",199,340]
[null,null,null,null,"47/1H8 Roof finishes: Lead",1426,2.0299999999999998,"Roof","47/1H8","Roof finishes: Lead",199,340]
[null,null,null,null,"47/1N2 Roof finishes: Bitumen felt or the like",1427,2.0299999999999998,"Roof","47/1N2","Roof finishes: Bitumen felt or the like",199,340]
[null,null,null,null,"47/1N6 Roof finishes: Plastic",1428,2.0299999999999998,"Roof","47/1N6","Roof finishes: Plastic",199,340]
[null,null,null,null,"47/1S4 Roof finishes: Asphalt",1429,2.0299999999999998,"Roof","47/1S4","Roof finishes: Asphalt",199,340]
[null,null,null,null,"47/2N2 Roof finishes: Metal decking, bitumen felt or the like",1430,2.0299999999999998,"Roof","47/2N2","Roof finishes: Metal decking, bitumen felt or the like",199,340]
[null,null,null,null,"47/2S4 Roof finishes: Metal decking, asphalt",1431,2.0299999999999998,"Roof","47/2S4","Roof finishes: Metal decking, asphalt",199,340]
[null,null,null,null,"47/3   Roof finishes: Woodwool decking",1432,2.0299999999999998,"Roof","47/3  ","Roof finishes: Woodwool decking",199,340]
[null,null,null,null,"47/3H  Roof finishes: Woodwool decking, metal faced bitumen felt",1433,2.0299999999999998,"Roof","47/3H ","Roof finishes: Woodwool decking, metal faced bitumen felt",199,340]
[null,null,null,null,"47/3H4 Roof finishes: Woodwool decking, aluminium",1434,2.0299999999999998,"Roof","47/3H4","Roof finishes: Woodwool decking, aluminium",199,340]
[null,null,null,null,"47/3H8 Roof finishes: Woodwool decking, lead",1435,2.0299999999999998,"Roof","47/3H8","Roof finishes: Woodwool decking, lead",199,340]
[null,null,null,null,"47/3N2 Roof finishes: Woodwool decking, bitumen felt or the like",1436,2.0299999999999998,"Roof","47/3N2","Roof finishes: Woodwool decking, bitumen felt or the like",199,340]
[null,null,null,null,"47/3N6 Roof finishes: Woodwool decking, plastic",1437,2.0299999999999998,"Roof","47/3N6","Roof finishes: Woodwool decking, plastic",199,340]
[null,null,null,null,{"$f":"I169&\" \" &J169","v":"47/3S4 Roof finishes: Woodwool decking, asphalt"},1438,2.0299999999999998,"Roof","47/3S4","Roof finishes: Woodwool decking, asphalt",199,340]
[null,null,null,null,"47/4   Roof finishes: Cladding on framing",1439,2.0299999999999998,"Roof","47/4  ","Roof finishes: Cladding on framing",199,340]
[null,null,null,null,"47/4F6 Roof finishes: Cladding on framing, asbestos cement or like",1440,2.0299999999999998,"Roof","47/4F6","Roof finishes: Cladding on framing, asbestos cement or like",199,340]
[null,null,null,null,"47/4H  Roof finishes: Cladding on framing, metal",1441,2.0299999999999998,"Roof","47/4H ","Roof finishes: Cladding on framing, metal",199,340]
[null,null,null,null,"47/4H2 Roof finishes: Cladding on framing, steel",1442,2.0299999999999998,"Roof","47/4H2","Roof finishes: Cladding on framing, steel",199,340]
[null,null,null,null,"47/4H4 Roof finishes: Cladding on framing, aluminium",1443,2.0299999999999998,"Roof","47/4H4","Roof finishes: Cladding on framing, aluminium",199,340]
[null,null,null,null,"47/4N6 Roof finishes: Cladding on framing, plastic",1444,2.0299999999999998,"Roof","47/4N6","Roof finishes: Cladding on framing, plastic",199,340]
[null,null,null,null,"47/4N8 Roof finishes: Cladding on Framing, glass fibre",1445,2.0299999999999998,"Roof","47/4N8","Roof finishes: Cladding on Framing, glass fibre",199,340]
[null,null,null,null,"47/5   Roof finishes: Tiles/slates",1446,2.0299999999999998,"Roof","47/5  ","Roof finishes: Tiles/slates",199,340]
[null,null,null,null,"47/5E5 Roof finishes: Tiles and slates, natural quarry",1447,2.0299999999999998,"Roof","47/5E5","Roof finishes: Tiles and slates, natural quarry",199,340]
[null,null,null,null,"47/5F2 Roof finishes: Tiles/slates, concrete/clay",1448,2.0299999999999998,"Roof","47/5F2","Roof finishes: Tiles/slates, concrete/clay",199,340]
[null,null,null,null,"47/5F3 Roof finishes: Tiles/slates, reconstituted stone",1449,2.0299999999999998,"Roof","47/5F3","Roof finishes: Tiles/slates, reconstituted stone",199,340]
[null,null,null,null,"47/5F6 Roof finishes: Tiles/slates, asbestos cement or similar",1450,2.0299999999999998,"Roof","47/5F6","Roof finishes: Tiles/slates, asbestos cement or similar",199,340]
[null,null,null,null,"47/5H  Roof finishes: Tiles/slates, metal",1451,2.0299999999999998,"Roof","47/5H ","Roof finishes: Tiles/slates, metal",199,340]
[null,null,null,null,"47/5I1 Roof finishes: Tiles/slates, timber",1452,2.0299999999999998,"Roof","47/5I1","Roof finishes: Tiles/slates, timber",199,340]
[null,null,null,null,"47/6H3 Roof finishes: Timber/ply decking, stainless steel",1453,2.0299999999999998,"Roof","47/6H3","Roof finishes: Timber/ply decking, stainless steel",199,340]
[null,null,null,null,"47/6H4 Roof finishes: Timber/ply decking, aluminium",1454,2.0299999999999998,"Roof","47/6H4","Roof finishes: Timber/ply decking, aluminium",199,340]
[null,null,null,null,"47/6H5 Roof finishes: Timber/ply decking, copper",1455,2.0299999999999998,"Roof","47/6H5","Roof finishes: Timber/ply decking, copper",199,340]
[null,null,null,null,"47/6H7 Roof finishes: Timber/ply decking, zinc",1456,2.0299999999999998,"Roof","47/6H7","Roof finishes: Timber/ply decking, zinc",199,340]
[null,null,null,null,"47/6H8 Roof finishes: Timber/ply decking, lead",1457,2.0299999999999998,"Roof","47/6H8","Roof finishes: Timber/ply decking, lead",199,340]
[null,null,null,null,"47/6N2 Roof finishes: Timber/ply decking, bitumen felt or the like",1458,2.0299999999999998,"Roof","47/6N2","Roof finishes: Timber/ply decking, bitumen felt or the like",199,340]
[null,null,null,null,"47/6S4 Roof finishes: Timber/ply decking, asphalt",1459,2.0299999999999998,"Roof","47/6S4","Roof finishes: Timber/ply decking, asphalt",199,340]
[null,null,null,null,"47/7   Roof finishes: Patent glazing",1460,2.0299999999999998,"Roof","47/7  ","Roof finishes: Patent glazing",199,340]
[null,null,null,null,"47/7H  Roof finishes: Patent glazing, metal",1461,2.0299999999999998,"Roof","47/7H ","Roof finishes: Patent glazing, metal",199,340]
[null,null,null,null,"47/7H2 Roof finishes: Patent glazing, steel",1462,2.0299999999999998,"Roof","47/7H2","Roof finishes: Patent glazing, steel",199,340]
[null,null,null,null,"47/7H4 Roof finishes: Patent glazing, aluminium",1463,2.0299999999999998,"Roof","47/7H4","Roof finishes: Patent glazing, aluminium",199,340]
[null,null,null,null,"47/8   Roof finishes: Special feature - Cupola, dome or the like",1464,2.0299999999999998,"Roof","47/8  ","Roof finishes: Special feature - Cupola, dome or the like",199,340]
[null,null,null,null,"47/81  Roof finishes: Special features - Roof garden, planting, etc",1465,2.0299999999999998,"Roof","47/81 ","Roof finishes: Special features - Roof garden, planting, etc",199,340]
[null,null,null,null," ",0,2.04,"Stairs",null,null,204,350]
[null,null,null,null,"24/ O  Glass",2588,2.04,"Stairs","24/ O ","Glass",204,350]
[null,null,null,null,"24/ Q  Concrete",1170,2.04,"Stairs","24/ Q ","Concrete",204,350]
[null,null,null,null,"24/0   Undefined",1171,2.04,"Stairs","24/0  ","Undefined",204,350]
[null,null,null,null,"24/1   Straight flight",1172,2.04,"Stairs","24/1  ","Straight flight",204,350]
[null,null,null,null,"24/1E  Straight flight, stone",2597,2.04,"Stairs","24/1E ","Straight flight, stone",204,350]
[null,null,null,null,"24/1F2 Straight flight, precast concrete",1173,2.04,"Stairs","24/1F2","Straight flight, precast concrete",204,350]
[null,null,null,null,"24/1H2 Straight flight, steel",1174,2.04,"Stairs","24/1H2","Straight flight, steel",204,350]
[null,null,null,null,"24/1I2 Straight flight, softwood",1175,2.04,"Stairs","24/1I2","Straight flight, softwood",204,350]
[null,null,null,null,"24/1I3 Straight flight, hardwood",1176,2.04,"Stairs","24/1I3","Straight flight, hardwood",204,350]
[null,null,null,null,"24/1O  Straight flight, glass",2589,2.04,"Stairs","24/1O ","Straight flight, glass",204,350]
[null,null,null,null,"24/1Q  Straight flight, concrete",1177,2.04,"Stairs","24/1Q ","Straight flight, concrete",204,350]
[null,null,null,null,"24/1Q4 Straight flight, insitu concrete",1178,2.04,"Stairs","24/1Q4","Straight flight, insitu concrete",204,350]
[null,null,null,null,"24/3   Curved flight",1179,2.04,"Stairs","24/3  ","Curved flight",204,350]
[null,null,null,null,"24/3F2 Curved flight, precast concrete",1180,2.04,"Stairs","24/3F2","Curved flight, precast concrete",204,350]
[null,null,null,null,"24/3H2 Curved flight, steel",1181,2.04,"Stairs","24/3H2","Curved flight, steel",204,350]
[null,null,null,null,"24/3I2 Curved flight, softwood",1182,2.04,"Stairs","24/3I2","Curved flight, softwood",204,350]
[null,null,null,null,"24/3I3 Curved flight, hardwood",1183,2.04,"Stairs","24/3I3","Curved flight, hardwood",204,350]
[null,null,null,null,"24/3Q4 Curved flight, insitu concrete",1184,2.04,"Stairs","24/3Q4","Curved flight, insitu concrete",204,350]
[null,null,null,null,"24/6   Ladders, sliding poles, etc",2567,2.04,"Stairs","24/6  ","Ladders, sliding poles, etc",204,350]
[null,null,null,null,"24/6H  Ladders, sliding poles, etc, metal",1185,2.04,"Stairs","24/6H ","Ladders, sliding poles, etc, metal",204,350]
[null,null,null,null,"24/6H2 Ladders, sliding poles, etc, steel",1186,2.04,"Stairs","24/6H2","Ladders, sliding poles, etc, steel",204,350]
[null,null,null,null,"24/6I2 Ladders, sliding poles, etc, softwood",1187,2.04,"Stairs","24/6I2","Ladders, sliding poles, etc, softwood",204,350]
[null,null,null,null,"24/6I3 Ladders, sliding poles, etc, hardwood",1188,2.04,"Stairs","24/6I3","Ladders, sliding poles, etc, hardwood",204,350]
[null,null,null,null,"24/6Q4 Ladders, sliding poles, etc, insitu concrete",1189,2.04,"Stairs","24/6Q4","Ladders, sliding poles, etc, insitu concrete",204,350]
[null,null,null,null," ",0,2.0499999999999998,"External Walls",null,null,212,360]
[null,null,null,null,"21/ B  External walls: Existing facade retained",1087,2.0499999999999998,"External Walls","21/ B ","External walls: Existing facade retained",212,360]
[null,null,null,null,"21/ E  External walls: Stone",1088,2.0499999999999998,"External Walls","21/ E ","External walls: Stone",212,360]
[null,null,null,null,"21/ F3 External walls: Reconstituted stone",1089,2.0499999999999998,"External Walls","21/ F3","External walls: Reconstituted stone",212,360]
[null,null,null,null,"21/ F4 External walls: Block",1090,2.0499999999999998,"External Walls","21/ F4","External walls: Block",212,360]
[null,null,null,null,"21/ G2 External walls: Clay/concrete brick",1091,2.0499999999999998,"External Walls","21/ G2","External walls: Clay/concrete brick",212,360]
[null,null,null,null,"21/0   External walls: Undefined",1092,2.0499999999999998,"External Walls","21/0  ","External walls: Undefined",212,360]
[null,null,null,null,"21/1   External walls: Loadbearing",1093,2.0499999999999998,"External Walls","21/1  ","External walls: Loadbearing",212,360]
[null,null,null,null,"21/1E  External walls: Loadbearing, stone",1094,2.0499999999999998,"External Walls","21/1E ","External walls: Loadbearing, stone",212,360]
[null,null,null,null,"21/1F2 External walls: Loadbearing, precast concrete",1095,2.0499999999999998,"External Walls","21/1F2","External walls: Loadbearing, precast concrete",212,360]
[null,null,null,null,"21/1F4 External walls: Loadbearing, blocks",1096,2.0499999999999998,"External Walls","21/1F4","External walls: Loadbearing, blocks",212,360]
[null,null,null,null,{"$f":"I233&\" \" &J233","v":"21/1G2 External walls: Loadbearing, clay/concrete brick"},1097,2.0499999999999998,"External Walls","21/1G2","External walls: Loadbearing, clay/concrete brick",212,360]
[null,null,null,null,"21/1I1 External walls: Loadbearing, timber",1098,2.0499999999999998,"External Walls","21/1I1","External walls: Loadbearing, timber",212,360]
[null,null,null,null,"21/1Q4 External walls: Loadbearing, insitu concrete",1099,2.0499999999999998,"External Walls","21/1Q4","External walls: Loadbearing, insitu concrete",212,360]
[null,null,null,null,"21/3   External walls: Non loadbearing",1100,2.0499999999999998,"External Walls","21/3  ","External walls: Non loadbearing",212,360]
[null,null,null,null,"21/3E  External walls: Non loadbearing, stone",1101,2.0499999999999998,"External Walls","21/3E ","External walls: Non loadbearing, stone",212,360]
[null,null,null,null,"21/3F2 External walls: Non loadbearing, precast concrete",1102,2.0499999999999998,"External Walls","21/3F2","External walls: Non loadbearing, precast concrete",212,360]
[null,null,null,null,"21/3F4 External walls: Non loadbearing, blocks",1103,2.0499999999999998,"External Walls","21/3F4","External walls: Non loadbearing, blocks",212,360]
[null,null,null,null,"21/3G2 External walls: Non loadbearing, clay/concrete brick",1104,2.0499999999999998,"External Walls","21/3G2","External walls: Non loadbearing, clay/concrete brick",212,360]
[null,null,null,null,"21/3H  External walls: Non loadbearing, metal",1105,2.0499999999999998,"External Walls","21/3H ","External walls: Non loadbearing, metal",212,360]
[null,null,null,null,"21/3I2 External walls: Non-loadbearing, softwood",1106,2.0499999999999998,"External Walls","21/3I2","External walls: Non-loadbearing, softwood",212,360]
[null,null,null,null,"21/3O  External walls: Non loadbearing, glass blocks",1107,2.0499999999999998,"External Walls","21/3O ","External walls: Non loadbearing, glass blocks",212,360]
[null,null,null,null,"21/3Q4 External walls: Non loadbearing, insitu concrete",1108,2.0499999999999998,"External Walls","21/3Q4","External walls: Non loadbearing, insitu concrete",212,360]
[null,null,null,null,"21/4   External walls: Curtain walling",1109,2.0499999999999998,"External Walls","21/4  ","External walls: Curtain walling",212,360]
[null,null,null,null,"21/4H  External walls: Curtain walling, metal",1110,2.0499999999999998,"External Walls","21/4H ","External walls: Curtain walling, metal",212,360]
[null,null,null,null,"21/4H2 External walls: Curtain walling, steel sheet",1111,2.0499999999999998,"External Walls","21/4H2","External walls: Curtain walling, steel sheet",212,360]
[null,null,null,null,"21/4H4 External walls: Curtain walling, aluminium",1112,2.0499999999999998,"External Walls","21/4H4","External walls: Curtain walling, aluminium",212,360]
[null,null,null,null,"21/4I  External walls: Curtain walling, timber",1113,2.0499999999999998,"External Walls","21/4I ","External walls: Curtain walling, timber",212,360]
[null,null,null,null,"21/6   External walls: Cladding on framing",1114,2.0499999999999998,"External Walls","21/6  ","External walls: Cladding on framing",212,360]
[null,null,null,null,"21/6F6 External walls: Cladding on framing, asbestos cement or like",1115,2.0499999999999998,"External Walls","21/6F6","External walls: Cladding on framing, asbestos cement or like",212,360]
[null,null,null,null,"21/6H  External walls: Cladding on framing, metal",1116,2.0499999999999998,"External Walls","21/6H ","External walls: Cladding on framing, metal",212,360]
[null,null,null,null,"21/6H2 External walls: Cladding on framing, steel sheet",1117,2.0499999999999998,"External Walls","21/6H2","External walls: Cladding on framing, steel sheet",212,360]
[null,null,null,null,"21/6H4 External walls: Cladding on framing, aluminium",1118,2.0499999999999998,"External Walls","21/6H4","External walls: Cladding on framing, aluminium",212,360]
[null,null,null,null,"21/6N6 External walls: Cladding on framing, plastic",1119,2.0499999999999998,"External Walls","21/6N6","External walls: Cladding on framing, plastic",212,360]
[null,null,null,null,"21/6N8 External walls: Cladding on framing, glass fibre",1120,2.0499999999999998,"External Walls","21/6N8","External walls: Cladding on framing, glass fibre",212,360]
[null,null,null,null,"21/7   External walls: Patent glazing",1121,2.0499999999999998,"External Walls","21/7  ","External walls: Patent glazing",212,360]
[null,null,null,null,"21/7H  External walls: Patent glazing, metal",1122,2.0499999999999998,"External Walls","21/7H ","External walls: Patent glazing, metal",212,360]
[null,null,null,null,"21/7H4 External walls: Patent glazing, aluminium",1123,2.0499999999999998,"External Walls","21/7H4","External walls: Patent glazing, aluminium",212,360]
[null,null,null,null,"21/8   External walls: Other",1124,2.0499999999999998,"External Walls","21/8  ","External walls: Other",212,360]
[null,null,null,null,"41/0   External wall finishes: Undefined",1332,2.0499999999999998,"External Walls","41/0  ","External wall finishes: Undefined",212,360]
[null,null,null,null,"41/1E  External wall finishes: Stone",1333,2.0499999999999998,"External Walls","41/1E ","External wall finishes: Stone",212,360]
[null,null,null,null,"41/1E5 External wall finishes: Natural quarry slates",1334,2.0499999999999998,"External Walls","41/1E5","External wall finishes: Natural quarry slates",212,360]
[null,null,null,null,"41/1F2 External wall finishes: Tiles/slates, concrete/clay (hung)",1335,2.0499999999999998,"External Walls","41/1F2","External wall finishes: Tiles/slates, concrete/clay (hung)",212,360]
[null,null,null,null,"41/1F6 External wall finishes: Asbestos cement or similar, slates/boards",1336,2.0499999999999998,"External Walls","41/1F6","External wall finishes: Asbestos cement or similar, slates/boards",212,360]
[null,null,null,null,"41/1G2 External wall finishes: Clay tiles (bedded)",1337,2.0499999999999998,"External Walls","41/1G2","External wall finishes: Clay tiles (bedded)",212,360]
[null,null,null,null,"41/1H2 External wall finishes: Steel",1338,2.0499999999999998,"External Walls","41/1H2","External wall finishes: Steel",212,360]
[null,null,null,null,"41/1H5 External wall finishes: Copper",1339,2.0499999999999998,"External Walls","41/1H5","External wall finishes: Copper",212,360]
[null,null,null,null,"41/1H7 External wall finishes: Zinc",1340,2.0499999999999998,"External Walls","41/1H7","External wall finishes: Zinc",212,360]
[null,null,null,null,"41/1H8 External wall finishes: Lead",1341,2.0499999999999998,"External Walls","41/1H8","External wall finishes: Lead",212,360]
[null,null,null,null,"41/1I2 External wall finishes: Softwood boarding",1342,2.0499999999999998,"External Walls","41/1I2","External wall finishes: Softwood boarding",212,360]
[null,null,null,null,"41/1I3 External wall finishes: Hardwood boarding",2598,2.0499999999999998,"External Walls","41/1I3","External wall finishes: Hardwood boarding",212,360]
[null,null,null,null,"41/1I4 External wall finishes: Wood laminates",1343,2.0499999999999998,"External Walls","41/1I4","External wall finishes: Wood laminates",212,360]
[null,null,null,null,"41/1N6 External wall finishes: Plastic",1344,2.0499999999999998,"External Walls","41/1N6","External wall finishes: Plastic",212,360]
[null,null,null,null,"41/1Q4 External wall finishes: Render/rough cast",1345,2.0499999999999998,"External Walls","41/1Q4","External wall finishes: Render/rough cast",212,360]
[null,null,null,null,"41/1V  External wall finishes: Paint only",1346,2.0499999999999998,"External Walls","41/1V ","External wall finishes: Paint only",212,360]
[null,null,null,null,"41/5   External wall finishes: Overcladding to existing",1347,2.0499999999999998,"External Walls","41/5  ","External wall finishes: Overcladding to existing",212,360]
[null,null,null,null,"41/5H4 External wall finishes: Overcladding to existing, aluminium",1348,2.0499999999999998,"External Walls","41/5H4","External wall finishes: Overcladding to existing, aluminium",212,360]
[null,null,null,null,"41/6   External wall finishes: Cladding on framing",1349,2.0499999999999998,"External Walls","41/6  ","External wall finishes: Cladding on framing",212,360]
[null,null,null,null,"41/6F6 External wall finishes: Cladding on framing, asbestos cement or like",1350,2.0499999999999998,"External Walls","41/6F6","External wall finishes: Cladding on framing, asbestos cement or like",212,360]
[null,null,null,null,"41/6H  External wall finishes: Cladding on framing, metal",1351,2.0499999999999998,"External Walls","41/6H ","External wall finishes: Cladding on framing, metal",212,360]
[null,null,null,null,"41/6H2 External wall finishes: Cladding on framing, steel",1352,2.0499999999999998,"External Walls","41/6H2","External wall finishes: Cladding on framing, steel",212,360]
[null,null,null,null,"41/6H4 External wall finishes: Cladding on framing, aluminium",1353,2.0499999999999998,"External Walls","41/6H4","External wall finishes: Cladding on framing, aluminium",212,360]
[null,null,null,null,"41/8   External wall finishes: Other",1354,2.0499999999999998,"External Walls","41/8  ","External wall finishes: Other",212,360]
[null,null,null,null," ",0,2.06,"External Windows and Doors",null,null,215,370]
[null,null,null,null,"31/  0 MOB",1239,2.06,"External Windows and Doors","31/  0","MOB",215,370]
[null,null,null,null,"31/  9 PC Provisional Sum",1240,2.06,"External Windows and Doors","31/  9","PC Provisional Sum",215,370]
[null,null,null,null,"31/ H  Metal",1241,2.06,"External Windows and Doors","31/ H ","Metal",215,370]
[null,null,null,null,"31/ H2 Steel",1242,2.06,"External Windows and Doors","31/ H2","Steel",215,370]
[null,null,null,null,"31/ H4 Aluminium",1243,2.06,"External Windows and Doors","31/ H4","Aluminium",215,370]
[null,null,null,null,"31/ I1 Timber",1244,2.06,"External Windows and Doors","31/ I1","Timber",215,370]
[null,null,null,null,"31/ I2 Softwood",1245,2.06,"External Windows and Doors","31/ I2","Softwood",215,370]
[null,null,null,null,"31/ I3 Hardwood",1246,2.06,"External Windows and Doors","31/ I3","Hardwood",215,370]
[null,null,null,null,"31/ N6 Plastic",1247,2.06,"External Windows and Doors","31/ N6","Plastic",215,370]
[null,null,null,null,"31/0   Undefined",1248,2.06,"External Windows and Doors","31/0  ","Undefined",215,370]
[null,null,null,null,"31/0 1 Curtain walling",1249,2.06,"External Windows and Doors","31/0 1","Curtain walling",215,370]
[null,null,null,null,{"$f":"I297&\" \" &J297","v":"31/0 2 Patent glazing"},1250,2.06,"External Windows and Doors","31/0 2","Patent glazing",215,370]
[null,null,null,null,"31/3   Hoardings/temporary shop fronts etc",1251,2.06,"External Windows and Doors","31/3  ","Hoardings/temporary shop fronts etc",215,370]
[null,null,null,null,"31/3H  Hoardings/temporary shop fronts etc, metal",1252,2.06,"External Windows and Doors","31/3H ","Hoardings/temporary shop fronts etc, metal",215,370]
[null,null,null,null,"31/4   Sliding folding",1253,2.06,"External Windows and Doors","31/4  ","Sliding folding",215,370]
[null,null,null,null,"31/4H  Sliding, folding, metal",1254,2.06,"External Windows and Doors","31/4H ","Sliding, folding, metal",215,370]
[null,null,null,null,"31/4H2 Sliding, folding, steel",1255,2.06,"External Windows and Doors","31/4H2","Sliding, folding, steel",215,370]
[null,null,null,null,"31/4H4 Sliding, folding, aluminium",1256,2.06,"External Windows and Doors","31/4H4","Sliding, folding, aluminium",215,370]
[null,null,null,null,"31/4I1 Sliding, folding, timber",1257,2.06,"External Windows and Doors","31/4I1","Sliding, folding, timber",215,370]
[null,null,null,null,"31/4I2 Sliding, folding, softwood",1258,2.06,"External Windows and Doors","31/4I2","Sliding, folding, softwood",215,370]
[null,null,null,null,"31/4I3 Sliding, folding, hardwood",1259,2.06,"External Windows and Doors","31/4I3","Sliding, folding, hardwood",215,370]
[null,null,null,null,"31/4N6 Sliding, folding, plastic",1260,2.06,"External Windows and Doors","31/4N6","Sliding, folding, plastic",215,370]
[null,null,null,null,"31/5   Vertical shutters",1261,2.06,"External Windows and Doors","31/5  ","Vertical shutters",215,370]
[null,null,null,null,"31/5H  Vertical shutters, metal",1262,2.06,"External Windows and Doors","31/5H ","Vertical shutters, metal",215,370]
[null,null,null,null,"31/5H2 Vertical shutters, steel",1263,2.06,"External Windows and Doors","31/5H2","Vertical shutters, steel",215,370]
[null,null,null,null,"31/5H4 Vertical shutters, aluminium",1264,2.06,"External Windows and Doors","31/5H4","Vertical shutters, aluminium",215,370]
[null,null,null,null,"31/5I1 Vertical shutters, timber",1265,2.06,"External Windows and Doors","31/5I1","Vertical shutters, timber",215,370]
[null,null,null,null,"31/5I2 Vertical shutters, softwood",1266,2.06,"External Windows and Doors","31/5I2","Vertical shutters, softwood",215,370]
[null,null,null,null,"31/5I3 Vertical shutters, hardwood",1267,2.06,"External Windows and Doors","31/5I3","Vertical shutters, hardwood",215,370]
[null,null,null,null,"31/5N6 Vertical shutters, plastic",1268,2.06,"External Windows and Doors","31/5N6","Vertical shutters, plastic",215,370]
[null,null,null,null,"31/6   Overhead/up and over",1269,2.06,"External Windows and Doors","31/6  ","Overhead/up and over",215,370]
[null,null,null,null,"31/6H  Overhead/up and over, metal",1270,2.06,"External Windows and Doors","31/6H ","Overhead/up and over, metal",215,370]
[null,null,null,null,"31/6H2 Overhead/up and over, steel",1271,2.06,"External Windows and Doors","31/6H2","Overhead/up and over, steel",215,370]
[null,null,null,null,"31/6H4 Overhead/up and over, aluminium",1272,2.06,"External Windows and Doors","31/6H4","Overhead/up and over, aluminium",215,370]
[null,null,null,null,"31/6I1 Overhead/up and over, timber",1273,2.06,"External Windows and Doors","31/6I1","Overhead/up and over, timber",215,370]
[null,null,null,null,"31/6I2 Overhead/up and over, softwood",1274,2.06,"External Windows and Doors","31/6I2","Overhead/up and over, softwood",215,370]
[null,null,null,null,"31/6I3 Overhead/up and over, hardwood",1275,2.06,"External Windows and Doors","31/6I3","Overhead/up and over, hardwood",215,370]
[null,null,null,null,"31/6N6 Overhead/up and over, plastic",1276,2.06,"External Windows and Doors","31/6N6","Overhead/up and over, plastic",215,370]
[null,null,null,null,"31/7   Entrance screens/shop fronts",1277,2.06,"External Windows and Doors","31/7  ","Entrance screens/shop fronts",215,370]
[null,null,null,null,"31/7H  Entrance screens/shop fronts, metal",1278,2.06,"External Windows and Doors","31/7H ","Entrance screens/shop fronts, metal",215,370]
[null,null,null,null,"31/7H2 Entrance screens/shop fronts, steel",1279,2.06,"External Windows and Doors","31/7H2","Entrance screens/shop fronts, steel",215,370]
[null,null,null,null,"31/7H4 Entrance screens/shop fronts, aluminium",1280,2.06,"External Windows and Doors","31/7H4","Entrance screens/shop fronts, aluminium",215,370]
[null,null,null,null,"31/7I1 Entrance screens/shop fronts, timber",1281,2.06,"External Windows and Doors","31/7I1","Entrance screens/shop fronts, timber",215,370]
[null,null,null,null,"31/7I2 Entrance screens/shop fronts, softwood",1282,2.06,"External Windows and Doors","31/7I2","Entrance screens/shop fronts, softwood",215,370]
[null,null,null,null,"31/7I3 Entrance screens/shop fronts, hardwood",1283,2.06,"External Windows and Doors","31/7I3","Entrance screens/shop fronts, hardwood",215,370]
[null,null,null,null,"31/7N6 Entrance screens/shop fronts, Plastic",1284,2.06,"External Windows and Doors","31/7N6","Entrance screens/shop fronts, Plastic",215,370]
[null,null,null,null,"31/8   Other",1285,2.06,"External Windows and Doors","31/8  ","Other",215,370]
[null,null,null,null,"31/8 6 Revolving doors",1286,2.06,"External Windows and Doors","31/8 6","Revolving doors",215,370]
[null,null,null,null,"31/8 7 Flexible doors",1287,2.06,"External Windows and Doors","31/8 7","Flexible doors",215,370]
[null,null,null,null,"31/8O  Doors, glass",1288,2.06,"External Windows and Doors","31/8O ","Doors, glass",215,370]
[null,null,null,null,"31/9   Double glazed/special glazing",1289,2.06,"External Windows and Doors","31/9  ","Double glazed/special glazing",215,370]
[null,null,null,null,"31/9 2 Double glazed/special glazed, patent glazing",1290,2.06,"External Windows and Doors","31/9 2","Double glazed/special glazed, patent glazing",215,370]
[null,null,null,null,"31/9H  Double glazed/special glazed, metal",1291,2.06,"External Windows and Doors","31/9H ","Double glazed/special glazed, metal",215,370]
[null,null,null,null,"31/9H2 Double glazed/special glazed, steel",1292,2.06,"External Windows and Doors","31/9H2","Double glazed/special glazed, steel",215,370]
[null,null,null,null,"31/9H4 Double glazed/special glazed, Aluminium",1293,2.06,"External Windows and Doors","31/9H4","Double glazed/special glazed, Aluminium",215,370]
[null,null,null,null,"31/9I1 Double glazed/special glazed, Timber",1294,2.06,"External Windows and Doors","31/9I1","Double glazed/special glazed, Timber",215,370]
[null,null,null,null,"31/9I2 Double glazed/special glazed, softwood",1295,2.06,"External Windows and Doors","31/9I2","Double glazed/special glazed, softwood",215,370]
[null,null,null,null,"31/9I3 Double glazed/special glazed, hardwood",1296,2.06,"External Windows and Doors","31/9I3","Double glazed/special glazed, hardwood",215,370]
[null,null,null,null,"31/9N6 Double glazed/special glazed, plastic",1297,2.06,"External Windows and Doors","31/9N6","Double glazed/special glazed, plastic",215,370]
[null,null,null,null," ",0,2.0699999999999998,"Internal Walls and Partitions",null,null,220,380]
[null,null,null,null,"22/ F2 Precast concrete",1125,2.0699999999999998,"Internal Walls and Partitions","22/ F2","Precast concrete",220,380]
[null,null,null,null,"22/ F4 Block",1126,2.0699999999999998,"Internal Walls and Partitions","22/ F4","Block",220,380]
[null,null,null,null,"22/ G2 Clay/concrete brick",1127,2.0699999999999998,"Internal Walls and Partitions","22/ G2","Clay/concrete brick",220,380]
[null,null,null,null,"22/ Q4 Insitu concrete",1128,2.0699999999999998,"Internal Walls and Partitions","22/ Q4","Insitu concrete",220,380]
[null,null,null,null,"22/0   Undefined",1129,2.0699999999999998,"Internal Walls and Partitions","22/0  ","Undefined",220,380]
[null,null,null,null,"22/1   Loadbearing",1130,2.0699999999999998,"Internal Walls and Partitions","22/1  ","Loadbearing",220,380]
[null,null,null,null,"22/1 0 Loadbearing, MOB",1131,2.0699999999999998,"Internal Walls and Partitions","22/1 0","Loadbearing, MOB",220,380]
[null,null,null,null,"22/1E  Loadbearing, stone",1132,2.0699999999999998,"Internal Walls and Partitions","22/1E ","Loadbearing, stone",220,380]
[null,null,null,null,"22/1F2 Loadbearing, precast concrete",1133,2.0699999999999998,"Internal Walls and Partitions","22/1F2","Loadbearing, precast concrete",220,380]
[null,null,null,null,"22/1F4 Loadbearing, block",1134,2.0699999999999998,"Internal Walls and Partitions","22/1F4","Loadbearing, block",220,380]
[null,null,null,null,"22/1G2 Loadbearing, clay/concrete brick",1135,2.0699999999999998,"Internal Walls and Partitions","22/1G2","Loadbearing, clay/concrete brick",220,380]
[null,null,null,null,"22/1I1 Loadbearing, timber",1136,2.0699999999999998,"Internal Walls and Partitions","22/1I1","Loadbearing, timber",220,380]
[null,null,null,null,"22/1Q4 Loadbearing, insitu concrete",1137,2.0699999999999998,"Internal Walls and Partitions","22/1Q4","Loadbearing, insitu concrete",220,380]
[null,null,null,null,"22/2   Non loadbearing",1138,2.0699999999999998,"Internal Walls and Partitions","22/2  ","Non loadbearing",220,380]
[null,null,null,null,"22/2 0 Non loadbearing, MOB",1139,2.0699999999999998,"Internal Walls and Partitions","22/2 0","Non loadbearing, MOB",220,380]
[null,null,null,null,{"$f":"I361&\" \" &J361","v":"22/2E  Non loadbearing, stone"},1140,2.0699999999999998,"Internal Walls and Partitions","22/2E ","Non loadbearing, stone",220,380]
[null,null,null,null,"22/2F4 Non loadbearing, block",1141,2.0699999999999998,"Internal Walls and Partitions","22/2F4","Non loadbearing, block",220,380]
[null,null,null,null,"22/2F7 Non-loadbearing, plasterboard system",1142,2.0699999999999998,"Internal Walls and Partitions","22/2F7","Non-loadbearing, plasterboard system",220,380]
[null,null,null,null,"22/2G2 Non loadbearing, clay/concrete brick",1143,2.0699999999999998,"Internal Walls and Partitions","22/2G2","Non loadbearing, clay/concrete brick",220,380]
[null,null,null,null,"22/2H  Non loadbearing, metal stud",1144,2.0699999999999998,"Internal Walls and Partitions","22/2H ","Non loadbearing, metal stud",220,380]
[null,null,null,null,"22/2H2 Non loadbearing, steel",1145,2.0699999999999998,"Internal Walls and Partitions","22/2H2","Non loadbearing, steel",220,380]
[null,null,null,null,"22/2H4 Non loadbearing, glazed aluminium",1146,2.0699999999999998,"Internal Walls and Partitions","22/2H4","Non loadbearing, glazed aluminium",220,380]
[null,null,null,null,"22/2H6 Non loadbearing, glazed metal screen",1147,2.0699999999999998,"Internal Walls and Partitions","22/2H6","Non loadbearing, glazed metal screen",220,380]
[null,null,null,null,"22/2I1 Non loadbearing, timber stud",1148,2.0699999999999998,"Internal Walls and Partitions","22/2I1","Non loadbearing, timber stud",220,380]
[null,null,null,null,"22/2I6 Non loadbearing, glazed timber screen",1149,2.0699999999999998,"Internal Walls and Partitions","22/2I6","Non loadbearing, glazed timber screen",220,380]
[null,null,null,null,"22/2O  Non-loadbearing, glass",1150,2.0699999999999998,"Internal Walls and Partitions","22/2O ","Non-loadbearing, glass",220,380]
[null,null,null,null,"22/3   Demountable",1151,2.0699999999999998,"Internal Walls and Partitions","22/3  ","Demountable",220,380]
[null,null,null,null,"22/3 0 Demountable, MOB",1152,2.0699999999999998,"Internal Walls and Partitions","22/3 0","Demountable, MOB",220,380]
[null,null,null,null,"22/3F7 Demountable, plasterboard system",1153,2.0699999999999998,"Internal Walls and Partitions","22/3F7","Demountable, plasterboard system",220,380]
[null,null,null,null,"22/3H  Demountable, metal",1154,2.0699999999999998,"Internal Walls and Partitions","22/3H ","Demountable, metal",220,380]
[null,null,null,null,"22/3H2 Demountable, steel",1155,2.0699999999999998,"Internal Walls and Partitions","22/3H2","Demountable, steel",220,380]
[null,null,null,null,"22/3I1 Demountable, timber",1156,2.0699999999999998,"Internal Walls and Partitions","22/3I1","Demountable, timber",220,380]
[null,null,null,null,"22/4   Proprietary partitions",1157,2.0699999999999998,"Internal Walls and Partitions","22/4  ","Proprietary partitions",220,380]
[null,null,null,null,"22/5   Moveable room dividers",1158,2.0699999999999998,"Internal Walls and Partitions","22/5  ","Moveable room dividers",220,380]
[null,null,null,null,"22/8   Other",1159,2.0699999999999998,"Internal Walls and Partitions","22/8  ","Other",220,380]
[null,null,null,null," ",0,2.08,"Internal Doors",null,null,221,390]
[null,null,null,null,"32/0   Undefined",1298,2.08,"Internal Doors","32/0  ","Undefined",221,390]
[null,null,null,null,"32/3   Doors",1299,2.08,"Internal Doors","32/3  ","Doors",221,390]
[null,null,null,null,"32/3 0 Doors, MOB",1300,2.08,"Internal Doors","32/3 0","Doors, MOB",221,390]
[null,null,null,null,"32/3H  Doors, metal",1301,2.08,"Internal Doors","32/3H ","Doors, metal",221,390]
[null,null,null,null,"32/3H4 Doors, aluminium",1302,2.08,"Internal Doors","32/3H4","Doors, aluminium",221,390]
[null,null,null,null,"32/3I0 Doors, timber MOB",1303,2.08,"Internal Doors","32/3I0","Doors, timber MOB",221,390]
[null,null,null,null,"32/3I2 Doors, softwood or flush",1304,2.08,"Internal Doors","32/3I2","Doors, softwood or flush",221,390]
[null,null,null,null,"32/3I3 Doors, hardwood",1305,2.08,"Internal Doors","32/3I3","Doors, hardwood",221,390]
[null,null,null,null,"32/3N6 Doors, plastic",1306,2.08,"Internal Doors","32/3N6","Doors, plastic",221,390]
[null,null,null,null,"32/3O  Doors, glass",1307,2.08,"Internal Doors","32/3O ","Doors, glass",221,390]
[null,null,null,null,"32/5   Sliding/folding/roller shutters",1308,2.08,"Internal Doors","32/5  ","Sliding/folding/roller shutters",221,390]
[null,null,null,null,"32/5H2 Sliding/folding/roller shutters - steel",1309,2.08,"Internal Doors","32/5H2","Sliding/folding/roller shutters - steel",221,390]
[null,null,null,null,"32/5H4 Sliding/folding/roller shutters - aluminium",1310,2.08,"Internal Doors","32/5H4","Sliding/folding/roller shutters - aluminium",221,390]
[null,null,null,null,"32/7   Flexible doors",1311,2.08,"Internal Doors","32/7  ","Flexible doors",221,390]
[null,null,null,null,"32/8   Other",1312,2.08,"Internal Doors","32/8  ","Other",221,390]
[null,null,null,null," ",0,3.01,"Wall Finishes",null,null,223,410]
[null,null,null,null,"42/0   Undefined",1355,3.01,"Wall Finishes","42/0  ","Undefined",223,410]
[null,null,null,null,"42/1   Fairfaced or self finished",1356,3.01,"Wall Finishes","42/1  ","Fairfaced or self finished",223,410]
[null,null,null,null,"42/1E  Stone",1357,3.01,"Wall Finishes","42/1E ","Stone",223,410]
[null,null,null,null,"42/1E2 Marble",1358,3.01,"Wall Finishes","42/1E2","Marble",223,410]
[null,null,null,null,"42/1F6 Asbestos cement or similar",1359,3.01,"Wall Finishes","42/1F6","Asbestos cement or similar",223,410]
[null,null,null,null,"42/1F7 Plasterboard",1360,3.01,"Wall Finishes","42/1F7","Plasterboard",223,410]
[null,null,null,null,"42/1G2 Clay tiles",1361,3.01,"Wall Finishes","42/1G2","Clay tiles",223,410]
[null,null,null,null,"42/1H2 Steel",1362,3.01,"Wall Finishes","42/1H2","Steel",223,410]
[null,null,null,null,"42/1H4 Aluminium",1363,3.01,"Wall Finishes","42/1H4","Aluminium",223,410]
[null,null,null,null,"42/1I2 Softwood boarding",1364,3.01,"Wall Finishes","42/1I2","Softwood boarding",223,410]
[null,null,null,null,"42/1I3 Hardwood boarding/panelling",1365,3.01,"Wall Finishes","42/1I3","Hardwood boarding/panelling",223,410]
[null,null,null,null,"42/1I4 Wood laminates",1366,3.01,"Wall Finishes","42/1I4","Wood laminates",223,410]
[null,null,null,null,"42/1J1 Hardboard/fibre board",1367,3.01,"Wall Finishes","42/1J1","Hardboard/fibre board",223,410]
[null,null,null,null,"42/1J2 Wallpaper and the like",1368,3.01,"Wall Finishes","42/1J2","Wallpaper and the like",223,410]
[null,null,null,null,"42/1J6 Carpet",1369,3.01,"Wall Finishes","42/1J6","Carpet",223,410]
[null,null,null,null,"42/1M1 Mineral fibre tiles",1370,3.01,"Wall Finishes","42/1M1","Mineral fibre tiles",223,410]
[null,null,null,null,"42/1N6 Plastic, pre-formed",1371,3.01,"Wall Finishes","42/1N6","Plastic, pre-formed",223,410]
[null,null,null,null,"42/1N8 Plastic, applied insitu",1372,3.01,"Wall Finishes","42/1N8","Plastic, applied insitu",223,410]
[null,null,null,null,"42/1O7 Mirror glass walling",1373,3.01,"Wall Finishes","42/1O7","Mirror glass walling",223,410]
[null,null,null,null,"42/1Q4 Render",1374,3.01,"Wall Finishes","42/1Q4","Render",223,410]
[null,null,null,null,"42/1R2 Plaster",1375,3.01,"Wall Finishes","42/1R2","Plaster",223,410]
[null,null,null,null,"42/1R4 Plastic compound (Artex)",1376,3.01,"Wall Finishes","42/1R4","Plastic compound (Artex)",223,410]
[null,null,null,null,"42/1V  Paint only",1377,3.01,"Wall Finishes","42/1V ","Paint only",223,410]
[null,null,null,null,"42/8   Other",1378,3.01,"Wall Finishes","42/8  ","Other",223,410]
[null,null,null,null," ",0,3.02,"Floor Finishes",null,null,226,420]
[null,null,null,null,"33/0   Secondary floors: Undefined",1313,3.02,"Floor Finishes","33/0  ","Secondary floors: Undefined",226,420]
[null,null,null,null,"33/1   Secondary floors: Access floor",1314,3.02,"Floor Finishes","33/1  ","Secondary floors: Access floor",226,420]
[null,null,null,null,{"$f":"I425&\" \" &J425","v":"33/1H  Secondary floors: Access floor metal"},1315,3.02,"Floor Finishes","33/1H ","Secondary floors: Access floor metal",226,420]
[null,null,null,null,"33/1H2 Secondary floors: Access floor steel",1316,3.02,"Floor Finishes","33/1H2","Secondary floors: Access floor steel",226,420]
[null,null,null,null,"33/8   Secondary floors: Other",1317,3.02,"Floor Finishes","33/8  ","Secondary floors: Other",226,420]
[null,null,null,null,"43/0   Floor finishes: Undefined",1379,3.02,"Floor Finishes","43/0  ","Floor finishes: Undefined",226,420]
[null,null,null,null,"43/1   Floor finishes: Uncovered or self finished structural floor",1380,3.02,"Floor Finishes","43/1  ","Floor finishes: Uncovered or self finished structural floor",226,420]
[null,null,null,null,"43/1E  Floor finishes: Stone",1381,3.02,"Floor Finishes","43/1E ","Floor finishes: Stone",226,420]
[null,null,null,null,"43/1E2 Floor finishes: Marble",1382,3.02,"Floor Finishes","43/1E2","Floor finishes: Marble",226,420]
[null,null,null,null,"43/1F2 Floor finishes: Precast concrete",1383,3.02,"Floor Finishes","43/1F2","Floor finishes: Precast concrete",226,420]
[null,null,null,null,"43/1F3 Floor finishes: Granolithic/terrazzo precast",1384,3.02,"Floor Finishes","43/1F3","Floor finishes: Granolithic/terrazzo precast",226,420]
[null,null,null,null,"43/1G2 Floor finishes: Clay tiles",1385,3.02,"Floor Finishes","43/1G2","Floor finishes: Clay tiles",226,420]
[null,null,null,null,"43/1I2 Floor finishes: Softwood",1386,3.02,"Floor Finishes","43/1I2","Floor finishes: Softwood",226,420]
[null,null,null,null,"43/1I3 Floor finishes: Hardwood",1387,3.02,"Floor Finishes","43/1I3","Floor finishes: Hardwood",226,420]
[null,null,null,null,"43/1I4 Floor finishes: Wood laminates",1388,3.02,"Floor Finishes","43/1I4","Floor finishes: Wood laminates",226,420]
[null,null,null,null,"43/1I6 Floor finishes: Composition wood blocks",1389,3.02,"Floor Finishes","43/1I6","Floor finishes: Composition wood blocks",226,420]
[null,null,null,null,"43/1I7 Floor finishes: Independent floor eg chipboard on battens",1390,3.02,"Floor Finishes","43/1I7","Floor finishes: Independent floor eg chipboard on battens",226,420]
[null,null,null,null,"43/1J5 Floor finishes: Cork",1391,3.02,"Floor Finishes","43/1J5","Floor finishes: Cork",226,420]
[null,null,null,null,"43/1J6 Floor finishes: Carpet",1392,3.02,"Floor Finishes","43/1J6","Floor finishes: Carpet",226,420]
[null,null,null,null,"43/1N4 Floor finishes: Linoleum",1393,3.02,"Floor Finishes","43/1N4","Floor finishes: Linoleum",226,420]
[null,null,null,null,"43/1N5 Floor finishes: Rubber",1394,3.02,"Floor Finishes","43/1N5","Floor finishes: Rubber",226,420]
[null,null,null,null,"43/1N6 Floor finishes: Plastic tiles/sheeting",1395,3.02,"Floor Finishes","43/1N6","Floor finishes: Plastic tiles/sheeting",226,420]
[null,null,null,null,"43/1N8 Floor finishes: Astro turf or the like",1396,3.02,"Floor Finishes","43/1N8","Floor finishes: Astro turf or the like",226,420]
[null,null,null,null,"43/1Q4 Floor finishes: Screed left uncovered",1397,3.02,"Floor Finishes","43/1Q4","Floor finishes: Screed left uncovered",226,420]
[null,null,null,null,"43/1Q5 Floor finishes: Granolithic/terrazzo insitu",1398,3.02,"Floor Finishes","43/1Q5","Floor finishes: Granolithic/terrazzo insitu",226,420]
[null,null,null,null,"43/1R4 Floor finishes: Special screeds",1399,3.02,"Floor Finishes","43/1R4","Floor finishes: Special screeds",226,420]
[null,null,null,null,"43/1S4 Floor finishes: Asphalt/tarmacadam",1400,3.02,"Floor Finishes","43/1S4","Floor finishes: Asphalt/tarmacadam",226,420]
[null,null,null,null,"43/1V  Floor finishes: Paint only",1401,3.02,"Floor Finishes","43/1V ","Floor finishes: Paint only",226,420]
[null,null,null,null,"43/8   Floor finishes: Other",1402,3.02,"Floor Finishes","43/8  ","Floor finishes: Other",226,420]
[null,null,null,null," ",0,3.03,"Ceiling Finishes",null,null,230,430]
[null,null,null,null,"35/1   Suspended ceiling: Undefined suspended ceiling",1318,3.03,"Ceiling Finishes","35/1  ","Suspended ceiling: Undefined suspended ceiling",230,430]
[null,null,null,null,"35/1F6 Suspended ceiling: Asbestos cement or similar suspended ceiling",1319,3.03,"Ceiling Finishes","35/1F6","Suspended ceiling: Asbestos cement or similar suspended ceiling",230,430]
[null,null,null,null,"35/1F7 Suspended ceiling: Plasterboard suspended ceiling",1320,3.03,"Ceiling Finishes","35/1F7","Suspended ceiling: Plasterboard suspended ceiling",230,430]
[null,null,null,null,"35/1H  Suspended ceiling: Metal suspended ceiling",1321,3.03,"Ceiling Finishes","35/1H ","Suspended ceiling: Metal suspended ceiling",230,430]
[null,null,null,null,"35/1H2 Suspended ceiling: Steel suspended ceiling",1322,3.03,"Ceiling Finishes","35/1H2","Suspended ceiling: Steel suspended ceiling",230,430]
[null,null,null,null,"35/1H4 Suspended ceiling: Aluminium suspended ceiling",1323,3.03,"Ceiling Finishes","35/1H4","Suspended ceiling: Aluminium suspended ceiling",230,430]
[null,null,null,null,"35/1I1 Suspended ceiling: Timber suspended ceiling",1324,3.03,"Ceiling Finishes","35/1I1","Suspended ceiling: Timber suspended ceiling",230,430]
[null,null,null,null,"35/1I4 Suspended ceiling: Wood laminates suspended ceiling",1325,3.03,"Ceiling Finishes","35/1I4","Suspended ceiling: Wood laminates suspended ceiling",230,430]
[null,null,null,null,"35/1J1 Suspended ceiling: Hardboard/fibre board suspended ceiling",1326,3.03,"Ceiling Finishes","35/1J1","Suspended ceiling: Hardboard/fibre board suspended ceiling",230,430]
[null,null,null,null,"35/1J7 Suspended ceiling: Wood particle board/grid suspended ceiling",1327,3.03,"Ceiling Finishes","35/1J7","Suspended ceiling: Wood particle board/grid suspended ceiling",230,430]
[null,null,null,null,"35/1M1 Suspended ceiling: Mineral fibre suspended ceiling",1328,3.03,"Ceiling Finishes","35/1M1","Suspended ceiling: Mineral fibre suspended ceiling",230,430]
[null,null,null,null,"35/1N6 Suspended ceiling: Plastic (where not on a base material) suspended ceiling",1329,3.03,"Ceiling Finishes","35/1N6","Suspended ceiling: Plastic (where not on a base material) suspended ceiling",230,430]
[null,null,null,null,"35/1R2 Suspended ceiling: Plaster on metal lath suspended ceiling",1330,3.03,"Ceiling Finishes","35/1R2","Suspended ceiling: Plaster on metal lath suspended ceiling",230,430]
[null,null,null,null,"35/8   Suspended ceiling: Other suspended ceiling",1331,3.03,"Ceiling Finishes","35/8  ","Suspended ceiling: Other suspended ceiling",230,430]
[null,null,null,null,"45/0   Ceiling finishes: Undefined",1403,3.03,"Ceiling Finishes","45/0  ","Ceiling finishes: Undefined",230,430]
[null,null,null,null,"45/1F6 Ceiling finishes: Asbestos cement or similar",1404,3.03,"Ceiling Finishes","45/1F6","Ceiling finishes: Asbestos cement or similar",230,430]
[null,null,null,null,"45/1F7 Ceiling finishes: Plasterboard",1405,3.03,"Ceiling Finishes","45/1F7","Ceiling finishes: Plasterboard",230,430]
[null,null,null,null,"45/1H  Ceiling finishes: Metal",1406,3.03,"Ceiling Finishes","45/1H ","Ceiling finishes: Metal",230,430]
[null,null,null,null,"45/1H2 Ceiling finishes: Steel",1407,3.03,"Ceiling Finishes","45/1H2","Ceiling finishes: Steel",230,430]
[null,null,null,null,"45/1H4 Ceiling finishes: Aluminium",1408,3.03,"Ceiling Finishes","45/1H4","Ceiling finishes: Aluminium",230,430]
[null,null,null,null,"45/1I2 Ceiling finishes: Softwood boarding",1409,3.03,"Ceiling Finishes","45/1I2","Ceiling finishes: Softwood boarding",230,430]
[null,null,null,null,"45/1I3 Ceiling finishes: Hardwood boarding",1410,3.03,"Ceiling Finishes","45/1I3","Ceiling finishes: Hardwood boarding",230,430]
[null,null,null,null,"45/1I4 Ceiling finishes: Wood laminates",1411,3.03,"Ceiling Finishes","45/1I4","Ceiling finishes: Wood laminates",230,430]
[null,null,null,null,"45/1J1 Ceiling finishes: Hardboard/fibre board",1412,3.03,"Ceiling Finishes","45/1J1","Ceiling finishes: Hardboard/fibre board",230,430]
[null,null,null,null,"45/1J2 Ceiling finishes: Wallpaper and the like (incl lining paper)",1413,3.03,"Ceiling Finishes","45/1J2","Ceiling finishes: Wallpaper and the like (incl lining paper)",230,430]
[null,null,null,null,"45/1M1 Ceiling finishes: Mineral fibre",1414,3.03,"Ceiling Finishes","45/1M1","Ceiling finishes: Mineral fibre",230,430]
[null,null,null,null,"45/1N6 Ceiling finishes: Plastic sheet/boarding",1415,3.03,"Ceiling Finishes","45/1N6","Ceiling finishes: Plastic sheet/boarding",230,430]
[null,null,null,null,"45/1Q4 Ceiling finishes: Render",1416,3.03,"Ceiling Finishes","45/1Q4","Ceiling finishes: Render",230,430]
[null,null,null,null,"45/1R2 Ceiling finishes: Plaster",1417,3.03,"Ceiling Finishes","45/1R2","Ceiling finishes: Plaster",230,430]
[null,null,null,null,"45/1R4 Ceiling finishes: Plastic compound (Artex)",1418,3.03,"Ceiling Finishes","45/1R4","Ceiling finishes: Plastic compound (Artex)",230,430]
[null,null,null,null,"45/1V  Ceiling finishes: Paint only",1419,3.03,"Ceiling Finishes","45/1V ","Ceiling finishes: Paint only",230,430]
[null,null,null,null,"45/8   Ceiling finishes: Other",1420,3.03,"Ceiling Finishes","45/8  ","Ceiling finishes: Other",230,430]
[null,null,null,null," ",0,4,"Fittings, Furnishings and Equipment",null,null,240,450]
[null,null,null,null,"70/0   Normal for building type",1617,4,"Fittings, Furnishings and Equipment","70/0  ","Normal for building type",240,450]
[null,null,null,null,"70/00  Undefined",1618,4,"Fittings, Furnishings and Equipment","70/00 ","Undefined",240,450]
[null,null,null,null,"70/81  Fixed seating (theatres,grandstands,churches)",1619,4,"Fittings, Furnishings and Equipment","70/81 ","Fixed seating (theatres,grandstands,churches)",240,450]
[null,null,null,null,{"$f":"I489&\" \" &J489","v":"70/811 Stage as a fitting"},1620,4,"Fittings, Furnishings and Equipment","70/811","Stage as a fitting",240,450]
[null,null,null,null,"70/815 Bar fittings",1621,4,"Fittings, Furnishings and Equipment","70/815","Bar fittings",240,450]
[null,null,null,null,"70/82  Gymnasium equipment",1622,4,"Fittings, Furnishings and Equipment","70/82 ","Gymnasium equipment",240,450]
[null,null,null,null,"70/83  Loose seating",1623,4,"Fittings, Furnishings and Equipment","70/83 ","Loose seating",240,450]
[null,null,null,null,"70/84  Laboratory fittings",1624,4,"Fittings, Furnishings and Equipment","70/84 ","Laboratory fittings",240,450]
[null,null,null,null,"70/85  Bank fittings",1625,4,"Fittings, Furnishings and Equipment","70/85 ","Bank fittings",240,450]
[null,null,null,null,"70/86  Special fittings for disabled",1626,4,"Fittings, Furnishings and Equipment","70/86 ","Special fittings for disabled",240,450]
[null,null,null,null,"70/87  Shop fittings",1627,4,"Fittings, Furnishings and Equipment","70/87 ","Shop fittings",240,450]
[null,null,null,null,"70/888 Special",1628,4,"Fittings, Furnishings and Equipment","70/888","Special",240,450]
[null,null,null,null," ",0,5.01,"Sanitary Installations",null,null,243,460]
[null,null,null,null,"74/0   Normal for building type",1629,5.01,"Sanitary Installations","74/0  ","Normal for building type",243,460]
[null,null,null,null,"74/0 0 Normal for building type, MOB",1630,5.01,"Sanitary Installations","74/0 0","Normal for building type, MOB",243,460]
[null,null,null,null,"74/2   Washing",1631,5.01,"Sanitary Installations","74/2  ","Washing",243,460]
[null,null,null,null,"74/3   Drying",1632,5.01,"Sanitary Installations","74/3  ","Drying",243,460]
[null,null,null,null,"74/4   Disposal",1633,5.01,"Sanitary Installations","74/4  ","Disposal",243,460]
[null,null,null,null,"74/7   Supply",1634,5.01,"Sanitary Installations","74/7  ","Supply",243,460]
[null,null,null,null," ",0,5.0199999999999996,"Services Equipment",null,null,244,470]
[null,null,null,null,"67/11  Vacuum",1567,5.0199999999999996,"Services Equipment","67/11 ","Vacuum",244,470]
[null,null,null,null,"67/12  Fume cupboards",1568,5.0199999999999996,"Services Equipment","67/12 ","Fume cupboards",244,470]
[null,null,null,null,"67/13  Fuel storage",1569,5.0199999999999996,"Services Equipment","67/13 ","Fuel storage",244,470]
[null,null,null,null,"67/14  Pressure vessels",1570,5.0199999999999996,"Services Equipment","67/14 ","Pressure vessels",244,470]
[null,null,null,null,"67/15  Kitchen equipment",1571,5.0199999999999996,"Services Equipment","67/15 ","Kitchen equipment",244,470]
[null,null,null,null,"67/16  Electrical screening to transmitter rooms etc",1572,5.0199999999999996,"Services Equipment","67/16 ","Electrical screening to transmitter rooms etc",244,470]
[null,null,null,null,"67/17  Dock levellers",1573,5.0199999999999996,"Services Equipment","67/17 ","Dock levellers",244,470]
[null,null,null,null,"67/18  Laundry equipment",1574,5.0199999999999996,"Services Equipment","67/18 ","Laundry equipment",244,470]
[null,null,null,null,"67/19  Mortuary equipment",1575,5.0199999999999996,"Services Equipment","67/19 ","Mortuary equipment",244,470]
[null,null,null,null,"67/20  Special water for laboratories, etc",1577,5.0199999999999996,"Services Equipment","67/20 ","Special water for laboratories, etc",244,470]
[null,null,null,null,"67/22  Vehicle servicing equipment",1579,5.0199999999999996,"Services Equipment","67/22 ","Vehicle servicing equipment",244,470]
[null,null,null,null,"67/24  Automatic door/window controls",1581,5.0199999999999996,"Services Equipment","67/24 ","Automatic door/window controls",244,470]
[null,null,null,null,"67/25  Ice rink refrigeration plant",1582,5.0199999999999996,"Services Equipment","67/25 ","Ice rink refrigeration plant",244,470]
[null,null,null,null,"67/26  Solar controls",1583,5.0199999999999996,"Services Equipment","67/26 ","Solar controls",244,470]
[null,null,null,null,"67/27  Incinerator installation",1584,5.0199999999999996,"Services Equipment","67/27 ","Incinerator installation",244,470]
[null,null,null,null,"67/28  Autoclave/sterilizing installation",1585,5.0199999999999996,"Services Equipment","67/28 ","Autoclave/sterilizing installation",244,470]
[null,null,null,null,"67/29  Leisure pool equipment (wave makers, flumes)",1586,5.0199999999999996,"Services Equipment","67/29 ","Leisure pool equipment (wave makers, flumes)",244,470]
[null,null,null,null,"67/30  Computer installation",1588,5.0199999999999996,"Services Equipment","67/30 ","Computer installation",244,470]
[null,null,null,null,"67/32  Vacuum cleaning installation",1590,5.0199999999999996,"Services Equipment","67/32 ","Vacuum cleaning installation",244,470]
[null,null,null,null,"67/33  Cinema screens and equipment",1591,5.0199999999999996,"Services Equipment","67/33 ","Cinema screens and equipment",244,470]
[null,null,null,null,"67/35  Cremator",1593,5.0199999999999996,"Services Equipment","67/35 ","Cremator",244,470]
[null,null,null,null,"67/36  TV, film and radio studio equipment",1594,5.0199999999999996,"Services Equipment","67/36 ","TV, film and radio studio equipment",244,470]
[null,null,null,null,"67/37  Pneumatic tube communication systems",1595,5.0199999999999996,"Services Equipment","67/37 ","Pneumatic tube communication systems",244,470]
[null,null,null,null,"67/39  Waste compactor",1597,5.0199999999999996,"Services Equipment","67/39 ","Waste compactor",244,470]
[null,null,null,null,"67/4   Vehicle lift",1598,5.0199999999999996,"Services Equipment","67/4  ","Vehicle lift",244,470]
[null,null,null,null,"67/40  Pressurised water",1599,5.0199999999999996,"Services Equipment","67/40 ","Pressurised water",244,470]
[null,null,null,null,"67/5   Overhead travelling crane",1600,5.0199999999999996,"Services Equipment","67/5  ","Overhead travelling crane",244,470]
[null,null,null,null,"67/6   Compressed air",1601,5.0199999999999996,"Services Equipment","67/6  ","Compressed air",244,470]
[null,null,null,null,"67/7   Theatre sound system",1602,5.0199999999999996,"Services Equipment","67/7  ","Theatre sound system",244,470]
[null,null,null,null,"67/8   Theatre lighting system",1603,5.0199999999999996,"Services Equipment","67/8  ","Theatre lighting system",244,470]
[null,null,null,null,"67/888 Other unspecified",1604,5.0199999999999996,"Services Equipment","67/888","Other unspecified",244,470]
[null,null,null,null,"67/9   Swimming pool filtration",1605,5.0199999999999996,"Services Equipment","67/9  ","Swimming pool filtration",244,470]
[null,null,null,null," ",0,5.03,"Disposal Installations",null,null,248,480]
[null,null,null,null,"52/0   Undefined",1466,5.03,"Disposal Installations","52/0  ","Undefined",248,480]
[null,null,null,null,"52/1   Refuse",1467,5.03,"Disposal Installations","52/1  ","Refuse",248,480]
[null,null,null,null,"52/3   Soil and waste",1468,5.03,"Disposal Installations","52/3  ","Soil and waste",248,480]
[null,null,null,null,"52/4   Petrol/chemical",1469,5.03,"Disposal Installations","52/4  ","Petrol/chemical",248,480]
[null,null,null,null," ",0,5.04,"Water Installations",null,null,254,490]
[null,null,null,null," ",0,5.05,"Heat Source",null,null,255,500]
[null,null,null,null," ",0,5.0599999999999996,"Space Heating and Air Conditioning",null,null,264,510]
[null,null,null,null,"56/  9 Space heating: PC/Provisional sum",1470,5.0599999999999996,"Space Heating and Air Conditioning","56/  9","Space heating: PC/Provisional sum",264,510]
[null,null,null,null,"56/ W1 Space heating: Electric",1471,5.0599999999999996,"Space Heating and Air Conditioning","56/ W1","Space heating: Electric",264,510]
[null,null,null,null,"56/ W2 Space heating: Solid fuel",1472,5.0599999999999996,"Space Heating and Air Conditioning","56/ W2","Space heating: Solid fuel",264,510]
[null,null,null,null,"56/ W3 Space heating: Oil",1473,5.0599999999999996,"Space Heating and Air Conditioning","56/ W3","Space heating: Oil",264,510]
[null,null,null,null,"56/ W4 Space heating: Gas",1474,5.0599999999999996,"Space Heating and Air Conditioning","56/ W4","Space heating: Gas",264,510]
[null,null,null,null,"56/ W5 Space heating: Solar",1475,5.0599999999999996,"Space Heating and Air Conditioning","56/ W5","Space heating: Solar",264,510]
[null,null,null,null,"56/ W7 Space heating: Heat pump/heat exchanger",1476,5.0599999999999996,"Space Heating and Air Conditioning","56/ W7","Space heating: Heat pump/heat exchanger",264,510]
[null,null,null,null,{"$f":"I553&\" \" &J553","v":"56/0   Space heating: Undefined space heating"},1477,5.0599999999999996,"Space Heating and Air Conditioning","56/0  ","Space heating: Undefined space heating",264,510]
[null,null,null,null,"56/1   Space heating: Local",1478,5.0599999999999996,"Space Heating and Air Conditioning","56/1  ","Space heating: Local",264,510]
[null,null,null,null,"56/1 9 Space heating: Local, PC/Provisional sum",1479,5.0599999999999996,"Space Heating and Air Conditioning","56/1 9","Space heating: Local, PC/Provisional sum",264,510]
[null,null,null,null,"56/1W1 Space heating: Local, electricity",1480,5.0599999999999996,"Space Heating and Air Conditioning","56/1W1","Space heating: Local, electricity",264,510]
[null,null,null,null,"56/1W2 Space heating: Local, solid fuel",1481,5.0599999999999996,"Space Heating and Air Conditioning","56/1W2","Space heating: Local, solid fuel",264,510]
[null,null,null,null,"56/1W3 Space heating: Local, oil",1482,5.0599999999999996,"Space Heating and Air Conditioning","56/1W3","Space heating: Local, oil",264,510]
[null,null,null,null,"56/1W4 Space heating: Local, gas",1483,5.0599999999999996,"Space Heating and Air Conditioning","56/1W4","Space heating: Local, gas",264,510]
[null,null,null,null,"56/1W7 Space heating: Local, heat pump/heat exchanger",1484,5.0599999999999996,"Space Heating and Air Conditioning","56/1W7","Space heating: Local, heat pump/heat exchanger",264,510]
[null,null,null,null,"56/2   Space heating: Central hot water",1485,5.0599999999999996,"Space Heating and Air Conditioning","56/2  ","Space heating: Central hot water",264,510]
[null,null,null,null,"56/2 9 Space heating: Central hot water, PC/Provisional sum",1486,5.0599999999999996,"Space Heating and Air Conditioning","56/2 9","Space heating: Central hot water, PC/Provisional sum",264,510]
[null,null,null,null,"56/2W1 Space heating: Central hot water, electricity",1487,5.0599999999999996,"Space Heating and Air Conditioning","56/2W1","Space heating: Central hot water, electricity",264,510]
[null,null,null,null,"56/2W2 Space heating: Central hot water, solid fuel",1488,5.0599999999999996,"Space Heating and Air Conditioning","56/2W2","Space heating: Central hot water, solid fuel",264,510]
[null,null,null,null,"56/2W3 Space heating: Central hot water, oil",1489,5.0599999999999996,"Space Heating and Air Conditioning","56/2W3","Space heating: Central hot water, oil",264,510]
[null,null,null,null,"56/2W4 Space heating: Central hot water, gas",1490,5.0599999999999996,"Space Heating and Air Conditioning","56/2W4","Space heating: Central hot water, gas",264,510]
[null,null,null,null,"56/2W5 Space heating: Central hot water, solar",1491,5.0599999999999996,"Space Heating and Air Conditioning","56/2W5","Space heating: Central hot water, solar",264,510]
[null,null,null,null,"56/2W6 Space heating: Central hot water, steam",1492,5.0599999999999996,"Space Heating and Air Conditioning","56/2W6","Space heating: Central hot water, steam",264,510]
[null,null,null,null,"56/2W8 Space heating: Central hot water, from external heat source",1493,5.0599999999999996,"Space Heating and Air Conditioning","56/2W8","Space heating: Central hot water, from external heat source",264,510]
[null,null,null,null,"56/3   Space heating: Central steam",1494,5.0599999999999996,"Space Heating and Air Conditioning","56/3  ","Space heating: Central steam",264,510]
[null,null,null,null,"56/3 9 Space heating: Central steam, PC/Provisional sum",1495,5.0599999999999996,"Space Heating and Air Conditioning","56/3 9","Space heating: Central steam, PC/Provisional sum",264,510]
[null,null,null,null,"56/3W1 Space heating: Central steam, electricity",1496,5.0599999999999996,"Space Heating and Air Conditioning","56/3W1","Space heating: Central steam, electricity",264,510]
[null,null,null,null,"56/3W2 Space heating: Central steam, solid fuel",1497,5.0599999999999996,"Space Heating and Air Conditioning","56/3W2","Space heating: Central steam, solid fuel",264,510]
[null,null,null,null,"56/3W3 Space heating: Central steam, oil",1498,5.0599999999999996,"Space Heating and Air Conditioning","56/3W3","Space heating: Central steam, oil",264,510]
[null,null,null,null,"56/3W4 Space heating: Central steam, gas",1499,5.0599999999999996,"Space Heating and Air Conditioning","56/3W4","Space heating: Central steam, gas",264,510]
[null,null,null,null,"56/3W5 Space heating: Central steam, solar",1500,5.0599999999999996,"Space Heating and Air Conditioning","56/3W5","Space heating: Central steam, solar",264,510]
[null,null,null,null,"56/3W8 Space heating: Central steam, from external heat source",1501,5.0599999999999996,"Space Heating and Air Conditioning","56/3W8","Space heating: Central steam, from external heat source",264,510]
[null,null,null,null,"56/4   Space heating: Central warm air",1502,5.0599999999999996,"Space Heating and Air Conditioning","56/4  ","Space heating: Central warm air",264,510]
[null,null,null,null,"56/4 9 Space heating: Central warm air, PC/Provisional sum",1503,5.0599999999999996,"Space Heating and Air Conditioning","56/4 9","Space heating: Central warm air, PC/Provisional sum",264,510]
[null,null,null,null,"56/4W1 Space heating: Central warm air, electricity",1504,5.0599999999999996,"Space Heating and Air Conditioning","56/4W1","Space heating: Central warm air, electricity",264,510]
[null,null,null,null,"56/4W2 Space heating: Central warm air, solid fuel",1505,5.0599999999999996,"Space Heating and Air Conditioning","56/4W2","Space heating: Central warm air, solid fuel",264,510]
[null,null,null,null,"56/4W3 Space heating: Central warm air, oil",1506,5.0599999999999996,"Space Heating and Air Conditioning","56/4W3","Space heating: Central warm air, oil",264,510]
[null,null,null,null,"56/4W4 Space heating: Central warm air, gas",1507,5.0599999999999996,"Space Heating and Air Conditioning","56/4W4","Space heating: Central warm air, gas",264,510]
[null,null,null,null,"56/4W8 Space heating: Central warm air, from external heat source",1508,5.0599999999999996,"Space Heating and Air Conditioning","56/4W8","Space heating: Central warm air, from external heat source",264,510]
[null,null,null,null,"56/5   Space heating: Building Partially heated",1509,5.0599999999999996,"Space Heating and Air Conditioning","56/5  ","Space heating: Building Partially heated",264,510]
[null,null,null,null,"56/5 9 Space heating: Building partially heated, PC/Provisional sum",1510,5.0599999999999996,"Space Heating and Air Conditioning","56/5 9","Space heating: Building partially heated, PC/Provisional sum",264,510]
[null,null,null,null,"56/5W1 Space heating: Building partially heated, electricity",1511,5.0599999999999996,"Space Heating and Air Conditioning","56/5W1","Space heating: Building partially heated, electricity",264,510]
[null,null,null,null,"56/5W2 Space heating: Building partially heated, solid fuel",1512,5.0599999999999996,"Space Heating and Air Conditioning","56/5W2","Space heating: Building partially heated, solid fuel",264,510]
[null,null,null,null,"56/5W3 Space heating: Building partially heated, oil",1513,5.0599999999999996,"Space Heating and Air Conditioning","56/5W3","Space heating: Building partially heated, oil",264,510]
[null,null,null,null,"56/5W4 Space heating: Building partially heated, gas",1514,5.0599999999999996,"Space Heating and Air Conditioning","56/5W4","Space heating: Building partially heated, gas",264,510]
[null,null,null,null,"56/5W5 Space heating: Building partially heated, solar",1515,5.0599999999999996,"Space Heating and Air Conditioning","56/5W5","Space heating: Building partially heated, solar",264,510]
[null,null,null,null,"56/5W7 Space heating: Building partially heated, heat pump/exchange",1516,5.0599999999999996,"Space Heating and Air Conditioning","56/5W7","Space heating: Building partially heated, heat pump/exchange",264,510]
[null,null,null,null,"56/8   Space heating: Other",1517,5.0599999999999996,"Space Heating and Air Conditioning","56/8  ","Space heating: Other",264,510]
[null,null,null,null,"56/9   Space heating: Central",1518,5.0599999999999996,"Space Heating and Air Conditioning","56/9  ","Space heating: Central",264,510]
[null,null,null,null,"56/9 9 Space heating: Central, PC/Provisional sum",1519,5.0599999999999996,"Space Heating and Air Conditioning","56/9 9","Space heating: Central, PC/Provisional sum",264,510]
[null,null,null,null,"56/9W1 Space heating: Central, electricity (eg underfloor/ceiling)",1520,5.0599999999999996,"Space Heating and Air Conditioning","56/9W1","Space heating: Central, electricity (eg underfloor/ceiling)",264,510]
[null,null,null,null,"56/9W2 Space heating: Central, solid fuel",1521,5.0599999999999996,"Space Heating and Air Conditioning","56/9W2","Space heating: Central, solid fuel",264,510]
[null,null,null,null,"56/9W3 Space heating: Central, oil",1522,5.0599999999999996,"Space Heating and Air Conditioning","56/9W3","Space heating: Central, oil",264,510]
[null,null,null,null,"56/9W4 Space heating: Central, gas",1523,5.0599999999999996,"Space Heating and Air Conditioning","56/9W4","Space heating: Central, gas",264,510]
[null,null,null,null,"56/9W5 Space heating: Central, solar",1524,5.0599999999999996,"Space Heating and Air Conditioning","56/9W5","Space heating: Central, solar",264,510]
[null,null,null,null,"56/9W6 Space heating: Central, steam",1525,5.0599999999999996,"Space Heating and Air Conditioning","56/9W6","Space heating: Central, steam",264,510]
[null,null,null,null,"56/9W8 Space heating: Central, from external heat source",1526,5.0599999999999996,"Space Heating and Air Conditioning","56/9W8","Space heating: Central, from external heat source",264,510]
[null,null,null,null,"57/  9 Air conditioning and ventilation: PC/provisional Sum",1527,5.0599999999999996,"Space Heating and Air Conditioning","57/  9","Air conditioning and ventilation: PC/provisional Sum",264,510]
[null,null,null,null,"57/0   Air conditioning and ventilation: Undefined, airconditioned",1528,5.0599999999999996,"Space Heating and Air Conditioning","57/0  ","Air conditioning and ventilation: Undefined, airconditioned",264,510]
[null,null,null,null,"57/1   Air conditioning and ventilation: Heating and cooling, central",1529,5.0599999999999996,"Space Heating and Air Conditioning","57/1  ","Air conditioning and ventilation: Heating and cooling, central",264,510]
[null,null,null,null,"57/1 9 Air conditioning and ventilation: Heating and cooling, central PC/provisional s",1530,5.0599999999999996,"Space Heating and Air Conditioning","57/1 9","Air conditioning and ventilation: Heating and cooling, central PC/provisional s",264,510]
[null,null,null,null,"57/2   Air conditioning and ventilation: Heating and cooling, local",1531,5.0599999999999996,"Space Heating and Air Conditioning","57/2  ","Air conditioning and ventilation: Heating and cooling, local",264,510]
[null,null,null,null,"57/2 9 Air conditioning and ventilation: Heating and cooling, local PC/provisional sum",1532,5.0599999999999996,"Space Heating and Air Conditioning","57/2 9","Air conditioning and ventilation: Heating and cooling, local PC/provisional sum",264,510]
[null,null,null,null,"57/3   Air conditioning and ventilation: Air treatment, central",1533,5.0599999999999996,"Space Heating and Air Conditioning","57/3  ","Air conditioning and ventilation: Air treatment, central",264,510]
[null,null,null,null,"57/3 9 Air conditioning and ventilation: Air treatment central, PC/provisional sum",1534,5.0599999999999996,"Space Heating and Air Conditioning","57/3 9","Air conditioning and ventilation: Air treatment central, PC/provisional sum",264,510]
[null,null,null,null,"57/4   Air conditioning and ventilation: Air treatment local",1535,5.0599999999999996,"Space Heating and Air Conditioning","57/4  ","Air conditioning and ventilation: Air treatment local",264,510]
[null,null,null,null,"57/4 9 Air conditioning and ventilation: Air treatment local, PC/provisional sum",1536,5.0599999999999996,"Space Heating and Air Conditioning","57/4 9","Air conditioning and ventilation: Air treatment local, PC/provisional sum",264,510]
[null,null,null,null,"57/7 9 Air conditioning and ventilation: Air conditioned, PC/provisional sum",1542,5.0599999999999996,"Space Heating and Air Conditioning","57/7 9","Air conditioning and ventilation: Air conditioned, PC/provisional sum",264,510]
[null,null,null,null," ",0,5.07,"Ventilating Systems",null,null,268,520]
[null,null,null,null,"57/5   Mechanical ventilation, central",1537,5.07,"Ventilating Systems","57/5  ","Mechanical ventilation, central",268,520]
[null,null,null,null,"57/5 0 Mechanical ventilation, undefined",1538,5.07,"Ventilating Systems","57/5 0","Mechanical ventilation, undefined",268,520]
[null,null,null,null,{"$f":"I617&\" \" &J617","v":"57/5 9 Mechanical ventilation central, PC/prov sum"},1539,5.07,"Ventilating Systems","57/5 9","Mechanical ventilation central, PC/prov sum",268,520]
[null,null,null,null,"57/6   Mechanical ventilation local",1540,5.07,"Ventilating Systems","57/6  ","Mechanical ventilation local",268,520]
[null,null,null,null,"57/6 9 Mechanical ventilation local, PC/prov sum",1541,5.07,"Ventilating Systems","57/6 9","Mechanical ventilation local, PC/prov sum",268,520]
[null,null,null,null," ",0,5.08,"Electrical Installations",null,null,275,530]
[null,null,null,null,"60/  9 Electrical installations: PC/provisional sum",1543,5.08,"Electrical Installations","60/  9","Electrical installations: PC/provisional sum",275,530]
[null,null,null,null,"60/0   Electrical installations: Undefined",1544,5.08,"Electrical Installations","60/0  ","Electrical installations: Undefined",275,530]
[null,null,null,null,"60/1   Electrical installations: Power and light",1545,5.08,"Electrical Installations","60/1  ","Electrical installations: Power and light",275,530]
[null,null,null,null,"60/1 9 Electrical installations: Power and light, PC/provisional sum",1546,5.08,"Electrical Installations","60/1 9","Electrical installations: Power and light, PC/provisional sum",275,530]
[null,null,null,null,"60/2   Electrical installations: Power supply only",1547,5.08,"Electrical Installations","60/2  ","Electrical installations: Power supply only",275,530]
[null,null,null,null,"60/2 9 Electrical installations: Power supply only, PC/provisional sum",1548,5.08,"Electrical Installations","60/2 9","Electrical installations: Power supply only, PC/provisional sum",275,530]
[null,null,null,null,"60/21  Electrical installations: Low voltage power supply",1549,5.08,"Electrical Installations","60/21 ","Electrical installations: Low voltage power supply",275,530]
[null,null,null,null,"60/3   Electrical installations: Lighting only",1550,5.08,"Electrical Installations","60/3  ","Electrical installations: Lighting only",275,530]
[null,null,null,null,"60/3 9 Electrical installations: Lighting only, PC/provisional sum",1551,5.08,"Electrical Installations","60/3 9","Electrical installations: Lighting only, PC/provisional sum",275,530]
[null,null,null,null,"60/5   Electrical installations: Light fittings",1552,5.08,"Electrical Installations","60/5  ","Electrical installations: Light fittings",275,530]
[null,null,null,null,"60/5 9 Electrical installations: Light fittings, PC/provisional sum",1553,5.08,"Electrical Installations","60/5 9","Electrical installations: Light fittings, PC/provisional sum",275,530]
[null,null,null,null,"60/6   Electrical installations: Sub-station installation (transformer etc)",1554,5.08,"Electrical Installations","60/6  ","Electrical installations: Sub-station installation (transformer etc)",275,530]
[null,null,null,null,"67/23  Special installation: Emergency lighting/power supply",1580,5.08,"Electrical Installations","67/23 ","Special installation: Emergency lighting/power supply",275,530]
[null,null,null,null," ",0,5.09,"Fuel Installations",null,null,278,540]
[null,null,null,null," ",0,5.0999999999999996,"Lift and Conveyor Installations",null,null,289,560]
[null,null,null,null,"66/0   Undefined",1555,5.0999999999999996,"Lift and Conveyor Installations","66/0  ","Undefined",289,560]
[null,null,null,null,"66/1   Lifts",1556,5.0999999999999996,"Lift and Conveyor Installations","66/1  ","Lifts",289,560]
[null,null,null,null,"66/1 9 Lifts, PC/provisional sum",1557,5.0999999999999996,"Lift and Conveyor Installations","66/1 9","Lifts, PC/provisional sum",289,560]
[null,null,null,null,"66/2   Hoists",1558,5.0999999999999996,"Lift and Conveyor Installations","66/2  ","Hoists",289,560]
[null,null,null,null,"66/2 9 Hoists, PC/provisional sum",1559,5.0999999999999996,"Lift and Conveyor Installations","66/2 9","Hoists, PC/provisional sum",289,560]
[null,null,null,null,"66/3   Scissor lift",1560,5.0999999999999996,"Lift and Conveyor Installations","66/3  ","Scissor lift",289,560]
[null,null,null,null,"66/4   Escalators",1561,5.0999999999999996,"Lift and Conveyor Installations","66/4  ","Escalators",289,560]
[null,null,null,null,"66/4 9 Escalators, PC/provisional sum",1562,5.0999999999999996,"Lift and Conveyor Installations","66/4 9","Escalators, PC/provisional sum",289,560]
[null,null,null,null,"66/41  Wheelchair stair lift",1563,5.0999999999999996,"Lift and Conveyor Installations","66/41 ","Wheelchair stair lift",289,560]
[null,null,null,null,"66/5   Conveyors",1564,5.0999999999999996,"Lift and Conveyor Installations","66/5  ","Conveyors",289,560]
[null,null,null,null,"66/5 9 Conveyors, PC/provisional sum",1565,5.0999999999999996,"Lift and Conveyor Installations","66/5 9","Conveyors, PC/provisional sum",289,560]
[null,null,null,null," ",0,5.1100000000000003,"Fire and Lightning Protection",null,null,293,570]
[null,null,null,null,"68/0   Undefined",1606,5.1100000000000003,"Fire and Lightning Protection","68/0  ","Undefined",293,570]
[null,null,null,null,"68/3   Sprinklers/automatic fire suppression systems",1611,5.1100000000000003,"Fire and Lightning Protection","68/3  ","Sprinklers/automatic fire suppression systems",293,570]
[null,null,null,null,"68/4   Fire fighting - manual",1612,5.1100000000000003,"Fire and Lightning Protection","68/4  ","Fire fighting - manual",293,570]
[null,null,null,null,"68/7   Lightning protection",1615,5.1100000000000003,"Fire and Lightning Protection","68/7  ","Lightning protection",293,570]
[null,null,null,null,"68/8   Special",1616,5.1100000000000003,"Fire and Lightning Protection","68/8  ","Special",293,570]
[null,null,null,null," ",0,5.12,"Communications and Security Installations",null,null,297,580]
[null,null,null,null,"67/21  Special installation: Public address system",1578,5.12,"Communications and Security Installations","67/21 ","Special installation: Public address system",297,580]
[null,null,null,null,"67/34  Special installation: Data cabling",1592,5.12,"Communications and Security Installations","67/34 ","Special installation: Data cabling",297,580]
[null,null,null,null,"67/38  Special installation: Communal TV/satellite installation",1596,5.12,"Communications and Security Installations","67/38 ","Special installation: Communal TV/satellite installation",297,580]
[null,null,null,null,"68/1   Security installations: Burglar alarms",1607,5.12,"Communications and Security Installations","68/1  ","Security installations: Burglar alarms",297,580]
[null,null,null,null,"68/11  Security installations: Closed circuit TV",1608,5.12,"Communications and Security Installations","68/11 ","Security installations: Closed circuit TV",297,580]
[null,null,null,null,"68/12  Security installations: Panic/attack alarms",1609,5.12,"Communications and Security Installations","68/12 ","Security installations: Panic/attack alarms",297,580]
[null,null,null,null,"68/2   Security installations: Fire alarms",1610,5.12,"Communications and Security Installations","68/2  ","Security installations: Fire alarms",297,580]
[null,null,null,null,"68/6   Security installations: Entry phone installation",1613,5.12,"Communications and Security Installations","68/6  ","Security installations: Entry phone installation",297,580]
[null,null,null,null,"68/61  Security installations: Card entry system",1614,5.12,"Communications and Security Installations","68/61 ","Security installations: Card entry system",297,580]
[null,null,null,null," ",0,5.13,"Special Installations",null,null,303,590]
[null,null,null,null,"67/1   Window cleaning cradles",1566,5.13,"Special Installations","67/1  ","Window cleaning cradles",303,590]
[null,null,null,null,"67/2   Cold stores/refrigeration",1576,5.13,"Special Installations","67/2  ","Cold stores/refrigeration",303,590]
[null,null,null,null,"67/3   Medical/laboratory gases",1587,5.13,"Special Installations","67/3  ","Medical/laboratory gases",303,590]
[null,null,null,null,"67/31  Building management system",1589,5.13,"Special Installations","67/31 ","Building management system",303,590]
[null,null,null,null," ",0,5.14,"Builder's Work in Connection with Services (BWIC)",null,null,304,600]
[null,null,null,null," ",0,6,"Prefabricated Buildings and Building Units",null,null,309,620]
[null,null,null,null," ",0,7,"Work to Existing Building",null,null,311,630]
[null,null,null,null,"90/9   Includes work to existing building",1666,7,"Work to Existing Building","90/9  ","Includes work to existing building",311,630]
[null,null,null,null,"90/9B  Underpinning to adjacent structures",1667,7,"Work to Existing Building","90/9B ","Underpinning to adjacent structures",311,630]
[null,null,null,null," ",0,8.01,"Site Preparation Works",null,null,315,650]
[null,null,null,null,"90/0   Undefined",1635,8.01,"Site Preparation Works","90/0  ","Undefined",315,650]
[null,null,null,null,"90/1   Site preparation",1636,8.01,"Site Preparation Works","90/1  ","Site preparation",315,650]
[null,null,null,null," ",0,8.02,"Roads, Paths, Pavings and Surfacings",null,null,318,660]
[null,null,null,null,"90/2   External paving",1637,8.02,"Roads, Paths, Pavings and Surfacings","90/2  ","External paving",318,660]
[null,null,null,null,"90/2E  External paving, stone",1638,8.02,"Roads, Paths, Pavings and Surfacings","90/2E ","External paving, stone",318,660]
[null,null,null,null,"90/2F2 External paving, precast concrete",1639,8.02,"Roads, Paths, Pavings and Surfacings","90/2F2","External paving, precast concrete",318,660]
[null,null,null,null,"90/2G2 External paving, clay/concrete bricks",1640,8.02,"Roads, Paths, Pavings and Surfacings","90/2G2","External paving, clay/concrete bricks",318,660]
[null,null,null,null,{"$f":"I681&\" \" &J681","v":"90/2I1 External paving, timber"},1641,8.02,"Roads, Paths, Pavings and Surfacings","90/2I1","External paving, timber",318,660]
[null,null,null,null,"90/2N5 External paving, rubber",1642,8.02,"Roads, Paths, Pavings and Surfacings","90/2N5","External paving, rubber",318,660]
[null,null,null,null,"90/2N6 External paving, plastic",3404,8.02,"Roads, Paths, Pavings and Surfacings","90/2N6","External paving, plastic",318,660]
[null,null,null,null,"90/2P1 External paving, gravel",1643,8.02,"Roads, Paths, Pavings and Surfacings","90/2P1","External paving, gravel",318,660]
[null,null,null,null,"90/2Q4 External paving, insitu concrete",1644,8.02,"Roads, Paths, Pavings and Surfacings","90/2Q4","External paving, insitu concrete",318,660]
[null,null,null,null,"90/2S5 External paving, macadam",1645,8.02,"Roads, Paths, Pavings and Surfacings","90/2S5","External paving, macadam",318,660]
[null,null,null,null," ",0,8.0299999999999994,"Soft Landscaping, Planting and Irrigation Systems",null,null,322,670]
[null,null,null,null,"90/2W  Landscaping/planting",1646,8.0299999999999994,"Soft Landscaping, Planting and Irrigation Systems","90/2W ","Landscaping/planting",322,670]
[null,null,null,null," ",0,8.0399999999999991,"Fencing, Railings and Walls",null,null,327,680]
[null,null,null,null,"90/4   Enclosures and divisions",1647,8.0399999999999991,"Fencing, Railings and Walls","90/4  ","Enclosures and divisions",327,680]
[null,null,null,null,"90/4E  Enclosures and divisions, stone",1648,8.0399999999999991,"Fencing, Railings and Walls","90/4E ","Enclosures and divisions, stone",327,680]
[null,null,null,null,"90/4F2 Enclosures and divisions, precast concrete",1649,8.0399999999999991,"Fencing, Railings and Walls","90/4F2","Enclosures and divisions, precast concrete",327,680]
[null,null,null,null,"90/4F4 Enclosures and divisions, block",1650,8.0399999999999991,"Fencing, Railings and Walls","90/4F4","Enclosures and divisions, block",327,680]
[null,null,null,null,"90/4G2 Enclosures and divisions, clay/concrete brick",1651,8.0399999999999991,"Fencing, Railings and Walls","90/4G2","Enclosures and divisions, clay/concrete brick",327,680]
[null,null,null,null,"90/4H  Enclosures and divisions, metal",1652,8.0399999999999991,"Fencing, Railings and Walls","90/4H ","Enclosures and divisions, metal",327,680]
[null,null,null,null,"90/4H2 Enclosures and divisions, steel",1653,8.0399999999999991,"Fencing, Railings and Walls","90/4H2","Enclosures and divisions, steel",327,680]
[null,null,null,null,"90/4I1 Enclosures and divisions, timber",1654,8.0399999999999991,"Fencing, Railings and Walls","90/4I1","Enclosures and divisions, timber",327,680]
[null,null,null,null,"90/4N6 Enclosures and divisions, plastic",1655,8.0399999999999991,"Fencing, Railings and Walls","90/4N6","Enclosures and divisions, plastic",327,680]
[null,null,null,null,"90/4Q4 Enclosures and divisions, insitu concrete",1656,8.0399999999999991,"Fencing, Railings and Walls","90/4Q4","Enclosures and divisions, insitu concrete",327,680]
[null,null,null,null,"90/4W  Enclosures and divisions, hedges",1657,8.0399999999999991,"Fencing, Railings and Walls","90/4W ","Enclosures and divisions, hedges",327,680]
[null,null,null,null," ",0,8.0500000000000007,"External Fixtures",null,null,330,690]
[null,null,null,null," ",0,8.06,"External Drainage",null,null,335,700]
[null,null,null,null,"90/5   Drainage",1658,8.06,"External Drainage","90/5  ","Drainage",335,700]
[null,null,null,null," ",0,8.07,"External Services",null,null,347,720]
[null,null,null,null,"90/6   External services",1659,8.07,"External Services","90/6  ","External services",347,720]
[null,null,null,null,"90/61  External lighting",1660,8.07,"External Services","90/61 ","External lighting",347,720]
[null,null,null,null," ",0,8.08,"Minor Building Works and Ancillary Buildings",null,null,351,730]
[null,null,null,null,"90/7   Minor buildings",1661,8.08,"Minor Building Works and Ancillary Buildings","90/7  ","Minor buildings",351,730]
[null,null,null,null,"90/7 8 Special features",1662,8.08,"Minor Building Works and Ancillary Buildings","90/7 8","Special features",351,730]
[null,null,null,null,"90/8   Includes other buildings",1663,8.08,"Minor Building Works and Ancillary Buildings","90/8  ","Includes other buildings",351,730]
[null,null,null,null,"90/8 5 Includes civil engineering works",1664,8.08,"Minor Building Works and Ancillary Buildings","90/8 5","Includes civil engineering works",351,730]
[null,null,null,null,"90/888 Other",1665,8.08,"Minor Building Works and Ancillary Buildings","90/888","Other",351,730]
[null,null,null,null," ",0,0.01,"Toxic/Hazardous/Contaminated Material Treatment",null,null,356,750]
[null,null,null,null," ",0,0.02,"Major Demolition Works",null,null,359,760]
[null,null,null,null," ",0,0.03,"Temporary Support to Adjacent Structures",null,null,360,770]
[null,null,null,null," ",0,0.04,"Specialist Groundworks",null,null,364,780]
[null,null,null,null," ",0,0.05,"Temporary Diversion Works",null,null,365,790]
[null,null,null,null," ",0,0.06,"Extraordinary Site Investigation",null,null,369,800]
[null,null,null,null," ",0,9,"Preliminaries",null,null,373,820]
[null,null,null,null," ",0,10,"Main Contractor's Overheads and Profit",null,null,376,830]
[null,null,null,null," ",0,11,"Project/Design Team Fees",null,null,381,850]
[null,null,null,null," ",0,12,"Other Development/Project Costs",null,null,382,860]
[null,null,null,null," ",0,13,"Risk (Clients Contingencies)",null,null,387,870]

{"sheet":"Lookup","index":8,"n_rows":743,"n_cols":8,"rows_kept":743,"cut":false,"hidden":true,"merged":[]}
[null,null,null,null,null,"select","GeneralCode.id, Code, GeneralCode.Description"]
[null,null,null,null,null,"from","GeneralCode"]
[null,null,null,null,null,"inner join GeneralCodeType on GeneralCodeType.id = CodeTypeID"]
[null,null,null,null,null,"where","TableType = '15'"]
[null,null,null,null,null,"order by Code "]
[]
[null,null,"Code type 02",null,{"$f":"COUNTA(ClientCode)","v":44}]
["Client Type",null,"id","Code","Description"]
[]
[{"$f":"D10&\" \"&E10","v":"1 Public"},null,18,1,"Public"]
["11 Central government",null,19,11,"Central government"]
["111 Home Office",null,20,111,"Home Office"]
["112 Ministry of Defence",null,21,112,"Ministry of Defence"]
["113 Property Services Agency",null,22,113,"Property Services Agency"]
["114 PSA repayment client",null,23,114,"PSA repayment client"]
["12 Local authority",null,24,12,"Local authority"]
["121 County authority",null,25,121,"County authority"]
["123 District authority",null,26,123,"District authority"]
["125 Police authority",null,27,125,"Police authority"]
["126 Fire authority",null,3635,126,"Fire authority"]
["128 Private developer for local authority",null,28,128,"Private developer for local authority"]
["13 Development authority",null,29,13,"Development authority"]
["131 Regional development authority",null,30,131,"Regional development authority"]
["132 Local development authority",null,31,132,"Local development authority"]
["14 Health authority",null,32,14,"Health authority"]
["141 Regional health authority",null,33,141,"Regional health authority"]
["142 Area health authority",null,34,142,"Area health authority"]
["143 District health authority",null,35,143,"District health authority"]
["144 NHS hospital trust",null,36,144,"NHS hospital trust"]
["15 Nationalised industry etc",null,37,15,"Nationalised industry etc"]
["151 Post Office",null,38,151,"Post Office"]
["152 British Telecom",null,39,152,"British Telecom"]
["153 National Coal Board",null,40,153,"National Coal Board"]
["16 Education other than local authority",null,41,16,"Education other than local authority"]
["161 University",null,42,161,"University"]
["17 Housing association (public contract)",null,43,17,"Housing association (public contract)"]
["2 Private",null,44,2,"Private"]
["21 Private owner occupier",null,45,21,"Private owner occupier"]
["211 Manufacturing owner occupier",null,46,211,"Manufacturing owner occupier"]
["212 Commercial owner occupier",null,47,212,"Commercial owner occupier"]
["213 Individual owner occupier",null,48,213,"Individual owner occupier"]
["214 Club/society owner occupier",null,49,214,"Club/society owner occupier"]
["215 Utility owner occupier",null,50,215,"Utility owner occupier"]
["23 Developer",null,51,23,"Developer"]
["232 Pension fund developer",null,52,232,"Pension fund developer"]
["24 Private health",null,53,24,"Private health"]
["241 Private hospital",null,3379,241,"Private hospital"]
["243 Private developer for health authority",null,3380,243,"Private developer for health authority"]
["26 Private education",null,54,26,"Private education"]
["27 Housing association (private contract)",null,55,27,"Housing association (private contract)"]
["28 Charity",null,56,28,"Charity"]
["29 Charities, trusts, etc - for a third party",null,57,29,"Charities, trusts, etc - for a third party"]
["31 Owner occupier - no details",null,58,31,"Owner occupier - no details"]
[]
[]
[]
[null,null,"Code type 01",null,{"$f":"COUNTA(TypeOfWorkCode)","v":19}]
["Type of work",null,"id","Code","Description"]
[]
[{"$f":"E60","v":"Demolition"},null,3879,0,"Demolition"]
["New build",null,1,1,"New build"]
["New build excluding substructures",null,2,12,"New build excluding substructures"]
["New build, not complete building",null,3,13,"New build, not complete building"]
["New build excluding services",null,4,14,"New build excluding services"]
["New build behind retained facade",null,5,15,"New build behind retained facade"]
["Horizontal extension",null,6,2,"Horizontal extension"]
["Horizontal extension excluding substructure",null,7,22,"Horizontal extension excluding substructure"]
["Horizontal extension, not complete building",null,8,23,"Horizontal extension, not complete building"]
["Vertical extension",null,9,3,"Vertical extension"]
["Basement to existing building",null,10,31,"Basement to existing building"]
["Shell only",null,11,4,"Shell only"]
["Shell only horizontal extension",null,12,41,"Shell only horizontal extension"]
["Fitting out new building",null,13,5,"Fitting out new building"]
["Rehabilitation/Conversion",null,14,6,"Rehabilitation/Conversion"]
["Re-roofing only",null,15,65,"Re-roofing only"]
["Fitting out existing building",null,16,7,"Fitting out existing building"]
["Relocation of building on new substructure",null,3490,8,"Relocation of building on new substructure"]
["External works only (including enabling work)",null,17,9,"External works only (including enabling work)"]
[]
[]
[]
[null,null,"Code type SitePitch",null,{"$f":"COUNTA(SitePitchCode)","v":4}]
["Site Pitch",null,"id","Code","Description"]
[]
[{"$f":"E85","v":"Level site"},null,669,11,"Level site"]
[{"$f":"E86","v":"Gently sloping site (ne 1 in 30)"},null,670,12,"Gently sloping site (ne 1 in 30)"]
[{"$f":"E87","v":"Steeply sloping site (over 1 in 30)"},null,671,13,"Steeply sloping site (over 1 in 30)"]
[{"$f":"E88","v":"Undulating site"},null,672,14,"Undulating site"]
[]
[]
[]
[null,null,"Code type SiteGround",null,{"$f":"COUNTA(SiteGroundCode)","v":5}]
["Site Ground",null,"id","Code","Description"]
[]
[{"$f":"E95","v":"Ground conditions good"},null,673,21,"Ground conditions good"]
[{"$f":"E96","v":"Ground conditions moderate"},null,674,22,"Ground conditions moderate"]
[{"$f":"E97","v":"Ground conditions bad"},null,675,23,"Ground conditions bad"]
[{"$f":"E98","v":"Previously consolidated ground"},null,676,24,"Previously consolidated ground"]
[{"$f":"E99","v":"Previously made up ground"},null,677,25,"Previously made up ground"]
[]
[]
[]
[null,null,"Code type SiteWater"]
["Site Water",null,"id","Code","Description"]
[]
[{"$f":"E106","v":"Excavation generally above water table"},null,678,31,"Excavation generally above water table"]
[{"$f":"E107","v":"Excavation generally below water table"},null,679,32,"Excavation generally below water table"]
[{"$f":"E108","v":"Excavation in running water"},null,680,33,"Excavation in running water"]
[]
[]
[]
[null,null,"Code type SitePrevious"]
["Site Previous Use",null,"id","Code","Description"]
[]
[{"$f":"E115","v":"Green field site"},null,681,41,"Green field site"]
[{"$f":"E116","v":"Demolition required as part of this contract"},null,682,42,"Demolition required as part of this contract"]
[{"$f":"E117","v":"Demolition carried out in previous contract"},null,683,43,"Demolition carried out in previous contract"]
[{"$f":"E118","v":"Infill site ie between existing buildings"},null,684,44,"Infill site ie between existing buildings"]
[{"$f":"E119","v":"Within existing building"},null,685,45,"Within existing building"]
[]
[]
[]
[null,null,"Code type SiteSpace"]
["Site Working Space",null,"id","Code","Description"]
[]
[{"$f":"E126","v":"Working space unrestricted"},null,686,51,"Working space unrestricted"]
[{"$f":"E127","v":"Working space restricted"},null,687,52,"Working space restricted"]
[{"$f":"E128","v":"Working space highly restricted"},null,688,53,"Working space highly restricted"]
[]
[]
[]
[null,null,"Code type SiteAccess"]
["Site Access",null,"id","Code","Description"]
[]
[{"$f":"E135","v":"Site access unrestricted"},null,689,61,"Site access unrestricted"]
[{"$f":"E136","v":"Site access restricted"},null,690,62,"Site access restricted"]
[{"$f":"E137","v":"Site access highly restricted"},null,691,63,"Site access highly restricted"]
[]
[null,null,"Code type SiteDivided"]
["Site Divided",null,"id","Code","Description"]
[]
[{"$f":"E142","v":"Site divided in more than one location"},null,692,71,"Site divided in more than one location"]
[]
[]
[]
[null,null,"Code type 09"]
["Tender Amended",null,"id","Code","Description"]
[]
[{"$f":"E149","v":"Second lowest tender accepted"},null,809,1,"Second lowest tender accepted"]
["Second lowest tender accepted,PC sums revised",null,810,11,"Second lowest tender accepted,PC sums revised"]
["Second lowest tender accepted,Reductions bill",null,811,12,"Second lowest tender accepted,Reductions bill"]
["Second lowest tender accepted, Addendum bill",null,812,13,"Second lowest tender accepted, Addendum bill"]
["Second lowest tender accepted, Altered",null,813,17,"Second lowest tender accepted, Altered"]
["Lowest tender not accepted, see MC text",null,814,18,"Lowest tender not accepted, see MC text"]
["PC/Provisional Sums revised",null,815,21,"PC/Provisional Sums revised"]
["Bill of reductions",null,816,22,"Bill of reductions"]
["Addendum Bill",null,817,23,"Addendum Bill"]
["Altered by negotiation",null,818,24,"Altered by negotiation"]
["Adjusted for arithmetic errors",null,819,25,"Adjusted for arithmetic errors"]
["Building redesigned",null,820,26,"Building redesigned"]
["Altered - no details",null,821,27,"Altered - no details"]
["Altered - see market conditions text",null,822,28,"Altered - see market conditions text"]
["Contract sum excludes fees and charges",null,1870,29,"Contract sum excludes fees and charges"]
["Target Price",null,3481,31,"Target Price"]
["Adjusted Target Price",null,3482,32,"Adjusted Target Price"]
["See market conditions text",null,823,88,"See market conditions text"]
["Analysis based on FINAL ACCOUNT",null,824,9,"Analysis based on FINAL ACCOUNT"]
[]
[]
[]
[null,null,"Code type 14"]
["Selection of contractor",null,"id","Code","Description"]
[]
[{"$f":"E174","v":"Competitive"},null,1008,1,"Competitive"]
["Open competition",null,1009,11,"Open competition"]
["Selected competition",null,1010,12,"Selected competition"]
["Two stage tendering",null,1011,13,"Two stage tendering"]
["Competitive - partnering",null,3449,14,"Competitive - partnering"]
["Competitive - Framework",null,3455,15,"Competitive - Framework"]
["Competitive - Framework Target Cost",null,3456,16,"Competitive - Framework Target Cost"]
["Negotiated",null,1012,2,"Negotiated"]
["Negotiated - partnering",null,3450,21,"Negotiated - partnering"]
["Negotiated with Prime Contractor",null,3453,22,"Negotiated with Prime Contractor"]
["Negotiated - Framework",null,3454,23,"Negotiated - Framework"]
["Negotiated - Framework Target Cost",null,3668,24,"Negotiated - Framework Target Cost"]
["Serial contract",null,1013,3,"Serial contract"]
["Continuation",null,1014,4,"Continuation"]
["Management contract",null,1015,5,"Management contract"]
["Design and build",null,1016,6,"Design and build"]
["Design and build - competitive",null,1017,61,"Design and build - competitive"]
["Design and build - negotiated",null,1018,62,"Design and build - negotiated"]
["Design and build - partnering",null,3451,63,"Design and build - partnering"]
["Design and build for PPP/PFI",null,2590,68,"Design and build for PPP/PFI"]
["Construction management",null,1019,7,"Construction management"]
["System build",null,1020,8,"System build"]
[]
[]
[]
[null,null,"Code type 12",null,{"$f":"COUNTA(ContractCode)","v":119}]
["Contract",null,"id","Code","Description"]
[]
[{"$f":"D202&\" \"&E202","v":"1   JCT contract"},null,970,"1  ","JCT contract"]
["1 1 JCT contract 1963 edition",null,971,"1 1","JCT contract 1963 edition"]
["1 2 JCT contract 1980 edition",null,972,"1 2","JCT contract 1980 edition"]
["1 4 JCT contract 1998 edition",null,1850,"1 4","JCT contract 1998 edition"]
["1 6 JCT contract 2005 edition",null,3269,"1 6","JCT contract 2005 edition"]
["1 8 JCT Contract 2011 edition",null,3547,"1 8","JCT Contract 2011 edition"]
["11  JCT local authority contract",null,973,"11 ","JCT local authority contract"]
["111 JCT local authority contract 1963 edition",null,974,"111","JCT local authority contract 1963 edition"]
["112 JCT local authority contract 1980 edition",null,975,"112","JCT local authority contract 1980 edition"]
["113 JCT LA 1980 contractors designed portion sup",null,976,"113","JCT LA 1980 contractors designed portion sup"]
["114 JCT local authority contract 1998 edition",null,1851,"114","JCT local authority contract 1998 edition"]
["115 JCT LA 1998 contractors designed portion sup",null,1852,"115","JCT LA 1998 contractors designed portion sup"]
["12  JCT private contract",null,977,"12 ","JCT private contract"]
["121 JCT private contract 1963 edition",null,978,"121","JCT private contract 1963 edition"]
["122 JCT private contract 1980 edition",null,979,"122","JCT private contract 1980 edition"]
["123 JCT Private 1980 contractors designed portion",null,980,"123","JCT Private 1980 contractors designed portion"]
["124 JCT private contract 1998 edition",null,1853,"124","JCT private contract 1998 edition"]
["125 JCT Private 1998 contractors designed portion",null,1854,"125","JCT Private 1998 contractors designed portion"]
["1B6 JCT standard building contract 2005 edition",null,3270,"1B6","JCT standard building contract 2005 edition"]
["1B8 JCT Standard Building Contract 2011 edition",null,3545,"1B8","JCT Standard Building Contract 2011 edition"]
["1B9 JCT Standard Building Contract 2016 edition",null,3836,"1B9","JCT Standard Building Contract 2016 edition"]
["1C  JCT Management Contract",null,981,"1C ","JCT Management Contract"]
["1C2 JCT Management Contract 1987",null,1855,"1C2","JCT Management Contract 1987"]
["1C4 JCT Management Contract 1998",null,1856,"1C4","JCT Management Contract 1998"]
["1C6 JCT management building contract 2005 edition",null,3271,"1C6","JCT management building contract 2005 edition"]
["1C7 JCT construction management agreement 2005",null,3272,"1C7","JCT construction management agreement 2005"]
["1C8 Construction management trade contract 2011 edition",null,3562,"1C8","Construction management trade contract 2011 edition"]
["1C9 JCT Construction Management Contract 2016 edition",null,3837,"1C9","JCT Construction Management Contract 2016 edition"]
["1D  JCT with Contractor's Design",null,982,"1D ","JCT with Contractor's Design"]
["1D2 JCT with Contractor's Design 1981",null,1857,"1D2","JCT with Contractor's Design 1981"]
["1D4 JCT with Contractor's Design 1998",null,1858,"1D4","JCT with Contractor's Design 1998"]
["1D6 JCT design and build contract 2005 edition",null,3273,"1D6","JCT design and build contract 2005 edition"]
[{"$f":"D234&\" \"&E234","v":"1D8 JCT Design and Build Contract 2011 edition"},null,3546,"1D8","JCT Design and Build Contract 2011 edition"]
["1D9 JCT Design and Build Contract 2016 edition",null,3833,"1D9","JCT Design and Build Contract 2016 edition"]
["1F6 JCT framework agreement 2005 edition",null,3274,"1F6","JCT framework agreement 2005 edition"]
["1F8 Framework agreement 2011 edition",null,3563,"1F8","Framework agreement 2011 edition"]
["1H6 JCT housing grant works contract 2005 edition",null,3275,"1H6","JCT housing grant works contract 2005 edition"]
["1I  JCT Intermediate form of contract",null,983,"1I ","JCT Intermediate form of contract"]
["1I2 JCT Intermediate form of contract 1984",null,1859,"1I2","JCT Intermediate form of contract 1984"]
["1I4 JCT Intermediate form of contract 1998",null,1860,"1I4","JCT Intermediate form of contract 1998"]
["1I6 JCT intermediate building contract 2005",null,3276,"1I6","JCT intermediate building contract 2005"]
["1I7 JCT intermediate with contractors design 2005",null,3288,"1I7","JCT intermediate with contractors design 2005"]
["1I8 JCT Intermediate Building Contract 2011 edition",null,3549,"1I8","JCT Intermediate Building Contract 2011 edition"]
["1I9 JCT Intermediate Building Contract with contractors design",null,3550,"1I9","JCT Intermediate Building Contract with contractors design"]
["1IA JCT Intermediate Building Contract 2016 edition",null,3838,"1IA","JCT Intermediate Building Contract 2016 edition"]
["1J6 JCT major project construction contract 2005",null,3277,"1J6","JCT major project construction contract 2005"]
["1J8 JCT major project construction contract 2011",null,3564,"1J8","JCT major project construction contract 2011"]
["1M  JCT minor works contract",null,984,"1M ","JCT minor works contract"]
["1M2 JCT minor works contract 1980 edition",null,985,"1M2","JCT minor works contract 1980 edition"]
["1M4 JCT minor works contract 1998 edition",null,1861,"1M4","JCT minor works contract 1998 edition"]
["1M6 JCT minor works contract 2005 edition",null,3260,"1M6","JCT minor works contract 2005 edition"]
["1M7 JCT minor works with contractor's design 2005",null,3278,"1M7","JCT minor works with contractor's design 2005"]
["1M8 JCT minor works building contract 2011 edition",null,3565,"1M8","JCT minor works building contract 2011 edition"]
["1M9 JCT minor works with contractors design 2011",null,3566,"1M9","JCT minor works with contractors design 2011"]
["1MA JCT minor works building contract 2016 edition",null,3834,"1MA","JCT minor works building contract 2016 edition"]
["1MB JCT minor works with contractor's design 2016 (MWD)",null,3873,"1MB","JCT minor works with contractor's design 2016 (MWD)"]
["1P4 JCT prime cost form of contract 1998",null,1862,"1P4","JCT prime cost form of contract 1998"]
["1P6 JCT prime cost form of contract 2005 edition",null,3279,"1P6","JCT prime cost form of contract 2005 edition"]
["1P8 Prime cost building contract 2011 edition",null,3567,"1P8","Prime cost building contract 2011 edition"]
["1P9 JCT Prime Cost Building Contract 2016 edition",null,3835,"1P9","JCT Prime Cost Building Contract 2016 edition"]
["2   Central government contract",null,986,"2  ","Central government contract"]
["21  CCC/Wks/1",null,987,"21 ","CCC/Wks/1"]
["22  GC/wks/1 edition 1",null,988,"22 ","GC/wks/1 edition 1"]
["23  GC/Wks/1 edition 2",null,989,"23 ","GC/Wks/1 edition 2"]
[{"$f":"D266&\" \"&E266","v":"24  GC/Wks/1 edition 3"},null,990,"24 ","GC/Wks/1 edition 3"]
["25  GC/Wks/1 1998",null,1863,"25 ","GC/Wks/1 1998"]
["25D GC/Wks/1 single stage design and build 1998",null,1864,"25D","GC/Wks/1 single stage design and build 1998"]
["2B  Bespoke Target Price Partnering Contract",null,3448,"2B ","Bespoke Target Price Partnering Contract"]
["2D1 PC/Works/1 Single stage design and build 1998",null,2595,"2D1","PC/Works/1 Single stage design and build 1998"]
["2P1 PSA/1 contract 1994",null,991,"2P1","PSA/1 contract 1994"]
["2Q1 PC/Works/1 with quantities (1998)",null,2596,"2Q1","PC/Works/1 with quantities (1998)"]
["31  NFBTE design and build",null,992,"31 ","NFBTE design and build"]
["32  NFBTE renovation grant work - no architect",null,993,"32 ","NFBTE renovation grant work - no architect"]
["4   Contractors own",null,994,"4  ","Contractors own"]
["41  Contractors own design and build",null,995,"41 ","Contractors own design and build"]
["5   Client's own",null,996,"5  ","Client's own"]
["6   ICE contract",null,997,"6  ","ICE contract"]
["6 6 NEC3 engineering and construction contract 2005",null,3280,"6 6","NEC3 engineering and construction contract 2005"]
["6 7 NEC3 engineering and construction contract 2013",null,3765,"6 7","NEC3 engineering and construction contract 2013"]
["6 8 NEC4 engineering and construction contract 2017",null,3886,"6 8","NEC4 engineering and construction contract 2017"]
["64  ICE contract 1998",null,1865,"64 ","ICE contract 1998"]
["6C6 NEC3 cost reimbursable 2005 (option E)",null,3281,"6C6","NEC3 cost reimbursable 2005 (option E)"]
["6C7 NEC3 cost reimbursable 2013 (option E)",null,3764,"6C7","NEC3 cost reimbursable 2013 (option E)"]
["6C8 NEC4 cost reimbursable 2017 (option E)",null,3887,"6C8","NEC4 cost reimbursable 2017 (option E)"]
["6E4 Engineering and Construction contract 1998",null,1866,"6E4","Engineering and Construction contract 1998"]
["6F6 NEC3 framework contract 2005",null,3282,"6F6","NEC3 framework contract 2005"]
["6F7 NEC3 framework contract 2013",null,3766,"6F7","NEC3 framework contract 2013"]
["6F8 NEC4 framework contract 2017",null,3888,"6F8","NEC4 framework contract 2017"]
["6M6 NEC3 management contract 2005 (option F)",null,3283,"6M6","NEC3 management contract 2005 (option F)"]
["6M7 NEC3 management contract 2013 (option F)",null,3767,"6M7","NEC3 management contract 2013 (option F)"]
["6M8 NEC4 management contract 2017 (option F)",null,3889,"6M8","NEC4 management contract 2017 (option F)"]
["6P6 NEC3 priced contract 2005 (option A or B)",null,3284,"6P6","NEC3 priced contract 2005 (option A or B)"]
["6P7 NEC3 priced contract 2013 (option A or B)",null,3768,"6P7","NEC3 priced contract 2013 (option A or B)"]
["6P8 NEC4 priced contract 2017 (option A or B)",null,3890,"6P8","NEC4 priced contract 2017 (option A or B)"]
["6S6 NEC3 short contract 2005",null,3285,"6S6","NEC3 short contract 2005"]
["6S7 NEC3 short contract 2013",null,3769,"6S7","NEC3 short contract 2013"]
["6S8 NEC4 short contract 2017",null,3891,"6S8","NEC4 short contract 2017"]
["6T6 NEC3 target cost contract 2005 (option C or D)",null,3286,"6T6","NEC3 target cost contract 2005 (option C or D)"]
["6T7 NEC3 target cost contract 2013 (option C or D)",null,3770,"6T7","NEC3 target cost contract 2013 (option C or D)"]
["6T8 NEC4 target cost contract 2017 (option C or D)",null,3892,"6T8","NEC4 target cost contract 2017 (option C or D)"]
["7   ACA Association of Consultant Architects",null,998,"7  ","ACA Association of Consultant Architects"]
["74  ACA Association of Consultant Architects 1998",null,1867,"74 ","ACA Association of Consultant Architects 1998"]
["75  ACA Project Partnering PPC 2000",null,2593,"75 ","ACA Project Partnering PPC 2000"]
[{"$f":"D305&\" \"&E305","v":"751 ASI Contract 1986"},null,999,"751","ASI Contract 1986"]
["76  ACA contract for term partnering 2005",null,3287,"76 ","ACA contract for term partnering 2005"]
["7S4 ASI Contract 1998",null,1868,"7S4","ASI Contract 1998"]
["8   CIOB contract",null,3374,"8  ","CIOB contract"]
["8B6 CIOB Building Contract 2004",null,3375,"8B6","CIOB Building Contract 2004"]
["8M6 CIOB Minor Works Contract 2004",null,3376,"8M6","CIOB Minor Works Contract 2004"]
["9   Other - see market conditions text",null,1000,"9  ","Other - see market conditions text"]
["A FIDIC Conditions of Contract",null,3692,"A","FIDIC Conditions of Contract"]
["A1 FIDIC Conditions of Contracts for Construction 1999",null,3693,"A1","FIDIC Conditions of Contracts for Construction 1999"]
["A11 FIDIC Conditions of Contract for Plant and Design and Build 1999",null,3694,"A11","FIDIC Conditions of Contract for Plant and Design and Build 1999"]
["A12 FIDIC Conditions of Contract for EPC/Turnkey Projects 1999",null,3695,"A12","FIDIC Conditions of Contract for EPC/Turnkey Projects 1999"]
["B13 Public Sector Partnering Contract authority design lump sum",null,3747,"B13","Public Sector Partnering Contract authority design lump sum"]
["B14 Public Sector Partnering Contract contractor design lump sum",null,3748,"B14","Public Sector Partnering Contract contractor design lump sum"]
["B15 Public Sector Partnering Contract authority design target cost with cost reimbursable",null,3749,"B15","Public Sector Partnering Contract authority design target cost with cost reimbursable"]
["B16 Public Sector Partnering Contract contractor design target cost with cost reimbursable",null,3750,"B16","Public Sector Partnering Contract contractor design target cost with cost reimbursable"]
["S12 Scottish Building Contract 2016 edition",null,3927,"S12","Scottish Building Contract 2016 edition"]
[]
[]
[]
[null,null,"Code type 15"]
["Functional Units",null,"id","Code","Description"]
[]
[{"$f":"E327","v":"m2 usable floor area"},null,1021,1,"m2 usable floor area"]
["No sport courts",null,1022,10,"No sport courts"]
["m2 Net Lettable floor area",null,1023,11,"m2 Net Lettable floor area"]
["Meals per hour",null,1024,12,"Meals per hour"]
["No bedrooms",null,1025,13,"No bedrooms"]
["m2 sales area",null,1026,14,"m2 sales area"]
["No places",null,1027,15,"No places"]
["No vehicle spaces",null,1028,17,"No vehicle spaces"]
["No theatres or treatment rooms",null,1029,18,"No theatres or treatment rooms"]
["kW",null,1030,19,"kW"]
["No of persons",null,1031,2,"No of persons"]
["Screens",null,1032,20,"Screens"]
["m2 gross internal area of units",null,3470,21,"m2 gross internal area of units"]
["No of bedspaces",null,1033,4,"No of bedspaces"]
["Thousand volumes",null,1034,5,"Thousand volumes"]
["No courtrooms",null,1035,6,"No courtrooms"]
["No practitioners' suites",null,1036,7,"No practitioners' suites"]
["No animals",null,1037,8,"No animals"]
["Population served",null,1038,9,"Population served"]
[]
[]
[]
[null,null,"Code type AnalSecurity"]
["Analysis Publication Security",null,"id","Code","Description"]
[]
[{"$f":"D352&\" \"&E352","v":"3 Published"},null,1828,3,"Published"]
["4 Publishable except for missing analysis or GFA",null,1829,4,"Publishable except for missing analysis or GFA"]
["5 Needs permission",null,1830,5,"Needs permission"]
["6 Permission denied at this level of analysis",null,1831,6,"Permission denied at this level of analysis"]
["7 Permission denied",null,1832,7,"Permission denied"]
["8 Hosted analysis",null,1838,8,"Hosted analysis"]
["9 Hosted analysis: not suitable for studies",null,1839,9,"Hosted analysis: not suitable for studies"]
[]
[]
[]
[null,null,"Code type SectorCode"]
["Sector Code",null,"id","Code","Description"]
[]
[{"$f":"D365&\" \"&E365","v":"B   Public"},null,699,"B  ","Public"]
["H   Housing",null,700,"H  ","Housing"]
["RH  Refurbishment - Housing",null,701,"RH ","Refurbishment - Housing"]
["RN  Refurbishment - Non-housing",null,702,"RN ","Refurbishment - Non-housing"]
["VC  Private Commercial",null,703,"VC ","Private Commercial"]
["VI  Private Industrial",null,704,"VI ","Private Industrial"]
[]
[]
[]
[null,null,"Code type 13"]
["Tender Documentation",null,"id","Code","Description"]
[]
[{"$f":"E377","v":"Bill of Quantities"},null,1001,1,"Bill of Quantities"]
["Bill of approximate quantities",null,1002,2,"Bill of approximate quantities"]
["Schedule of rates",null,1003,3,"Schedule of rates"]
["Specification and Drawings",null,1004,4,"Specification and Drawings"]
["Employers Requirements (for Design and Build)",null,1005,5,"Employers Requirements (for Design and Build)"]
["Schedule of works",null,1006,6,"Schedule of works"]
["Activity schedule",null,3628,7,"Activity schedule"]
[]
[]
[]
[null,null,"Code type 06"]
["Method of Measurement",null,"id","Code","Description"]
[]
[{"$f":"E390","v":"SMM 5"},null,705,15,"SMM 5"]
["SMM 6",null,706,16,"SMM 6"]
["SMM 7",null,707,17,"SMM 7"]
["NRM 2",null,3733,18,"NRM 2"]
["Small dwellings code of measurement",null,708,2,"Small dwellings code of measurement"]
["Civil engineering standard method",null,709,3,"Civil engineering standard method"]
["International principles of measurement",null,710,4,"International principles of measurement"]
["Shorter bills of quantities",null,711,5,"Shorter bills of quantities"]
["Non standard method of measurement",null,712,8,"Non standard method of measurement"]
[]
[]
[]
[null,null,"Code type BCISSample"]
["BCIS Sample",null,"id","Code","Description"]
[]
[{"$f":"D405&\" \"&E405","v":"B BCIS random sample"},null,1747,"B","BCIS random sample"]
[{"$f":"D406&\" \"&E406","v":"I Includable"},null,1748,"I","Includable"]
[{"$f":"D407&\" \"&E407","v":"E Exclude"},null,1749,"E","Exclude"]
[]
[]
[]
[null,null,"Code type 11"]
["Fluctuations",null,"id","Code","Description"]
[]
[{"$f":"E414","v":"Fixed"},null,961,1,"Fixed"]
["Firm",null,962,2,"Firm"]
["Traditional",null,963,3,"Traditional"]
["Formula",null,964,4,"Formula"]
["NEDO Formula (full indices)",null,965,41,"NEDO Formula (full indices)"]
["NEDO Formula (single index)",null,966,42,"NEDO Formula (single index)"]
["NEDO Formula (group indices)",null,967,43,"NEDO Formula (group indices)"]
["Other",null,968,5,"Other"]
["Fluctuating (no details)",null,969,6,"Fluctuating (no details)"]
["Pain/gain share of actual costs",null,3483,7,"Pain/gain share of actual costs"]
[]
[]
[]
[null,null,"select","GeneralCode.id, Code, GeneralCode.Description"]
[null,null,"from","GeneralCode"]
[null,null,"inner join GeneralCodeType on GeneralCodeType.id = CodeTypeID"]
[null,null,"where","TableType = '07' and"]
[null,null,null,"Code not in ( '3', '32', '8', '82' )"]
[null,null,"order by Code "]
[]
[null,null,"Code type BCISSample","07"]
["Dayworks",null,"id","Code","Description"]
[]
[{"$f":"E437","v":"Building labour"},null,713,1,"Building labour"]
["Building labour - hourly rates",null,714,"1 H","Building labour - hourly rates"]
["H & V labour",null,715,11,"H & V labour"]
["H & V labour - hourly rates",null,716,"11H","H & V labour - hourly rates"]
["Electrical labour",null,717,12,"Electrical labour"]
["Electrical labour - hourly rates",null,718,"12H","Electrical labour - hourly rates"]
["Plumbing Labour",null,719,13,"Plumbing Labour"]
["Plumbing labour - hourly rates",null,720,"13H","Plumbing labour - hourly rates"]
["Building materials",null,721,2,"Building materials"]
["H & V materials",null,722,21,"H & V materials"]
["Electrical materials",null,723,22,"Electrical materials"]
["Plumbing materials",null,724,23,"Plumbing materials"]
["Building plant net",null,726,31,"Building plant net"]
["Building plant RICS Schedule 1967/71",null,728,321,"Building plant RICS Schedule 1967/71"]
["Building plant RICS Schedule 1975",null,729,322,"Building plant RICS Schedule 1975"]
["Building plant RICS Schedule 1981",null,730,323,"Building plant RICS Schedule 1981"]
["Building plant RICS Schedule 1990",null,731,324,"Building plant RICS Schedule 1990"]
["Building plant RICS Schedule 2001",null,2542,325,"Building plant RICS Schedule 2001"]
["Building plant RICS Schedule 2010",null,3568,326,"Building plant RICS Schedule 2010"]
["Building plant ICE Schedule",null,732,33,"Building plant ICE Schedule"]
["Scottish plant owners association schedule",null,733,332,"Scottish plant owners association schedule"]
["H & V plant net",null,734,34,"H & V plant net"]
["H & V plant RICS Schedule 1981",null,735,343,"H & V plant RICS Schedule 1981"]
["H & V plant RICS Schedule 1990",null,736,344,"H & V plant RICS Schedule 1990"]
["H & V plant RICS Schedule 2001",null,2543,345,"H & V plant RICS Schedule 2001"]
["H & V plant RICS Schedule 2010",null,3569,346,"H & V plant RICS Schedule 2010"]
["Electrical plant net",null,737,35,"Electrical plant net"]
["Electrical plant RICS Schedule 1981",null,738,353,"Electrical plant RICS Schedule 1981"]
["Electrical plant RICS Schedule 1990",null,739,354,"Electrical plant RICS Schedule 1990"]
["Electrical plant RICS Schedule 2001",null,2544,355,"Electrical plant RICS Schedule 2001"]
["Electrical plant RICS Schedule 2010",null,3570,356,"Electrical plant RICS Schedule 2010"]
["Plumbing plant net",null,740,36,"Plumbing plant net"]
[{"$f":"E469","v":"Plumbing plant RICS Schedule 1981"},null,741,363,"Plumbing plant RICS Schedule 1981"]
["Plumbing plant RICS Schedule 1990",null,742,364,"Plumbing plant RICS Schedule 1990"]
["Plumbing plant RICS Schedule 2001",null,2545,365,"Plumbing plant RICS Schedule 2001"]
["Plumbing plant RICS Schedule 2010",null,3571,366,"Plumbing plant RICS Schedule 2010"]
["Other Schedule - undefined",null,743,38,"Other Schedule - undefined"]
["Building labour post date of practical completion",null,744,6,"Building labour post date of practical completion"]
["Building labour - hourly rates post DPC",null,745,"6 H","Building labour - hourly rates post DPC"]
["H & V labour post date of practical completion",null,746,61,"H & V labour post date of practical completion"]
["H & V labour - hourly rates post DPC",null,747,"61H","H & V labour - hourly rates post DPC"]
["Electrical labour post DPC",null,748,62,"Electrical labour post DPC"]
["Electrical labour - hourly rates post DPC",null,749,"62H","Electrical labour - hourly rates post DPC"]
["Plumbing labour post date of practical completion",null,750,63,"Plumbing labour post date of practical completion"]
["Plumbing labour - hourly rate post DPC",null,751,"63H","Plumbing labour - hourly rate post DPC"]
["Building materials post DPC",null,752,7,"Building materials post DPC"]
["H & V materials post DPC",null,753,71,"H & V materials post DPC"]
["Electrical materials post DPC",null,754,72,"Electrical materials post DPC"]
["Plumbing materials post DPC",null,755,73,"Plumbing materials post DPC"]
["Building plant net post DPC",null,757,81,"Building plant net post DPC"]
["Building plant RICS Schedule 1967/71 post DPC",null,759,821,"Building plant RICS Schedule 1967/71 post DPC"]
["Building plant RICS Schedule 1975 post DPC",null,760,822,"Building plant RICS Schedule 1975 post DPC"]
["Building plant RICS Schedule 1981 post DPC",null,761,823,"Building plant RICS Schedule 1981 post DPC"]
["Building Plant RICS Schedule 1990 post DPC",null,762,824,"Building Plant RICS Schedule 1990 post DPC"]
["Building plant RICS Schedule 2001 post DPC",null,2546,825,"Building plant RICS Schedule 2001 post DPC"]
["Building plant RICS Schedule 2010 post DPC",null,3572,826,"Building plant RICS Schedule 2010 post DPC"]
["Building plant ICE Schedule post DPC",null,763,83,"Building plant ICE Schedule post DPC"]
["H & V plant net post date of practical completion",null,764,84,"H & V plant net post date of practical completion"]
["H & V plant RICS Schedule 1981 post DPC",null,765,843,"H & V plant RICS Schedule 1981 post DPC"]
["H & V plant RICS Schedule 1990 post DPC",null,766,844,"H & V plant RICS Schedule 1990 post DPC"]
["H & V plant RICS Schedule 2001 post DPC",null,2547,845,"H & V plant RICS Schedule 2001 post DPC"]
["H & V plant RICS Schedule 2010 post DPC",null,3573,846,"H & V plant RICS Schedule 2010 post DPC"]
["Electrical plant net post DPC",null,767,85,"Electrical plant net post DPC"]
["Electrical plant RICS Schedule 1981 post DPC",null,768,853,"Electrical plant RICS Schedule 1981 post DPC"]
[{"$f":"E501","v":"Electrical plant RICS Schedule 1990 post DPC"},null,769,854,"Electrical plant RICS Schedule 1990 post DPC"]
["Electrical plant RICS Schedule 2001 post DPC",null,2548,855,"Electrical plant RICS Schedule 2001 post DPC"]
["Electrical plant RICS Schedule 2010 post DPC",null,3574,856,"Electrical plant RICS Schedule 2010 post DPC"]
["Plumbing plant net - post DPC",null,770,86,"Plumbing plant net - post DPC"]
["Plumbing plant RICS Schedule 1981 post DPC",null,771,863,"Plumbing plant RICS Schedule 1981 post DPC"]
["Plumbing plant RICS Schedule 1990 post DPC",null,772,864,"Plumbing plant RICS Schedule 1990 post DPC"]
["Plumbing plant RICS Schedule 2001 post DPC",null,2549,865,"Plumbing plant RICS Schedule 2001 post DPC"]
["Plumbing plant RICS Schedule 2010 post DPC",null,3575,866,"Plumbing plant RICS Schedule 2010 post DPC"]
[]
[]
[]
[null,null,"select","GeneralCode.id, Code, GeneralCode.Description"]
[null,null,"from","GeneralCode"]
[null,null,"inner join GeneralCodeType on GeneralCodeType.id = CodeTypeID"]
[null,null,"where","TableType = 'DatePrec'"]
[null,null,"order by Code "]
[]
[null,null,"Code type BCISSample","DatePrec"]
["Date Format",null,"id","Code","Description"]
[]
[{"$f":"E521","v":"D/M/Y"},null,1737,"DMY","D/M/Y"]
[{"$f":"E522","v":"M/Y"},null,1738,"MY","M/Y"]
[]
[]
[]
[null,null,"select","case when StringField1 = '1' then null else GeneralCode.id end, Code, GeneralCode.Description"]
[null,null,"from","GeneralCode"]
[null,null,"inner join GeneralCodeType on GeneralCodeType.id = CodeTypeID"]
[null,null,"where","TableType = 'BuildAccred'"]
[null,null,"order by Code "]
[]
[null,null,"Code type BCISSample"]
["Building Accreditation Score",null,"id","Code","Description"]
[{"$f":"IF(C534>0,IF(AND(LEFT(D534,1)=\"G\",LEN(D534)=3),E534&SUBSTITUTE(INDEX(E:E,MATCH(LEFT(D534,2),D:D,0)),\"Listed in \",\" (\")&\")\",E534),\"\")","v":""},null,null,"BA","BREEAM"]
["BREEAM: Pass",null,3424,"BA1","BREEAM: Pass"]
["BREEAM: Good",null,3425,"BA2","BREEAM: Good"]
["BREEAM: Very Good",null,3426,"BA3","BREEAM: Very Good"]
["BREEAM: Excellent",null,3427,"BA4","BREEAM: Excellent"]
["BREEAM: Outstanding",null,3679,"BA5","BREEAM: Outstanding"]
["",null,null,"CA","Energy Performance Rating"]
["Energy Performance Rating: Band A+",null,3871,"CA0","Energy Performance Rating: Band A+"]
["Energy Performance Rating: Band A",null,3683,"CA1","Energy Performance Rating: Band A"]
["Energy Performance Rating: Band B",null,3684,"CA2","Energy Performance Rating: Band B"]
["Energy Performance Rating: Band C",null,3685,"CA3","Energy Performance Rating: Band C"]
["Energy Performance Rating: Band D",null,3686,"CA4","Energy Performance Rating: Band D"]
["Energy Performance Rating: Band E",null,3687,"CA5","Energy Performance Rating: Band E"]
["Energy Performance Rating: Band F",null,3688,"CA6","Energy Performance Rating: Band F"]
["Energy Performance Rating: Band G",null,3689,"CA7","Energy Performance Rating: Band G"]
["",null,null,"DA","DREAM"]
["DREAM: Pass",null,3640,"DA1","DREAM: Pass"]
["DREAM: Good",null,3641,"DA2","DREAM: Good"]
["DREAM: Very Good",null,3642,"DA3","DREAM: Very Good"]
["DREAM: Excellent",null,3643,"DA4","DREAM: Excellent"]
["",null,null,"EA","EcoHomes"]
["EcoHomes: Pass",null,3429,"EA1","EcoHomes: Pass"]
["EcoHomes: Good",null,3430,"EA2","EcoHomes: Good"]
["EcoHomes: Very Good",null,3431,"EA3","EcoHomes: Very Good"]
["EcoHomes: Excellent",null,3432,"EA4","EcoHomes: Excellent"]
["",null,null,"GE","Listed in England and Wales"]
["Listed Building (England and Wales)",null,3753,"GE0","Listed Building"]
["Listed Building Grade I (England and Wales)",null,3754,"GE1","Listed Building Grade I"]
["Listed Building Grade II star (England and Wales)",null,3755,"GE2","Listed Building Grade II star"]
["Listed Building Grade II (England and Wales)",null,3756,"GE3","Listed Building Grade II"]
["",null,null,"GG","Listed in Guernsey"]
["Protected Building (Guernsey)",null,3848,"GG0","Protected Building"]
["",null,null,"GJ","Listed in Jersey"]
["Listed Building (Jersey)",null,3842,"GJ0","Listed Building"]
["Listed Building Grade 1 (Jersey)",null,3843,"GJ1","Listed Building Grade 1"]
["Listed Building Grade 2 (Jersey)",null,3844,"GJ2","Listed Building Grade 2"]
["Listed Building Grade 3 (Jersey)",null,3845,"GJ3","Listed Building Grade 3"]
["Listed Building Grade 4 (Jersey)",null,3846,"GJ4","Listed Building Grade 4"]
["",null,null,"GN","Listed in Northern Ireland"]
["Listed Building (Northern Ireland)",null,3763,"GN0","Listed Building"]
["",null,null,"GS","Listed in Scotland"]
[{"$f":"IF(C575>0,IF(AND(LEFT(D575,1)=\"G\",LEN(D575)=3),E575&SUBSTITUTE(INDEX(E:E,MATCH(LEFT(D575,2),D:D,0)),\"Listed in \",\" (\")&\")\",E575),\"\")","v":"Listed Building (Scotland)"},null,3758,"GS0","Listed Building"]
["Listed Building Category A (Scotland)",null,3759,"GS1","Listed Building Category A"]
["Listed Building Category B (Scotland)",null,3760,"GS2","Listed Building Category B"]
["Listed Building Category C (Scotland)",null,3761,"GS3","Listed Building Category C"]
["",null,null,"HA","Scottish Building Standards - Sustainability Levels"]
["SBS Sustainability Level: Bronze",null,3899,"HA1","SBS Sustainability Level: Bronze"]
["SBS Sustainability Level: Bronze Active",null,3900,"HA2","SBS Sustainability Level: Bronze Active"]
["SBS Sustainability Level: Silver",null,3901,"HA3","SBS Sustainability Level: Silver"]
["SBS Sustainability Level: Silver Active",null,3902,"HA4","SBS Sustainability Level: Silver Active"]
["SBS Sustainability Level: Gold",null,3903,"HA5","SBS Sustainability Level: Gold"]
["",null,null,"IA","BIM Compliant"]
["BIM Level 1",null,3785,"IA1","BIM Level 1"]
["BIM Level 2",null,3786,"IA2","BIM Level 2"]
["BIM Level 3",null,3787,"IA3","BIM Level 3"]
["",null,null,"LA","Lifetime Homes"]
["Lifetime Homes Compliant",null,3532,"LA1","Lifetime Homes Compliant"]
["",null,null,"NA","Housing for Varying Needs"]
["Housing for Varying Needs: Part 1 Houses and Flats compliant",null,3773,"NA1","Housing for Varying Needs: Part 1 Houses and Flats compliant"]
["Housing for Varying Needs: Part 2 Housing with integral support compliant",null,3774,"NA2","Housing for Varying Needs: Part 2 Housing with integral support compliant"]
["",null,null,"PB","SAP 2005"]
["SAP 2005: Energy Performance Rating A",null,3441,"PB1","SAP 2005: Energy Performance Rating A"]
["SAP 2005: Energy Performance Rating B",null,3442,"PB2","SAP 2005: Energy Performance Rating B"]
["SAP 2005: Energy Performance Rating C",null,3443,"PB3","SAP 2005: Energy Performance Rating C"]
["SAP 2005: Energy Performance Rating D",null,3444,"PB4","SAP 2005: Energy Performance Rating D"]
["SAP 2005: Energy Performance Rating E",null,3445,"PB5","SAP 2005: Energy Performance Rating E"]
["SAP 2005: Energy Performance Rating F",null,3446,"PB6","SAP 2005: Energy Performance Rating F"]
["SAP 2005: Energy Performance Rating G",null,3447,"PB7","SAP 2005: Energy Performance Rating G"]
["",null,null,"PC","SAP 2009"]
["SAP 2009: Energy Performance Rating A",null,3578,"PC1","SAP 2009: Energy Performance Rating A"]
["SAP 2009: Energy Performance Rating B",null,3579,"PC2","SAP 2009: Energy Performance Rating B"]
["SAP 2009: Energy Performance Rating C",null,3580,"PC3","SAP 2009: Energy Performance Rating C"]
["SAP 2009: Energy Performance Rating D",null,3581,"PC4","SAP 2009: Energy Performance Rating D"]
["SAP 2009: Energy Performance Rating E",null,3582,"PC5","SAP 2009: Energy Performance Rating E"]
["SAP 2009: Energy Performance Rating F",null,3583,"PC6","SAP 2009: Energy Performance Rating F"]
["SAP 2009: Energy Performance Rating G",null,3584,"PC7","SAP 2009: Energy Performance Rating G"]
["",null,null,"PD","SAP 2012"]
["SAP 2012: Energy Performance Rating A+",null,3872,"PD0","SAP 2012: Energy Performance Rating A+"]
["SAP 2012: Energy Performance Rating A",null,3740,"PD1","SAP 2012: Energy Performance Rating A"]
["SAP 2012: Energy Performance Rating B",null,3741,"PD2","SAP 2012: Energy Performance Rating B"]
["SAP 2012: Energy Performance Rating C",null,3742,"PD3","SAP 2012: Energy Performance Rating C"]
["SAP 2012: Energy Performance Rating D",null,3743,"PD4","SAP 2012: Energy Performance Rating D"]
["SAP 2012: Energy Performance Rating E",null,3744,"PD5","SAP 2012: Energy Performance Rating E"]
["SAP 2012: Energy Performance Rating F",null,3745,"PD6","SAP 2012: Energy Performance Rating F"]
["SAP 2012: Energy Performance Rating G",null,3746,"PD7","SAP 2012: Energy Performance Rating G"]
["",null,null,"SA","Code for Sustainable Homes"]
["Code for Sustainable Homes: Code 1",null,3434,"SA1","Code for Sustainable Homes: Code 1"]
["Code for Sustainable Homes: Code 2",null,3435,"SA2","Code for Sustainable Homes: Code 2"]
["Code for Sustainable Homes: Code 3",null,3436,"SA3","Code for Sustainable Homes: Code 3"]
["Code for Sustainable Homes: Code 4",null,3437,"SA4","Code for Sustainable Homes: Code 4"]
[{"$f":"IF(C624>0,IF(AND(LEFT(D624,1)=\"G\",LEN(D624)=3),E624&SUBSTITUTE(INDEX(E:E,MATCH(LEFT(D624,2),D:D,0)),\"Listed in \",\" (\")&\")\",E624),\"\")","v":"Code for Sustainable Homes: Code 5"},null,3438,"SA5","Code for Sustainable Homes: Code 5"]
["Code for Sustainable Homes: Code 6",null,3439,"SA6","Code for Sustainable Homes: Code 6"]
["",null,null,"VA","Passivhaus"]
["Passivhaus Certified",null,3681,"VA1","Passivhaus Certified"]
["",null,null,"YA","Department of Health: Health Building Note"]
["Department of Health: Health Building Note - non-compliant",null,3909,"YA0","Department of Health: Health Building Note - non-compliant"]
["Department of Health: Health Building Note - compliant",null,3910,"YA1","Department of Health: Health Building Note - compliant"]
["",null,null,"ZA","Department of Health: Health Technical Memorandum"]
["Department of Health: Health Technical Memorandum - non-compliant",null,3912,"ZA0","Department of Health: Health Technical Memorandum - non-compliant"]
["Department of Health: Health Technical Memorandum - compliant",null,3913,"ZA1","Department of Health: Health Technical Memorandum - compliant"]
[]
[]
[]
[]
[null,null,"Code type BCISSample",10]
["Schedule base",null,"id","Code","Description","Convert to 1985 published base"]
[]
[{"$f":"E641","v":"1985 schedule base"},null,860,5,"1985 schedule base",1.1893]
[{"$f":"E642","v":"1995 schedule base"},null,893,6,"1995 schedule base",1.2728999999999999]
[{"$f":"E643","v":"2010 schedule base"},null,3691,7,"2010 schedule base",2.0093000000000001]
[]
[]
[]
[null,null,"Code type","AnalLevel"]
["Analysis Level",null,"id","Code","Description"]
["No analysis"]
[{"$f":"D650&\" \"&E650","v":"B Building level"},null,1732,"B","Building level"]
[{"$f":"D651&\" \"&E651","v":"G Group elemental"},null,1731,"G","Group elemental"]
[{"$f":"D652&\" \"&E652","v":"E Elemental"},null,1729,"E","Elemental"]
[]
[]
[]
[null,null,"Code type","CodConst"]
["BCIS Construction Code",null,"id","Code","Description"]
[]
[{"$f":"D659&\" \"&E659","v":"A Steel framed"},null,1733,"A","Steel framed"]
[{"$f":"D660&\" \"&E660","v":"B Concrete framed"},null,1734,"B","Concrete framed"]
[{"$f":"D661&\" \"&E661","v":"C Brick construction"},null,1735,"C","Brick construction"]
[{"$f":"D662&\" \"&E662","v":"D Timber framed"},null,1736,"D","Timber framed"]
[{"$f":"D663&\" \"&E663","v":"E Offsite construction"},null,3265,"E","Offsite construction"]
[]
[]
[]
[null,null,"Code type","CarbonBasis"]
["Basis of carbon",null,"id","Code","Description"]
[]
[{"$f":"D670&\" \"&E670","v":"0 Unknown"},null,3853,0,"Unknown"]
[{"$f":"D671&\" \"&E671","v":"1 tonnes of CO2 emitted per m2 of building"},null,3854,1,"tonnes of CO2 emitted per m2 of building"]
[{"$f":"D672&\" \"&E672","v":"SAP Standard Assessment Procedure (SAP)"},null,3855,"SAP","Standard Assessment Procedure (SAP)"]
[{"$f":"D673&\" \"&E673","v":"SBEM Simplified Building Energy Model (SBEM)"},null,3856,"SBEM","Simplified Building Energy Model (SBEM)"]
[]
[]
[]
[null,null,"Code type","BasisOfCost"]
["Basis of cost",null,"id","Code","Description"]
[]
[{"$f":"E680","v":"Contract"},null,3850,"C","Contract"]
[{"$f":"E681","v":"Final account"},null,3852,"F","Final account"]
["Target cost",null,3851,"G","Target cost"]
["Tender",null,3849,"T","Tender"]
[]
[]
[]
[null,null,null,null,null,"select","Element.id as ElementID, Reference, StandardDescription, LegacyKey as ElementKey"]
["Elements",null,null,null,null,"from","Element"]
[null,null,null,null,null,"inner join GeneralCode as ElementLibrary on ElementLibrary.id = ElementLibraryID"]
[null,null,null,null,null,"where","Code = 'BCIS2012' and"]
[null,null,null,null,null,null,null,"InputFlagElemental = 1"]
[null,null,null,null,null,"order by LegacyKey"]
[]
[null,null,"ElementID","Reference","Description","ElementKey"]
[]
[null,null,187,1,"Substructure",310]
[null,null,188,2.0099999999999998,"Frame",320]
[null,null,192,2.02,"Upper Floors",330]
[null,null,199,2.0299999999999998,"Roof",340]
[null,null,204,2.04,"Stairs",350]
[null,null,212,2.0499999999999998,"External Walls",360]
[null,null,215,2.06,"External Windows and Doors",370]
[null,null,220,2.0699999999999998,"Internal Walls and Partitions",380]
[null,null,221,2.08,"Internal Doors",390]
[null,null,223,3.01,"Wall Finishes",410]
[null,null,226,3.02,"Floor Finishes",420]
[null,null,230,3.03,"Ceiling Finishes",430]
[null,null,240,4,"Fittings, Furnishings and Equipment",450]
[null,null,243,5.01,"Sanitary Installations",460]
[null,null,244,5.0199999999999996,"Services Equipment",470]
[null,null,248,5.03,"Disposal Installations",480]
[null,null,254,5.04,"Water Installations",490]
[null,null,255,5.05,"Heat Source",500]
[null,null,264,5.0599999999999996,"Space Heating and Air Conditioning",510]
[null,null,268,5.07,"Ventilating Systems",520]
[null,null,275,5.08,"Electrical Installations",530]
[null,null,278,5.09,"Fuel Installations",540]
[null,null,289,5.0999999999999996,"Lift and Conveyor Installations",560]
[null,null,293,5.1100000000000003,"Fire and Lightning Protection",570]
[null,null,297,5.12,"Communications and Security Installations",580]
[null,null,303,5.13,"Special Installations",590]
[null,null,304,5.14,"Builder's Work in Connection with Services (BWIC)",600]
[null,null,309,6,"Prefabricated Buildings and Building Units",620]
[null,null,311,7,"Work to Existing Building",630]
[null,null,315,8.01,"Site Preparation Works",650]
[null,null,318,8.02,"Roads, Paths, Pavings and Surfacings",660]
[null,null,322,8.0299999999999994,"Soft Landscaping, Planting and Irrigation Systems",670]
[null,null,327,8.0399999999999991,"Fencing, Railings and Walls",680]
[null,null,330,8.0500000000000007,"External Fixtures",690]
[null,null,335,8.06,"External Drainage",700]
[null,null,347,8.07,"External Services",720]
[null,null,351,8.08,"Minor Building Works and Ancillary Buildings",730]
[null,null,356,0.01,"Toxic/Hazardous/Contaminated Material Treatment",750]
[null,null,359,0.02,"Major Demolition Works",760]
[null,null,360,0.03,"Temporary Support to Adjacent Structures",770]
[null,null,364,0.04,"Specialist Groundworks",780]
[null,null,365,0.05,"Temporary Diversion Works",790]
[null,null,369,0.06,"Extraordinary Site Investigation",800]
[null,null,373,9,"Preliminaries",820]
[null,null,376,10,"Main Contractor's Overheads and Profit",830]
[null,null,381,11,"Project/Design Team Fees",850]
[null,null,382,12,"Other Development/Project Costs",860]
[null,null,387,13,"Risk (Clients Contingencies)",870]